{"text_format":"1","workbook":"xlsx","n_sheets":4,"sheets":["Price calculator","Help sheet","DB Koder Danmark","DB Koder Danmark old db07"],"not_rendered":{"charts":0,"images":0,"macros":0,"external_links":0,"defined_names":2,"comments":0,"pivot_tables":0},"unopened":[],"bounds":{"document_bytes":16777216,"sheet_cells":100000,"rows_first":2000,"rows_last":500,"rows_between":2000,"halvings":0,"cell_chars":16384,"cell_head_chars":4096},"cells_cut":0,"cells_raw":0,"read":"whole","date_system":"1900"}

{"sheet":"Price calculator","index":0,"n_rows":38,"n_cols":6,"rows_kept":38,"cut":false,"hidden":false,"merged":[]}
[]
[null,"Input"]
[]
[null,null,"Firmanavn","Selskab XXX"]
[null,null,"Address","Paradisæblevej 7"]
[null,null,"Post nr.","4700 Andeby"]
[null,null,"CVR.nr."]
[]
[null,null,"DB Kode","01.11.00"]
[null,null,"DB Kode navn",{"$f":"INDEX('DB Koder Danmark'!$B$2:$C$744,MATCH(D9,'DB Koder Danmark'!$B$2:$B$744,0),2)","v":"Dyrkning af korn (undtagen ris), bælgfrugter og olieholdige frø"},null," "]
[null,null,"Omsætning",250000000]
[null,null,"Etableringsår",2009]
[null,null,"Etableringsmåned","03"]
[null,null,"Minimum 12 mdr. på aktivt cvr.nr.","Ja"]
[null,null,"Antal medarbejdere",12]
[null,null,"Har kunden en igangværende retshjælpsforsikring? ","Ja"]
[]
[null,null,"Selvrisiko",25000]
[null,null,"Præmie",{"$f":"IF(D11>250000000,\"Kontakt HELP for tilbud\",IF(OR(D11=\"\",D11=0),\"FEJL\",IF('Help sheet'!M2=\"x\",\"\",IF(OR(D11>120000000,D33=0),D35,D35))))","v":38685.423622642171}]
[null,null,{"$f":"IF(D14=\"nei\",\"OBS!\",IF(OR(D11>120000000,D33=0),\"OBS!\",\"\"))","v":"OBS!"},{"$f":"IF(D14=\"Nei\",\"Kan ikke indtegnes\",IF('Help sheet'!M2=\"x\",\"Kan ikke indtegnes\",IF(OR(D11>120000000,D33=0),\"Medsend min. 3 års skadesoplysninger\",\"\")))","v":"Medsend min. 3 års skadesoplysninger"}]
[null,null,"Vigtige præmieoplysninger","OBS! Der gælder til enhver tid en minimumspræmie på kr. 3.000"]
[]
[]
[null,"præmie"]
[]
[null,null,"Minimum Præmie",3000]
[null,null,"Indvendig og udvendig kerne",{"$f":"'Help sheet'!O18","v":33569.004474805224}]
[null,null,"Huslov",{"$f":"'Help sheet'!O21","v":22.727708180130563}]
[null,null,"Arbejdsret",{"$f":"'Help sheet'!O19","v":5027.1250937428995}]
[null,null,"ID-tyveri",{"$f":"'Help sheet'!O20","v":66.566345913916933}]
[null,null,"Præmie før rabat",{"$f":"SUM(D27:D30)","v":38685.423622642171}]
[]
[null,null,"Rabat",{"$f":"INDEX('DB Koder Danmark'!$B$2:$E$744,MATCH(D9,'DB Koder Danmark'!$B$2:$B$744,0),4)","v":0}]
[]
[null,null,"Endelig præmie",{"$f":"IF(D33=0,IF(((1-D33)*D27)+D28+D29+D30<D26,D26,((1-D33)*D27)+D28+D29+D30),IF(((1-D33)*D27)+D28+D29+D30<D26,D26,((1-D33)*D27)+D28+D29+D30))","v":38685.423622642171}]
[]
[]
[null,null,{"$f":"IF(OR(D33=0,D11>=120000000,),\"Må forhåndsgodkendes af HELP!\",\"\")","v":"Må forhåndsgodkendes af HELP!"}]

{"sheet":"Help sheet","index":1,"n_rows":196,"n_cols":38,"rows_kept":196,"cut":false,"hidden":true,"merged":[[1,22,80,22],[1,27,3,29],[1,31,3,33],[1,35,3,37],[4,27,5,29],[4,31,5,33],[4,35,5,37],[65,27,67,29],[65,31,67,33],[65,35,67,37],[22,27,24,29],[22,31,24,33],[22,35,24,37],[68,23,69,25],[68,27,69,29],[68,31,69,33],[68,35,69,37],[48,23,49,25],[65,23,67,25],[25,31,26,33],[25,35,26,37],[45,27,47,29],[45,31,47,33],[45,35,47,37],[25,27,26,29],[48,27,49,29],[48,31,49,33],[48,35,49,37],[1,23,3,25],[4,23,5,25],[22,23,24,25],[25,23,26,25],[45,23,47,25]]}
["Sales channel drop down",null,"Deductible drop down",null,"Minimum 12 måneder",null,"Year drop down",null,null,"Month drop down","minimum premium",null,"Check if not valid to cover branch"]
["Hard bundled",null,5000,null,"Ja",{"$f":"YEAR(TODAY())","v":2025},{"$f":"F2","v":2025},null,null,"01",3000,null,{"$f":"INDEX('DB Koder Danmark'!$B$2:$F$744,MATCH('Price calculator'!D9,'DB Koder Danmark'!$B$2:$B$744,0),5)","v":0},null,null,null,null,null,null,null,null,null,"PREMIUM LEVEL","Inside and outside core\nSales channel = Add-on\nSelected",null,null,null,"Inside and outside core\nSales channel = Add-on\nDeductible = 5000",null,null,null,"Inside and outside core\nSales channel = Add-on\nDeductible = 10 000",null,null,null,"Inside and outside core\nSales channel = Add-on\nDeductible = 25 000"]
["Add-on",null,10000,null,"Nei",null,{"$f":"G2-1","v":2024},null,null,"02"]
["Individually bought",null,25000,null,null,null,{"$f":"G3-1","v":2023},null,null,"03"]
[null,null,null,null,null,null,2022,null,null,"04",null,null,null,null,null,null,"Turnover category","Selected row",null,null,null,null,null,"Burning costs DKK",null,null,null,"Burning costs DKK",null,null,null,"Burning costs DKK",null,null,null,"Burning costs DKK"]
[null,null,null,null,null,null,2021,null,null,"05",null,null,null,null,null,null,6000000,{"$f":"IF($N$8<=Q6,1,0)","v":0},null,"Turnover row selected","age column selected"]
[null,null,null,null,null,null,2020,null,null,"06",null,null,"Years active",{"$f":"YEAR(TODAY())-'Price calculator'!$D$12","v":16},null,null,12000000,{"$f":"IF(AND(Q6<$N$8,$N$8<=Q7),2,0)","v":0},null,{"$f":"SUM(R6:R14)","v":9},{"$f":"IF(N7<=14,1,2)","v":2},null,null,null,"Age",null,null,null,"Age",null,null,null,"Age",null,null,null,"Age"]
[null,null,null,null,null,null,2019,null,null,"07",null,null,"Turnover",{"$f":"'Price calculator'!D11","v":250000000},null,null,18000000,{"$f":"IF(AND(Q7<$N$8,$N$8<=Q8),3,0)","v":0},null,null,null,null,null,"Turnover","<=14","<=1 000",null,"Turnover","<=14","<=1 000",null,"Turnover","<=14","<=1 000",null,"Turnover","<=14","<=1 000"]
[null,null,null,null,null,null,2018,null,null,"08",null,null,"Deductible",{"$f":"'Price calculator'!D18","v":25000},null,null,24000000,{"$f":"IF(AND(Q8<$N$8,$N$8<=Q9),4,0)","v":0},null,null,null,null,null,"<=6 000 000",{"$f":"IF($N$9=5000,AC9,IF($N$9=10000,AG9,AK9))","v":3846.7752362815213},{"$f":"IF($N$9=5000,AD9,IF($N$9=10000,AH9,AL9))","v":2741.1054709402897},null,"<=6 000 000",4350.8135490876566,3100.2692098989382,null,"<=6 000 000",4224.8039708861234,3010.4782751592761,null,"<=6 000 000",3846.7752362815213,2741.1054709402897]
[null,null,null,null,null,null,2017,null,null,"09",null,null,null,null,null,null,40000000,{"$f":"IF(AND(Q9<$N$8,$N$8<=Q10),5,0)","v":0},null,null,null,null,null,"<=12 000 000",{"$f":"IF($N$9=5000,AC10,IF($N$9=10000,AG10,AK10))","v":5193.1465689800534},{"$f":"IF($N$9=5000,AD10,IF($N$9=10000,AH10,AL10))","v":3700.4923857693911},null,"<=12 000 000",5873.5982912683357,4185.3634333635664,null,"<=12 000 000",5703.485360696267,4064.1456714650235,null,"<=12 000 000",5193.1465689800534,3700.4923857693911]
[null,null,null,null,null,null,2016,null,null,"10",null,null,null,null,null,null,80000000,{"$f":"IF(AND(Q10<$N$8,$N$8<=Q11),6,0)","v":0},null,null,null,null,null,"<=18 000 000",7391.7485460439293,5267.1552494867774,null,"<=18 000 000",8360.2804297618477,5957.3042397890022,null,"<=18 000 000",8118.1474588323717,5784.7669922134455,null,"<=18 000 000",7391.7485460439293,5267.1552494867774]
[null,null,null,null,null,null,2015,null,null,"11",null,null,null,null,null,null,120000000,{"$f":"IF(AND(Q11<$N$8,$N$8<=Q12),7,0)","v":0},null,null,null,null,null,"<=24 000 000",9609.2731098571112,6847.3018243328106,null,"<=24 000 000",10868.364558690406,7744.4955117257014,null,"<=24 000 000",10553.591696482084,7520.1970898774807,null,"<=24 000 000",9609.2731098571112,6847.3018243328106]
[null,null,null,null,null,null,2014,null,null,"12",null,null,null,null,null,null,180000000,{"$f":"IF(AND(Q12<$N$8,$N$8<=Q13),8,0)","v":0},null,null,null,null,null,"<=40 000 000",11315.521952343832,8063.1274833975485,null,"<=40 000 000",12798.181126081628,9119.6293383385346,null,"<=40 000 000",12427.516332647181,8855.5038746032878,null,"<=40 000 000",11315.521952343832,8063.1274833975485]
[null,null,null,null,null,null,2013,null,null,null,null,null,null,null,null,null,250000000,{"$f":"IF(AND(Q13<$N$8,$N$8<=Q14),9,0)","v":9},null,null,null,null,null,"<=80 000 000",18034.113111547988,12850.60942666484,null,"<=80 000 000",20397.101169692596,14534.409257977037,null,"<=80 000 000",19806.354155156441,14113.459300148988,null,"<=80 000 000",18034.113111547988,12850.60942666484]
[null,null,null,null,null,null,2012,null,null,null,null,null,null,null,null,null,null,null,null,null,null,null,null,"<=120 000 000",27051.169667321978,19275.914139997261,null,"<=120 000 000",30595.651754538892,21801.613886965559,null,"<=120 000 000",29709.531232734669,21170.188950223488,null,"<=120 000 000",27051.169667321978,19275.914139997261]
[null,null,null,null,null,null,2011,null,null,null,null,null,null,null,null,null,null,null,null,null,null,null,null,"<=180 000 000",36519.079050884669,26022.484088996309,null,"<=180 000 000",41304.129868627497,29432.178747403505,null,"<=180 000 000",40107.867164191797,28579.755082801701,null,"<=180 000 000",36519.079050884669,26022.484088996309]
[null,null,null,null,null,null,2010,null,null,null,null,null,null,null,null,null,null,null,null,null,null,null,null,"<=250 000 000",47109.611975641223,33569.004474805224,null,"<=250 000 000",53282.327530529474,37967.510584150514,null,"<=250 000 000",51739.148641807406,36867.884056814204,null,"<=250 000 000",47109.611975641223,33569.004474805224]
[null,null,null,null,null,null,2009,null,null,null,null,null,null,"Inside and outside core",{"$f":"INDEX($Y$9:$Z$17,$T$7,$U$7)","v":33569.004474805224}]
[null,null,null,null,null,null,2008,null,null,null,null,null,null,"Labor law",{"$f":"INDEX($Y$30:$Z$38,$T$7,$U$7)","v":5027.1250937428995}]
[null,null,null,null,null,null,2007,null,null,null,null,null,null,"Id-theft",{"$f":"INDEX($Y$53:$Z$61,$T$7,$U$7)","v":66.566345913916933}]
[null,null,null,null,null,null,2006,null,null,null,null,null,null,"Rental law",{"$f":"INDEX($Y$73:$Z$81,$T$7,$U$7)","v":22.727708180130563}]
[null,null,null,null,null,null,2005]
[null,null,null,null,null,null,2004,null,null,null,null,null,null,null,null,null,null,null,null,null,null,null,null,"Labor law\nSales channel = Add-on\nSelected",null,null,null,"Labor law\nSales channel = Add-on\nDeductible = 5 000",null,null,null,"Labor law\nSales channel = Add-on\nDeductible = 10 000",null,null,null,"Labor law\nSales channel = Add-on\nDeductible = 25 000"]
[null,null,null,null,null,null,2003]
[null,null,null,null,null,null,2002]
[null,null,null,null,null,null,2001,null,null,null,null,null,null,null,null,null,null,null,null,null,null,null,null,"Burning costs DKK",null,null,null,"Burning costs DKK",null,null,null,"Burning costs DKK",null,null,null,"Burning costs DKK"]
[null,null,null,null,null,null,2000]
[null,null,null,null,null,null,1999,null,null,null,null,null,null,null,null,null,null,null,null,null,null,null,null,null,"Age",null,null,null,"Age",null,null,null,"Age",null,null,null,"Age"]
[null,null,null,null,null,null,1998,null,null,null,null,null,null,null,null,null,null,null,null,null,null,null,null,"Turnover","<=14","<=1 000",null,"Turnover","<=14","<=1 000",null,"Turnover","<=14","<=1 000",null,"Turnover","<=14","<=1 000"]
[null,null,null,null,null,null,1997,null,null,null,null,null,null,null,null,null,null,null,null,null,null,null,null,"<=6 000 000",{"$f":"IF($N$9=5000,AC30,IF($N$9=10000,AG30,AK30))","v":98.440441360948824},{"$f":"IF($N$9=5000,AD30,IF($N$9=10000,AH30,AL30))","v":70.145931540598596},null,"<=6 000 000",111.33897348923267,79.337068223207325,null,"<=6 000 000",108.1143404571617,77.039284052555146,null,"<=6 000 000",98.440441360948824,70.145931540598596]
[null,null,null,null,null,null,1996,null,null,null,null,null,null,null,null,null,null,null,null,null,null,null,null,"<=12 000 000",{"$f":"IF($N$9=5000,AC31,IF($N$9=10000,AG31,AK31))","v":295.3213240828465},{"$f":"IF($N$9=5000,AD31,IF($N$9=10000,AH31,AL31))","v":210.43779462179577},null,"<=12 000 000",334.01692046769807,238.01120466962197,null,"<=12 000 000",324.34302137148512,231.11785215766545,null,"<=12 000 000",295.3213240828465,210.43779462179577]
[null,null,null,null,null,null,1995,null,null,null,null,null,null,null,null,null,null,null,null,null,null,null,null,"<=18 000 000",492.20220680474409,350.72965770299299,null,"<=18 000 000",556.69486744616347,396.68534111603668,null,"<=18 000 000",540.57170228580856,385.19642026277575,null,"<=18 000 000",492.20220680474409,350.72965770299299]
[null,null,null,null,null,null,1994,null,null,null,null,null,null,null,null,null,null,null,null,null,null,null,null,"<=24 000 000",689.08308952664174,491.02152078419022,null,"<=24 000 000",779.37281442462881,555.35947756245139,null,"<=24 000 000",756.80038320013193,539.27498836788595,null,"<=24 000 000",689.08308952664174,491.02152078419022]
[null,null,null,null,null,null,1993,null,null,null,null,null,null,null,null,null,null,null,null,null,null,null,null,"<=40 000 000",1050.0313745167875,748.2232697663851,null,"<=40 000 000",1187.6157172184819,846.26206104754488,null,"<=40 000 000",1153.2196315430583,821.75236322725493,null,"<=40 000 000",1050.0313745167875,748.2232697663851]
[null,null,null,null,null,null,1992,null,null,null,null,null,null,null,null,null,null,null,null,null,null,null,null,"<=80 000 000",1968.8088272189764,1402.918630811972,null,"<=80 000 000",2226.7794697846539,1586.7413644641467,null,"<=80 000 000",2162.2868091432342,1540.785681051103,null,"<=80 000 000",1968.8088272189764,1402.918630811972]
[null,null,null,null,null,null,1991,null,null,null,null,null,null,null,null,null,null,null,null,null,null,null,null,"<=120 000 000",3281.3480453649609,2338.1977180199533,null,"<=120 000 000",3711.2991163077554,2644.5689407735777,null,"<=120 000 000",3603.8113485720569,2567.9761350851718,null,"<=120 000 000",3281.3480453649609,2338.1977180199533]
[null,null,null,null,null,null,1990,null,null,null,null,null,null,null,null,null,null,null,null,null,null,null,null,"<=180 000 000",4922.0220680474413,3507.2965770299297,null,"<=180 000 000",5566.9486744616343,3966.8534111603672,null,"<=180 000 000",5405.7170228580853,3851.964202627757,null,"<=180 000 000",4922.0220680474413,3507.2965770299297]
[null,null,null,null,null,null,1989,null,null,null,null,null,null,null,null,null,null,null,null,null,null,null,null,"<=250 000 000",7054.8982975346653,5027.1250937428995,null,"<=250 000 000",7979.2931000616745,5685.8232226631926,null,"<=250 000 000",7748.1943994299227,5521.1486904331196,null,"<=250 000 000",7054.8982975346653,5027.1250937428995]
[null,null,null,null,null,null,1988]
[null,null,null,null,null,null,1987]
[null,null,null,null,null,null,1986]
[null,null,null,null,null,null,1985]
[null,null,null,null,null,null,1984]
[null,null,null,null,null,null,1983]
[null,null,null,null,null,null,1982]
[null,null,null,null,null,null,1981,null,null,null,null,null,null,null,null,null,null,null,null,null,null,null,null,"ID-Theft\nSales channel = Add-on\nSelected",null,null,null,"ID-Theft\nSales channel = Add-on\nDeductible = 5 000",null,null,null,"ID-Theft\nSales channel = Add-on\nDeductible = 10 000",null,null,null,"ID-Theft\nSales channel = Add-on\nDeductible = 25 000"]
[null,null,null,null,null,null,1980]
[null,null,null,null,null,null,1979]
[null,null,null,null,null,null,1978,null,null,null,null,null,null,null,null,null,null,null,null,null,null,null,null,"Burning costs DKK",null,null,null,"Burning costs DKK",null,null,null,"Burning costs DKK",null,null,null,"Burning costs DKK"]
[null,null,null,null,null,null,1977]
[null,null,null,null,null,null,1976,null,null,null,null,null,null,null,null,null,null,null,null,null,null,null,null,null,"Age",null,null,null,"Age",null,null,null,"Age",null,null,null,"Age"]
[null,null,null,null,null,null,1975,null,null,null,null,null,null,null,null,null,null,null,null,null,null,null,null,"Turnover","<=14","<=1 000",null,"Turnover","<=14","<=1 000",null,"Turnover","<=14","<=1 000",null,"Turnover","<=14","<=1 000"]
[null,null,null,null,null,null,1974,null,null,null,null,null,null,null,null,null,null,null,null,null,null,null,null,"<=6 000 000",{"$f":"IF($N$9=5000,AC53,IF($N$9=10000,AG53,AK53))","v":93.416971271654972},{"$f":"IF($N$9=5000,AD53,IF($N$9=10000,AH53,AL53))","v":66.566345913916933},null,"<=6 000 000",105.65728418183673,75.288453815535121,null,"<=6 000 000",102.59720595429128,73.107926840130574,null,"<=6 000 000",93.416971271654972,66.566345913916933]
[null,null,null,null,null,null,1973,null,null,null,null,null,null,null,null,null,null,null,null,null,null,null,null,"<=12 000 000",{"$f":"IF($N$9=5000,AC54,IF($N$9=10000,AG54,AK54))","v":93.416971271654972},{"$f":"IF($N$9=5000,AD54,IF($N$9=10000,AH54,AL54))","v":66.566345913916933},null,"<=12 000 000",105.65728418183673,75.288453815535121,null,"<=12 000 000",102.59720595429128,73.107926840130574,null,"<=12 000 000",93.416971271654972,66.566345913916933]
[null,null,null,null,null,null,1972,null,null,null,null,null,null,null,null,null,null,null,null,null,null,null,null,"<=18 000 000",93.416971271654972,66.566345913916933,null,"<=18 000 000",105.65728418183673,75.288453815535121,null,"<=18 000 000",102.59720595429128,73.107926840130574,null,"<=18 000 000",93.416971271654972,66.566345913916933]
[null,null,null,null,null,null,1971,null,null,null,null,null,null,null,null,null,null,null,null,null,null,null,null,"<=24 000 000",93.416971271654972,66.566345913916933,null,"<=24 000 000",105.65728418183673,75.288453815535121,null,"<=24 000 000",102.59720595429128,73.107926840130574,null,"<=24 000 000",93.416971271654972,66.566345913916933]
[null,null,null,null,null,null,1970,null,null,null,null,null,null,null,null,null,null,null,null,null,null,null,null,"<=40 000 000",93.416971271654972,66.566345913916933,null,"<=40 000 000",105.65728418183673,75.288453815535121,null,"<=40 000 000",102.59720595429128,73.107926840130574,null,"<=40 000 000",93.416971271654972,66.566345913916933]
[null,null,null,null,null,null,1969,null,null,null,null,null,null,null,null,null,null,null,null,null,null,null,null,"<=80 000 000",93.416971271654972,66.566345913916933,null,"<=80 000 000",105.65728418183673,75.288453815535121,null,"<=80 000 000",102.59720595429128,73.107926840130574,null,"<=80 000 000",93.416971271654972,66.566345913916933]
[null,null,null,null,null,null,1968,null,null,null,null,null,null,null,null,null,null,null,null,null,null,null,null,"<=120 000 000",93.416971271654972,66.566345913916933,null,"<=120 000 000",105.65728418183673,75.288453815535121,null,"<=120 000 000",102.59720595429128,73.107926840130574,null,"<=120 000 000",93.416971271654972,66.566345913916933]
[null,null,null,null,null,null,1967,null,null,null,null,null,null,null,null,null,null,null,null,null,null,null,null,"<=180 000 000",93.416971271654972,66.566345913916933,null,"<=180 000 000",105.65728418183673,75.288453815535121,null,"<=180 000 000",102.59720595429128,73.107926840130574,null,"<=180 000 000",93.416971271654972,66.566345913916933]
[null,null,null,null,null,null,1966,null,null,null,null,null,null,null,null,null,null,null,null,null,null,null,null,"<=250 000 000",93.416971271654972,66.566345913916933,null,"<=250 000 000",105.65728418183673,75.288453815535121,null,"<=250 000 000",102.59720595429128,73.107926840130574,null,"<=250 000 000",93.416971271654972,66.566345913916933]
[null,null,null,null,null,null,1965]
[null,null,null,null,null,null,1964]
[null,null,null,null,null,null,1963]
[null,null,null,null,null,null,1962]
[null,null,null,null,null,null,1961,null,null,null,null,null,null,null,null,null,null,null,null,null,null,null,null,"Rental law\nSales channel = add-on\nSelected",null,null,null,"Rental law\nSales channel = add-on\nDeductible = 5 000",null,null,null,"Rental law\nSales channel = Add-on\nDeductible = 10 000",null,null,null,"Rental law\nSales channel = Add-on\nDeductible = 25 000"]
[null,null,null,null,null,null,1960]
[null,null,null,null,null,null,{"$f":"G67-1","v":1959}]
[null,null,null,null,null,null,1958,null,null,null,null,null,null,null,null,null,null,null,null,null,null,null,null,"Burning costs DKK",null,null,null,"Burning costs DKK",null,null,null,"Burning costs DKK",null,null,null,"Burning costs DKK"]
[null,null,null,null,null,null,1957]
[null,null,null,null,null,null,1956,null,null,null,null,null,null,null,null,null,null,null,null,null,null,null,null,null,"Age",null,null,null,"Age",null,null,null,"Age",null,null,null,"Age"]
[null,null,null,null,null,null,1955,null,null,null,null,null,null,null,null,null,null,null,null,null,null,null,null,"Turnover","<=14","<=1 000",null,"Turnover","<=14","<=1 000",null,"Turnover","<=14","<=1 000",null,"Turnover","<=14","<=1 000"]
[null,null,null,null,null,null,1954,null,null,null,null,null,null,null,null,null,null,null,null,null,null,null,null,"<=6 000 000",{"$f":"IF($N$9=5000,AC73,IF($N$9=10000,AG73,AK73))","v":31.895301341603755},{"$f":"IF($N$9=5000,AD73,IF($N$9=10000,AH73,AL73))","v":22.727708180130563},null,"<=6 000 000",36.074504151021202,25.70569233085957,null,"<=6 000 000",35.02970344866683,24.961196293177316,null,"<=6 000 000",31.895301341603755,22.727708180130563]
[null,null,null,null,null,null,1953,null,null,null,null,null,null,null,null,null,null,null,null,null,null,null,null,"<=12 000 000",{"$f":"IF($N$9=5000,AC74,IF($N$9=10000,AG74,AK74))","v":31.895301341603755},{"$f":"IF($N$9=5000,AD74,IF($N$9=10000,AH74,AL74))","v":22.727708180130563},null,"<=12 000 000",36.074504151021202,25.70569233085957,null,"<=12 000 000",35.02970344866683,24.961196293177316,null,"<=12 000 000",31.895301341603755,22.727708180130563]
[null,null,null,null,null,null,1952,null,null,null,null,null,null,null,null,null,null,null,null,null,null,null,null,"<=18 000 000",31.895301341603755,22.727708180130563,null,"<=18 000 000",36.074504151021202,25.70569233085957,null,"<=18 000 000",35.02970344866683,24.961196293177316,null,"<=18 000 000",31.895301341603755,22.727708180130563]
[null,null,null,null,null,null,1951,null,null,null,null,null,null,null,null,null,null,null,null,null,null,null,null,"<=24 000 000",31.895301341603755,22.727708180130563,null,"<=24 000 000",36.074504151021202,25.70569233085957,null,"<=24 000 000",35.02970344866683,24.961196293177316,null,"<=24 000 000",31.895301341603755,22.727708180130563]
[null,null,null,null,null,null,1950,null,null,null,null,null,null,null,null,null,null,null,null,null,null,null,null,"<=40 000 000",31.895301341603755,22.727708180130563,null,"<=40 000 000",36.074504151021202,25.70569233085957,null,"<=40 000 000",35.02970344866683,24.961196293177316,null,"<=40 000 000",31.895301341603755,22.727708180130563]
[null,null,null,null,null,null,1949,null,null,null,null,null,null,null,null,null,null,null,null,null,null,null,null,"<=80 000 000",31.895301341603755,22.727708180130563,null,"<=80 000 000",36.074504151021202,25.70569233085957,null,"<=80 000 000",35.02970344866683,24.961196293177316,null,"<=80 000 000",31.895301341603755,22.727708180130563]
[null,null,null,null,null,null,1948,null,null,null,null,null,null,null,null,null,null,null,null,null,null,null,null,"<=120 000 000",31.895301341603755,22.727708180130563,null,"<=120 000 000",36.074504151021202,25.70569233085957,null,"<=120 000 000",35.02970344866683,24.961196293177316,null,"<=120 000 000",31.895301341603755,22.727708180130563]
[null,null,null,null,null,null,1947,null,null,null,null,null,null,null,null,null,null,null,null,null,null,null,null,"<=180 000 000",31.895301341603755,22.727708180130563,null,"<=180 000 000",36.074504151021202,25.70569233085957,null,"<=180 000 000",35.02970344866683,24.961196293177316,null,"<=180 000 000",31.895301341603755,22.727708180130563]
[null,null,null,null,null,null,1946,null,null,null,null,null,null,null,null,null,null,null,null,null,null,null,null,"<=250 000 000",31.895301341603755,22.727708180130563,null,"<=250 000 000",36.074504151021202,25.70569233085957,null,"<=250 000 000",35.02970344866683,24.961196293177316,null,"<=250 000 000",31.895301341603755,22.727708180130563]
[null,null,null,null,null,null,1945]
[null,null,null,null,null,null,1944]
[null,null,null,null,null,null,1943]
[null,null,null,null,null,null,1942]
[null,null,null,null,null,null,1941]
[null,null,null,null,null,null,1940]
[null,null,null,null,null,null,1939]
[null,null,null,null,null,null,1938]
[null,null,null,null,null,null,1937]
[null,null,null,null,null,null,1936]
[null,null,null,null,null,null,1935]
[null,null,null,null,null,null,1934]
[null,null,null,null,null,null,1933]
[null,null,null,null,null,null,1932]
[null,null,null,null,null,null,1931]
[null,null,null,null,null,null,1930]
[null,null,null,null,null,null,1929]
[null,null,null,null,null,null,1928]
[null,null,null,null,null,null,1927]
[null,null,null,null,null,null,1926]
[null,null,null,null,null,null,1925]
[null,null,null,null,null,null,1924]
[null,null,null,null,null,null,1923]
[null,null,null,null,null,null,1922]
[null,null,null,null,null,null,1921]
[null,null,null,null,null,null,1920]
[null,null,null,null,null,null,1919]
[null,null,null,null,null,null,1918]
[null,null,null,null,null,null,1917]
[null,null,null,null,null,null,1916]
[null,null,null,null,null,null,1915]
[null,null,null,null,null,null,1914]
[null,null,null,null,null,null,1913]
[null,null,null,null,null,null,1912]
[null,null,null,null,null,null,1911]
[null,null,null,null,null,null,1910]
[null,null,null,null,null,null,1909]
[null,null,null,null,null,null,1908]
[null,null,null,null,null,null,1907]
[null,null,null,null,null,null,1906]
[null,null,null,null,null,null,1905]
[null,null,null,null,null,null,1904]
[null,null,null,null,null,null,1903]
[null,null,null,null,null,null,1902]
[null,null,null,null,null,null,1901]
[null,null,null,null,null,null,1900]
[null,null,null,null,null,null,1899]
[null,null,null,null,null,null,1898]
[null,null,null,null,null,null,1897]
[null,null,null,null,null,null,1896]
[null,null,null,null,null,null,{"$f":"G131-1","v":1895}]
[null,null,null,null,null,null,1894]
[null,null,null,null,null,null,1893]
[null,null,null,null,null,null,1892]
[null,null,null,null,null,null,1891]
[null,null,null,null,null,null,1890]
[null,null,null,null,null,null,1889]
[null,null,null,null,null,null,1888]
[null,null,null,null,null,null,1887]
[null,null,null,null,null,null,1886]
[null,null,null,null,null,null,1885]
[null,null,null,null,null,null,1884]
[null,null,null,null,null,null,1883]
[null,null,null,null,null,null,1882]
[null,null,null,null,null,null,1881]
[null,null,null,null,null,null,1880]
[null,null,null,null,null,null,1879]
[null,null,null,null,null,null,1878]
[null,null,null,null,null,null,1877]
[null,null,null,null,null,null,1876]
[null,null,null,null,null,null,1875]
[null,null,null,null,null,null,1874]
[null,null,null,null,null,null,1873]
[null,null,null,null,null,null,1872]
[null,null,null,null,null,null,1871]
[null,null,null,null,null,null,1870]
[null,null,null,null,null,null,1869]
[null,null,null,null,null,null,1868]
[null,null,null,null,null,null,1867]
[null,null,null,null,null,null,1866]
[null,null,null,null,null,null,1865]
[null,null,null,null,null,null,1864]
[null,null,null,null,null,null,1863]
[null,null,null,null,null,null,1862]
[null,null,null,null,null,null,1861]
[null,null,null,null,null,null,1860]
[null,null,null,null,null,null,1859]
[null,null,null,null,null,null,1858]
[null,null,null,null,null,null,1857]
[null,null,null,null,null,null,1856]
[null,null,null,null,null,null,1855]
[null,null,null,null,null,null,1854]
[null,null,null,null,null,null,1853]
[null,null,null,null,null,null,1852]
[null,null,null,null,null,null,1851]
[null,null,null,null,null,null,1850]
[null,null,null,null,null,null,1849]
[null,null,null,null,null,null,1848]
[null,null,null,null,null,null,1847]
[null,null,null,null,null,null,1846]
[null,null,null,null,null,null,1845]
[null,null,null,null,null,null,1844]
[null,null,null,null,null,null,1843]
[null,null,null,null,null,null,1842]
[null,null,null,null,null,null,1841]
[null,null,null,null,null,null,1840]
[null,null,null,null,null,null,1839]
[null,null,null,null,null,null,1838]
[null,null,null,null,null,null,1837]
[null,null,null,null,null,null,1836]
[null,null,null,null,null,null,1835]
[null,null,null,null,null,null,1834]
[null,null,null,null,null,null,1833]
[null,null,null,null,null,null,1832]
[null,null,null,null,null,null,{"$f":"G195-1","v":1831}]

{"sheet":"DB Koder Danmark","index":2,"n_rows":744,"n_cols":6,"rows_kept":744,"cut":false,"hidden":true,"merged":[]}
["NB","DB25","Titler","127 std","Præmiereduktion","Do not include"]
[" ","01.11.00","Dyrkning af korn (undtagen ris), bælgfrugter og olieholdige frø","Landbrug og gartneri",0]
[" ","01.12.00","Dyrkning af ris","Landbrug og gartneri",0]
[" ","01.13.00","Dyrkning af grøntsager og meloner, rødder og rodknolde","Landbrug og gartneri",0]
[" ","01.14.00","Dyrkning af sukkerrør","Landbrug og gartneri",0]
[" ","01.15.00","Dyrkning af tobak","Landbrug og gartneri",0]
[" ","01.16.00","Dyrkning af tekstilplanter","00.16.01",0]
[" ","01.19.00","Dyrkning af andre etårige afgrøder","Landbrug og gartneri",0]
[" ","01.21.00","Dyrkning af druer","Landbrug og gartneri",0]
[" ","01.22.00","Dyrkning af tropiske og subtropiske frugter","Landbrug og gartneri",0]
[" ","01.23.00","Dyrkning af citrusfrugter","Landbrug og gartneri",0]
[" ","01.24.00","Dyrkning af kernefrugter og stenfrugter","Landbrug og gartneri",0]
[" ","01.25.00","Dyrkning af andre træfrugter, bær og nødder","Landbrug og gartneri",0]
[" ","01.26.00","Dyrkning af olieholdige frugter","Landbrug og gartneri",0]
[" ","01.27.00","Dyrkning af planter til fremstilling af drikkevarer","Landbrug og gartneri",0]
[" ","01.28.00","Dyrkning af krydderiplanter, aromaplanter og lægeplanter","Landbrug og gartneri",0]
[" ","01.29.00","Dyrkning af andre flerårige afgrøder","Landbrug og gartneri",0]
[" ","01.30.00","Planteformering","Landbrug og gartneri",0]
[" ","01.41.00","Avl af malkekvæg","Landbrug og gartneri",0]
[" ","01.42.00","Avl af andet kvæg og bøfler","Landbrug og gartneri",0]
[" ","01.43.00","Avl af heste og dyr af hestefamilien","Landbrug og gartneri",0]
[" ","01.44.00","Avl af kameler og dyr af kamelfamilien","Landbrug og gartneri",0]
[" ","01.45.00","Avl af får og geder","Landbrug og gartneri",0]
[" ","01.46.10","Avl af smågrise","Landbrug og gartneri",0]
[" ","01.46.20","Produktion af slagtesvin","Landbrug og gartneri",0]
[" ","01.47.00","Fjerkræavl","Landbrug og gartneri",0]
[" ","01.48.00","Kenneler","Landbrug og gartneri",0]
[" ","01.48.00","Avl af pelsdyr mv.","Landbrug og gartneri",0]
[" ","01.50.00","Blandet drift","Landbrug og gartneri",0]
[" ","01.61.00","Serviceydelser i forbindelse med planteavl","Landbrug og gartneri",0]
[" ","01.62.00","Serviceydelser i forbindelse med husdyravl","Landbrug og gartneri",0]
[" ","01.63.00","Forarbejdning af afgrøder efter høst","Landbrug og gartneri",0]
[" ","01.63.00","Forarbejdning af frø/sædekorn til udsæd","Landbrug og gartneri",0]
[" ","01.70.00","Jagt, fældefangst og serviceydelser i forbindelse hermed","Landbrug og gartneri",0]
[" ","02.10.00","Dyrkning af træer og andre skovbrugsaktiviteter","Skovbrug",0]
[" ","02.20.00","Skovning","Skovbrug",0]
[" ","02.30.00","Indsamling af vildtvoksende forstmateriale undtagen træer","Skovbrug",0]
[" ","02.40.00","Serviceydelser til skovbrug","Skovbrug",0]
[" ","03.11.00","Havfiskeri","Fiskeri",0]
[" ","03.12.00","Ferskvandsfiskeri","Fiskeri",0]
[" ","03.21.00","Havbrug","Fiskeri",0]
[" ","03.22.00","Ferskvandsbrug","Fiskeri",0]
[" ","05.10.00","Indvinding af stenkul","Indvinding af grus og sten",0]
[" ","05.20.00","Indvinding af brunkul","Indvinding af grus og sten",0]
[" ","06.10.00","Indvinding af råolie","Indvinding af olie og gas",0]
[" ","06.20.00","Indvinding af naturgas","Indvinding af olie og gas",0]
[" ","07.10.00","Brydning af jernmalm","Indvinding af grus og sten",0]
[" ","07.21.00","Brydning af uran- og thoriummalme","Indvinding af grus og sten",0]
[" ","07.29.00","Brydning af andre ikke-jernholdige metalmalme","Indvinding af grus og sten",0]
[" ","08.11.00","Brydning af pynte- og bygningssten, kalksten, gips, kridt og skifer","Indvinding af grus og sten",0]
[" ","08.12.00","Grus- og sandgravning; indvinding af ler og kaolin","Indvinding af grus og sten",0]
[" ","08.91.00","Indvinding af mineraler til fremstilling af kemiske produkter og gødningsstoffer","Indvinding af grus og sten",0]
[" ","08.92.00","Indvinding og agglomerering af tørv","Indvinding af grus og sten",0]
[" ","08.93.00","Saltindvinding","Indvinding af grus og sten",0]
[" ","08.99.00","Anden råstofindvinding i.a.n.","Indvinding af grus og sten",0]
[" ","09.10.00","Serviceydelser i forbindelse med indvinding af råolie og naturgas","Service til råstofindvinding",0]
[" ","09.90.00","Serviceydelser i forbindelse med anden råstofindvinding","Service til råstofindvinding",0]
[" ","10.11.10","Forarbejdning af svinekød","Slagterier",0]
[" ","10.11.90","Forarbejdning af andet kød","Slagterier",0]
[" ","10.12.00","Forarbejdning og konservering af fjerkrækød","Slagterier",0]
[" ","10.13.00","Produktion af kød- og fjerkrækødprodukter","Slagterier",0]
[" ","10.20.10","Fremstilling af fiskemel","Fiskeindustri",0]
[" ","10.20.20","Forarbejdning og konservering af fisk, krebsdyr og bløddyr, undtagen fiskemel","Fiskeindustri",0]
[" ","10.31.00","Forarbejdning og konservering af kartofler","Anden fødevareindustri",0]
[" ","10.32.00","Fremstilling af frugt- og grøntsagssaft","Anden fødevareindustri",0]
[" ","10.39.00","Anden forarbejdning og konservering af frugt og grøntsager","Anden fødevareindustri",0]
[" ","10.41.00","Fremstilling af olier og fedtstoffer","Anden fødevareindustri",0]
[" ","10.42.00","Fremstilling af margarine o.l. spiselige fedtstoffer","Anden fødevareindustri",0]
[" ","10.51.00","Mejerier samt ostefremstilling","Mejerier",0]
[" ","10.52.00","Fremstilling af konsumis","Mejerier",0]
[" ","10.61.00","Fremstilling af mølleriprodukter","Bagerier, brødfabrikker mv.",0]
[" ","10.62.00","Fremstilling af stivelse og stivelsesprodukter","Bagerier, brødfabrikker mv.",0]
[" ","10.71.10","Industriel fremstilling af brød; kager mv.","Bagerier, brødfabrikker mv.",0]
[" ","10.71.20","Fremstilling af friske bageriprodukter","Bagerier, brødfabrikker mv.",0]
[" ","10.72.00","Fremstilling af tvebakker og kiks; fremstilling af konserverede kager, tærter mv.","Bagerier, brødfabrikker mv.",0]
[" ","10.73.00","Fremstilling af makaroni, nudler, couscous og lignende dejvarer","Bagerier, brødfabrikker mv.",0]
[" ","10.81.00","Fremstilling af sukker","Anden fødevareindustri",0]
[" ","10.82.00","Fremstilling af kakao, chokolade og sukkervarer","Anden fødevareindustri",0]
[" ","10.83.00","Forarbejdning af te og kaffe","Anden fødevareindustri",0]
[" ","10.84.00","Fremstilling af smagspræparater og krydderier","Anden fødevareindustri",0]
[" ","10.85.00","Fremstilling af færdigretter","Anden fødevareindustri",0]
[" ","10.86.00","Fremstilling af homogeniserede produkter og diætmad","Anden fødevareindustri",0]
[" ","10.89.00","Fremstilling af andre fødevarer i.a.n.","Anden fødevareindustri",0]
[" ","10.91.00","Fremstilling af færdige foderblandinger til landbrugsdyr","Anden fødevareindustri",0]
[" ","10.92.00","Fremstilling af færdige foderblandinger til kæledyr","Anden fødevareindustri",0]
[" ","11.01.00","Destillation, rektifikation og blanding af alkohol","Drikkevareindustri",0]
[" ","11.02.00","Fremstilling af vin af druer","Drikkevareindustri",0]
[" ","11.03.00","Fremstilling af cider og anden frugtvin","Drikkevareindustri",0]
[" ","11.04.00","Fremstilling af andre ikke-destillerede gærede drikkevarer","Drikkevareindustri",0]
[" ","11.05.00","Fremstilling af øl","Drikkevareindustri",0]
[" ","11.06.00","Fremstilling af malt","Drikkevareindustri",0]
[" ","11.07.00","Fremstilling af læskedrikke; fremstilling af mineralvand og andet vand på flaske","Drikkevareindustri",0]
[" ","12.00.00","Fremstilling af tobaksprodukter","Tobaksindustri",0]
[" ","13.10.00","Forbehandling og spinding af tekstilfibre","Tekstilindustri",0]
[" ","13.20.00","Vævning af tekstiler","Tekstilindustri",0]
[" ","13.30.00","Efterbehandling af tekstiler","Tekstilindustri",0]
[" ","13.91.00","Fremstilling af trikotagestoffer","Tekstilindustri",0]
[" ","13.92.00","Fremstilling af boligtekstiler","Tekstilindustri",0]
[" ","13.96.00","Fremstilling af færdige tekstilvarer undtagen boligtekstiler og beklædningsartikler","Tekstilindustri",0]
[" ","13.93.00","Fremstilling af tæpper","Tekstilindustri",0]
[" ","13.94.00","Fremstilling af reb, tovværk, sejlgarn og netstoffer","Tekstilindustri",0]
[" ","13.95.00","Fremstilling af fiberdug og varer af fiberdug undtagen beklædningsartikler","Tekstilindustri",0]
[" ","13.96.00","Fremstilling af andre tekniske og industrielle tekstiler","Tekstilindustri",0]
[" ","13.99.00","Fremstilling af andre tekstiler i.a.n.","Tekstilindustri",0]
[" ","14.24.00","Fremstilling af beklædningsartikler af læder","Beklædningsindustri",0]
[" ","14.23.00","Fremstilling af arbejdsbeklædning","Beklædningsindustri",0]
[" ","14.21.00","Fremstilling af anden yderbeklædning","Beklædningsindustri",0]
[" ","14.22.00","Fremstilling af underbeklædning","Beklædningsindustri",0]
[" ","14.29.00","Fremstilling af andre beklædningsartikler samt tilbehør","Beklædningsindustri",0]
[" ","14.24.00","Fremstilling af varer af pelsskind","Beklædningsindustri",0]
[" ","14.10.00","Fremstilling af strikkede og hæklede strømpevarer","Beklædningsindustri",0]
[" ","14.10.00","Fremstilling af andre strikkede og hæklede beklædningsartikler","Beklædningsindustri",0]
[" ","15.11.00","Garvning og beredning af læder; beredning og farvning af pelsskind","Læder- og fodtøjsindustri",0]
[" ","15.12.00","Fremstilling af tasker, kufferter, sadelmagervarer mv.","Læder- og fodtøjsindustri",0]
[" ","15.20.00","Fremstilling af fodtøj","Læder- og fodtøjsindustri",0]
[" ","16.11.00","Udsavning og høvling af træ","Træindustri",0]
[" ","16.21.00","Fremstilling af finerplader og træbaserede plader","Træindustri",0]
[" ","16.22.00","Fremstilling af sammensatte parketstave","Træindustri",0]
[" ","16.23.00","Fremstilling af bygningstømmer og snedkeriartikler i øvrigt","Træindustri",0]
[" ","16.24.00","Fremstilling af træemballage","Træindustri",0]
[" ","16.28.00","Fremstilling af andre træprodukter; fremstilling af varer af kork, strå og flettematerialer","Træindustri",0]
[" ","17.11.00","Fremstilling af papirmasse","Papirindustri",0]
[" ","17.12.00","Fremstilling af papir og pap","Papirindustri",0]
[" ","17.21.00","Fremstilling af bølgepap og pap og emballage af papir og pap","Papirindustri",0]
[" ","17.22.00","Fremstilling af husholdningsartikler og hygiejneartikler samt toiletartikler af papir og pap","Papirindustri",0]
[" ","17.23.00","Fremstilling af kontorartikler af papir","Papirindustri",0]
[" ","17.24.00","Fremstilling af tapet","Papirindustri",0]
[" ","17.25.00","Fremstilling af andre papir- og papvarer","Papirindustri",0]
[" ","18.11.00","Trykning af dagblade","Trykkerier mv.",0]
[" ","18.12.00","Anden trykning","Trykkerier mv.",0]
[" ","18.13.00","Prepress- og premedia-arbejde","Trykkerier mv.",0]
[" ","18.14.00","Bogbinding og lignende serviceydelser","Trykkerier mv.",0]
[" ","18.20.00","Reproduktion af indspillede medier","Trykkerier mv.",0]
[" ","19.10.00","Fremstilling af koks mv.","Olieraffinaderier mv. ",0]
[" ","19.20.00","Fremstilling af raffinerede mineralolieprodukter","Olieraffinaderier mv. ",0]
[" ","20.11.00","Fremstilling af industrigasser","Fremst. af basiskemikalier",0]
[" ","20.12.00","Fremstilling af farvestoffer og pigmenter","Fremst. af basiskemikalier",0]
[" ","20.13.00","Fremstilling af andre uorganiske basiskemikalier","Fremst. af basiskemikalier",0]
[" ","20.14.00","Fremstilling af andre organiske basiskemikalier","Fremst. af basiskemikalier",0]
[" ","20.15.00","Fremstilling af gødningsstoffer og nitrogenprodukter","Fremst. af basiskemikalier",0]
[" ","20.16.00","Fremstilling af plast i ubearbejdet form","Fremst. af basiskemikalier",0]
[" ","20.17.00","Fremstilling af syntetisk gummi i ubearbejdet form","Fremst. af basiskemikalier",0]
[" ","20.20.00","Fremstilling af pesticider og andre agrokemiske produkter","Fremst. af basiskemikalier",0]
[" ","20.30.00","Fremstilling af maling, lak og lignende overfladebehandlingsmidler, trykfarver samt tætningsmaterialer","Fremst. af maling og sæbe mv.",0]
[" ","20.41.00","Fremstilling af sæbe, rengørings- og rensemidler samt poleremidler","Fremst. af maling og sæbe mv.",0]
[" ","20.42.00","Fremstilling af parfume, hårshampoo, tandpasta mv.","Fremst. af maling og sæbe mv.",0]
[" ","20.59.00","Fremstilling af sprængstoffer","Fremst. af maling og sæbe mv.",0]
[" ","20.59.00","Fremstilling af lim","Fremst. af maling og sæbe mv.",0]
[" ","20.59.00","Fremstilling af æteriske olier","Fremst. af maling og sæbe mv.",0]
[" ","20.59.00","Fremstilling af andre kemiske produkter i.a.n.","Fremst. af maling og sæbe mv.",0]
[" ","20.60.00","Fremstilling af kemofibre","Fremst. af maling og sæbe mv.",0]
[" ","21.10.00","Fremstilling af farmaceutiske råvarer","Medicinalindustri",0]
[" ","21.20.00","Fremstilling af farmaceutiske præparater","Medicinalindustri",0]
[" ","22.11.00","Fremstilling af gummidæk og gummislanger; vulkanisering af dæk","Plast- og gummiindustri",0]
[" ","22.12.00","Fremstilling af andre gummiprodukter","Plast- og gummiindustri",0]
[" ","22.21.00","Fremstilling af plader, ark, rør og slanger samt profiler af plast","Plast- og gummiindustri",0]
[" ","22.22.00","Fremstilling af plastemballage","Plast- og gummiindustri",0]
[" ","22.24.00","Fremstilling af bygningsartikler af plast","Plast- og gummiindustri",0]
[" ","22.26.00","Fremstilling af andre plastprodukter","Plast- og gummiindustri",0]
[" ","23.11.00","Fremstilling af planglas","Glasindustri og keramisk industri",0]
[" ","23.12.00","Formning og forarbejdning af planglas","Glasindustri og keramisk industri",0]
[" ","23.13.00","Fremstilling af flasker, drikkeglas mv.","Glasindustri og keramisk industri",0]
[" ","23.14.00","Fremstilling af glasfiber","Glasindustri og keramisk industri",0]
[" ","23.15.00","Fremstilling og bearbejdning af andet glas (herunder teknisk glas)","Glasindustri og keramisk industri",0]
[" ","23.20.00","Fremstilling af ildfaste produkter","Glasindustri og keramisk industri",0]
[" ","23.31.00","Fremstilling af keramiske teglsten og gulvfliser","Betonindustri og teglværker",0]
[" ","23.32.00","Fremstilling af mursten, teglsten og byggematerialer af brændt ler","Betonindustri og teglværker",0]
[" ","23.41.00","Fremstilling af keramiske husholdningsartikler og pyntegenstande","Glasindustri og keramisk industri",0]
[" ","23.42.00","Fremstilling af keramiske sanitetsartikler","Glasindustri og keramisk industri",0]
[" ","23.43.00","Fremstilling af keramiske isolatorer og isoleringsdele","Glasindustri og keramisk industri",0]
[" ","23.44.00","Fremstilling af andre keramiske produkter til teknisk brug","Glasindustri og keramisk industri",0]
[" ","23.45.00","Fremstilling af andre keramiske produkter","Glasindustri og keramisk industri",0]
[" ","23.51.00","Fremstilling af cement","Betonindustri og teglværker",0]
[" ","23.52.00","Fremstilling af kalk og gips","Betonindustri og teglværker",0]
[" ","23.61.00","Fremstilling af byggematerialer af beton","Betonindustri og teglværker",0]
[" ","23.62.00","Fremstilling af byggematerialer af gips","Betonindustri og teglværker",0]
[" ","23.63.00","Fremstilling af færdigblandet beton","Betonindustri og teglværker",0]
[" ","23.64.00","Fremstilling af mørtel","Betonindustri og teglværker",0]
[" ","23.65.00","Fremstilling af fibercement","Betonindustri og teglværker",0]
[" ","23.66.00","Fremstilling af andre beton-, gips- og cementprodukter","Betonindustri og teglværker",0]
[" ","23.70.00","Tilhugning, tilskæring og færdigbearbejdning af sten","Betonindustri og teglværker",0]
[" ","23.91.00","Fremstilling af slibemidler","Betonindustri og teglværker",0]
[" ","23.99.10","Fremstilling af asfalt og tagpap","Betonindustri og teglværker",0]
[" ","23.99.90","Fremstilling af andre ikke-metalholdige mineralske produkter i.a.n.","Betonindustri og teglværker",0]
[" ","24.10.00","Fremstilling af råjern og råstål samt jernlegeringer","Fremst. af metal",0]
[" ","24.20.00","Fremstilling af rør og hule profiler og tilhørende fittings af stål","Fremst. af metal",0]
[" ","24.31.00","Fremstilling af stænger ved koldtrækning","Fremst. af metal",0]
[" ","24.32.00","Fremstilling af stålbånd ved koldvalsning","Fremst. af metal",0]
[" ","24.33.00","Koldbehandling","Fremst. af metal",0]
[" ","24.34.00","Fremstilling af tråd ved koldtrækning","Fremst. af metal",0]
[" ","24.41.00","Fremstilling af ædelmetaller","Fremst. af metal",0]
[" ","24.42.00","Fremstilling af aluminium","Fremst. af metal",0]
[" ","24.43.00","Fremstilling af bly, zink og tin","Fremst. af metal",0]
[" ","24.44.00","Fremstilling af kobber","Fremst. af metal",0]
[" ","24.45.00","Anden fremstilling af ikke-jernholdige metaller","Fremst. af metal",0]
[" ","24.46.00","Oparbejdning af nukleart brændsel","Fremst. af metal",0]
[" ","24.51.00","Støbning af jernprodukter","Fremst. af metal",0]
[" ","24.52.00","Støbning af stålprodukter","Fremst. af metal",0]
[" ","24.53.00","Støbning af letmetalprodukter","Fremst. af metal",0]
[" ","24.54.00","Støbning af andre ikke-jernholdige metalprodukter","Fremst. af metal",0]
[" ","25.11.00","Fremstilling af metalkonstruktioner og dele heraf","Metalvareindustri",0]
[" ","25.12.00","Fremstilling af døre og vinduer af metal","Metalvareindustri",0]
[" ","25.21.00","Fremstilling af radiatorer og kedler til centralvarmeanlæg","Metalvareindustri",0]
[" ","25.22.00","Fremstilling af andre tanke og beholdere af metal","Metalvareindustri",0]
[" ","25.21.00","Fremstilling af dampkedler undtagen centralvarmekedler","Metalvareindustri",0]
[" ","25.30.00","Fremstilling af våben og ammunition","Metalvareindustri",0]
[" ","25.40.00","Smedning, presning, sænksmedning og valsning af metal; pulvermetallurgi","Metalvareindustri",0]
[" ","25.51.00","Overfladebehandling af metal","Metalvareindustri",0]
[" ","25.53.00","Maskinforarbejdning","Metalvareindustri",0]
[" ","25.61.00","Fremstilling af bestik, skære- og klipperedskaber","Metalvareindustri",0]
[" ","25.62.00","Fremstilling af låse og hængsler","Metalvareindustri",0]
[" ","25.63.00","Fremstilling af håndværktøj","Metalvareindustri",0]
[" ","25.91.00","Fremstilling af metaltønder og lignende beholdere","Metalvareindustri",0]
[" ","25.92.00","Fremstilling af letmetalemballage","Metalvareindustri",0]
[" ","25.93.00","Fremstilling af trådvarer, kæder og fjedre","Metalvareindustri",0]
[" ","25.94.00","Fremstilling af lukkeanordninger, bolte, skruer og møtrikker","Metalvareindustri",0]
[" ","25.99.00","Fremstilling af andre færdige metalprodukter i.a.n.","Metalvareindustri",0]
[" ","26.11.00","Fremstilling af elektroniske komponenter og plader","Fremst. af computere og kommunikationsudstyr mv. ",0]
[" ","26.12.00","Fremstilling af printplader o.l.","Fremst. af computere og kommunikationsudstyr mv. ",0]
[" ","26.20.00","Fremstilling af computere og ydre enheder","Fremst. af computere og kommunikationsudstyr mv. ",0]
[" ","26.30.00","Fremstilling af kommunikationsudstyr","Fremst. af computere og kommunikationsudstyr mv. ",0]
[" ","26.40.00","Fremstilling af elektronik til husholdninger","Fremst. af computere og kommunikationsudstyr mv. ",0]
[" ","26.51.00","Fremstilling af udstyr til måling, afprøvning, navigation og kontrol","Fremst. af andet elektronisk udstyr",0]
[" ","26.52.00","Fremstilling af ure","Fremst. af andet elektronisk udstyr",0]
[" ","26.60.10","Fremstilling af høreapparater og dele hertil","Fremst. af andet elektronisk udstyr",0]
[" ","26.60.90","Fremstilling af bestrålingsudstyr og elektromedicinsk og elektroterapeutisk udstyr","Fremst. af andet elektronisk udstyr",0]
[" ","26.70.00","Fremstilling af optiske instrumenter og fotografisk udstyr","Fremst. af andet elektronisk udstyr",0]
[" ","26.70.00","Fremstilling af magnetiske og optiske media","Fremst. af andet elektronisk udstyr",0]
[" ","27.11.00","Fremstilling af elektriske motorer, generatorer og transformere","Fremst. af elektriske motorer mv. ",0]
[" ","27.12.00","Fremstilling af elektriske fordelings- og kontrolapparater","Fremst. af elektriske motorer mv. ",0]
[" ","27.20.00","Fremstilling af batterier og akkumulatorer","Fremst. af elektriske motorer mv. ",0]
[" ","27.31.00","Fremstilling af lyslederkabler","Fremst. af ledninger og kabler",0]
[" ","27.32.00","Fremstilling af andre elektroniske og elektriske ledninger og kabler","Fremst. af ledninger og kabler",0]
[" ","27.33.00","Fremstilling af tilbehør til ledninger og kabler","Fremst. af ledninger og kabler",0]
[" ","27.40.00","Fremstilling af elektriske belysningsartikler","Fremst. af husholdningsapparater, lamper mv.",0]
[" ","27.51.00","Fremstilling af elektriske husholdningsapparater","Fremst. af husholdningsapparater, lamper mv.",0]
[" ","27.52.00","Fremstilling af ikke-elektriske husholdningsapparater","Fremst. af husholdningsapparater, lamper mv.",0]
[" ","27.90.00","Fremstilling af andet elektrisk udstyr","Fremst. af husholdningsapparater, lamper mv.",0]
[" ","28.11.00","Fremstilling af vindmøller og dele hertil","Fremst. af motorer, vindmøller og pumper",0]
[" ","28.11.00","Fremstilling af motorer og turbiner undtagen motorer til vindmøller, flyvemaskiner, motorkøretøjer og knallerter","Fremst. af motorer, vindmøller og pumper",0]
[" ","28.12.00","Fremstilling af hydraulisk udstyr","Fremst. af motorer, vindmøller og pumper",0]
[" ","28.13.00","Fremstilling af andre pumper og kompressorer","Fremst. af motorer, vindmøller og pumper",0]
[" ","28.14.00","Fremstilling af andre haner og ventiler","Fremst. af motorer, vindmøller og pumper",0]
[" ","28.15.00","Fremstilling af lejer, tandhjul, tandhjulsudvekslinger og drivelementer","Fremst. af motorer, vindmøller og pumper",0]
[" ","28.21.00","Fremstilling af ovne, ildsteder og fyringsaggregater","Fremst. af andre maskiner",0]
[" ","28.22.00","Fremstilling af løfte- og håndteringsudstyr","Fremst. af andre maskiner",0]
[" ","28.23.00","Fremstilling af kontormaskiner og -udstyr (undtagen computere og ydre enheder)","Fremst. af andre maskiner",0]
[" ","28.24.00","Fremstilling af motordrevet håndværktøj","Fremst. af andre maskiner",0]
[" ","28.25.00","Fremstilling af køle- og ventilationsanlæg (til industriel brug)","Fremst. af andre maskiner",0]
[" ","28.29.00","Fremstilling af andre maskiner til generelle formål i.a.n.","Fremst. af andre maskiner",0]
[" ","28.30.00","Fremstilling af landbrugs- og skovbrugsmaskiner","Fremst. af andre maskiner",0]
[" ","28.41.00","Fremstilling af metalforarbejdende værktøjsmaskiner","Fremst. af andre maskiner",0]
[" ","28.42.00","Fremstilling af andre værktøjsmaskiner","Fremst. af andre maskiner",0]
[" ","28.91.00","Fremstilling af maskiner til metallurgi","Fremst. af andre maskiner",0]
[" ","28.92.00","Fremstilling af maskiner til råstofindvindingsindustrien samt bygge og anlæg","Fremst. af andre maskiner",0]
[" ","28.93.00","Fremstilling af maskiner til føde-, drikke- og tobaksvareindustrien","Fremst. af andre maskiner",0]
[" ","28.94.00","Fremstilling af maskiner til produktion af tekstiler, beklædningsartikler og læder","Fremst. af andre maskiner",0]
[" ","28.95.00","Fremstilling af maskiner til produktion af papir og pap","Fremst. af andre maskiner",0]
[" ","28.96.00","Fremstilling af maskiner til produktion af plast og gummi","Fremst. af andre maskiner",0]
[" ","28.99.00","Fremstilling af øvrige maskiner til specielle formål i.a.n.","Fremst. af andre maskiner",0]
[" ","29.10.00","Fremstilling af motorkøretøjer","Fremst. af motorkøretøjer og dele hertil",0]
[" ","29.20.00","Fremstilling af karosserier til motorkøretøjer; fremstilling af påhængsvogne og sættevogne","Fremst. af motorkøretøjer og dele hertil",0]
[" ","29.31.00","Fremstilling af elektrisk og elektronisk udstyr til motorkøretøjer","Fremst. af motorkøretøjer og dele hertil",0]
[" ","29.32.00","Fremstilling af andre dele og tilbehør til motorkøretøjer","Fremst. af motorkøretøjer og dele hertil",0]
[" ","30.11.00","Bygning af skibe og flydende materiel","Fremst. af skibe og andre transportmidler",0]
[" ","30.12.00","Bygning af både til fritid og sport","Fremst. af skibe og andre transportmidler",0]
[" ","30.20.00","Fremstilling af lokomotiver og andet rullende materiel til jernbaner og sporveje","Fremst. af skibe og andre transportmidler",0]
[null,"30.31.00","Fremstilling af civile luft- og rumfartøjer o.ling.","Fremst. af skibe og andre transportmidler",0,"x"]
[" ","30.31.00","Fremstilling af luft- og rumfartøjer o.l.","Fremst. af skibe og andre transportmidler",0,"x"]
[" ","30.40.00","Fremstilling af militære kampkøretøjer","Fremst. af skibe og andre transportmidler",0]
[" ","30.91.00","Fremstilling af motorcykler","Fremst. af skibe og andre transportmidler",0]
[" ","30.92.00","Fremstilling af cykler og invalidekøretøjer","Fremst. af skibe og andre transportmidler",0]
[" ","30.99.00","Fremstilling af andre transportmidler i.a.n.","Fremst. af skibe og andre transportmidler",0]
[" ","31.00.00","Fremstilling af kontor- og butiksmøbler","Møbelindustri",0]
[" ","31.00.00","Fremstilling af køkkenmøbler","Møbelindustri",0]
[" ","31.00.00","Fremstilling af madrasser","Møbelindustri",0]
[" ","31.00.00","Fremstilling af andre møbler","Møbelindustri",0]
[" ","32.11.00","Prægning af mønter","Legetøj og anden fremstillingsvirksomhed",0]
[" ","32.12.00","Fremstilling af smykker i ædle metaller og relaterede produkter","Legetøj og anden fremstillingsvirksomhed",0]
[" ","32.13.00","Fremstilling af bijouteri og lignende varer","Legetøj og anden fremstillingsvirksomhed",0]
[" ","32.20.00","Fremstilling af musikinstrumenter","Legetøj og anden fremstillingsvirksomhed",0]
[" ","32.30.00","Fremstilling af sportsudstyr","Legetøj og anden fremstillingsvirksomhed",0]
[" ","32.40.00","Fremstilling af spil og legetøj","Legetøj og anden fremstillingsvirksomhed",0]
[" ","32.50.00","Fremstilling af medicinske og dentale instrumenter samt udstyr hertil","Fremst. af medicinske instrumenter mv.",0]
[" ","32.91.00","Fremstilling af koste og børster","Legetøj og anden fremstillingsvirksomhed",0]
[" ","32.99.00","Anden fremstillingsvirksomhed i.a.n.","Legetøj og anden fremstillingsvirksomhed",0]
[" ","33.11.00","Reparation af jern- og metalvarer","Reparation og installation af maskiner og udstyr",0]
[" ","33.12.00","Reparation af maskiner","Reparation og installation af maskiner og udstyr",0]
[" ","33.13.00","Reparation af elektronisk og optisk udstyr","Reparation og installation af maskiner og udstyr",0]
[" ","33.14.00","Reparation af elektrisk udstyr","Reparation og installation af maskiner og udstyr",0]
[" ","33.15.00","Reparation og vedligeholdelse af skibe og både","Reparation og installation af maskiner og udstyr",0]
[" ","33.16.00","Reparation og vedligeholdelse af luft- og rumfartøjer","Reparation og installation af maskiner og udstyr",0]
[" ","33.17.00","Reparation og vedligeholdelse af andre transportmidler","Reparation og installation af maskiner og udstyr",0]
[" ","33.19.00","Reparation af andet udstyr","Reparation og installation af maskiner og udstyr",0]
[" ","33.20.00","Installation af industrimaskiner og -udstyr","Reparation og installation af maskiner og udstyr",0]
[" ","35.12.00","Produktion af elektricitet","Elforsyning",0]
[" ","35.13.00","Transmission af elektricitet","Elforsyning",0]
[" ","35.14.00","Distribution af elektricitet","Elforsyning",0]
[" ","35.15.90","Handel med elektricitet","Elforsyning",0]
[" ","35.21.00","Fremstilling af gas","Gasforsyning",0]
[" ","35.22.00","Distribution af gas","Gasforsyning",0]
[" ","35.23.00","Handel med gas gennem rørledninger","Gasforsyning",0]
[" ","35.30.00","Varmeforsyning","Varmeforsyning",0]
[" ","36.00.00","Vandforsyning","Vandforsyning",0]
[" ","37.00.00","Opsamling og behandling af spildevand","Kloak- og rensningsanlæg",0]
[" ","38.11.00","Indsamling af ikke-farligt affald","Renovation og genbrug",0]
[" ","38.12.00","Indsamling af farligt affald","Renovation og genbrug",0]
[" ","38.21.00","Behandling og bortskaffelse af ikke-farligt affald","Renovation og genbrug",0]
[" ","38.22.00","Bortskaffelse af affald med energiproduktion","Renovation og genbrug",0]
[" ","38.32.00","Behandling og bortskaffelse af farligt affald","Renovation og genbrug",0]
[" ","38.21.00","Demontering af udtjente køretøjer, skibe, maskiner mv.","Renovation og genbrug",0]
[" ","38.21.00","Genbrug af sorterede materialer","Renovation og genbrug",0]
[" ","39.00.00","Rensning af jord og grundvand og anden form for forureningsbekæmpelse","Rensning af jord og grundvand",0]
[" ","68.12.00","Gennemførelse af byggeprojekter","Byggeentreprenører",0]
[" ","41.00.00","Opførelse af bygninger","Byggeentreprenører",0]
["udgår 31.12.2012","42.10.00","Anlæg af veje og jernbaner","Anlægsentreprenører",0]
["gælder fra 1.1.2013","42.11.00","Anlæg af veje og motorveje","Anlægsentreprenører",0]
["gælder fra 1.1.2013","42.12.00","Anlæg af jernbaner og undergrundsbaner","Anlægsentreprenører",0]
["gælder fra 1.1.2013","42.13.00","Anlæg af broer og tunneller","Anlægsentreprenører",0]
["udgår 31.12.2012","42.20.00","Anlæg af ledningsnet","Anlægsentreprenører",0]
["gælder fra 1.1.2013","42.21.00","Anlæg af ledningsnet til væsker","Anlægsentreprenører",0]
["gælder fra 1.1.2013","42.22.00","Anlæg af ledningsnet til elektricitet og kommunikation","Anlægsentreprenører",0]
["udgår 31.12.2012","42.90.00","Anden anlægsvirksomhed","Anlægsentreprenører",0]
["gælder fra 1.1.2013","42.91.00","Anlæg af vandveje, havne, diger og dæmninger","Anlægsentreprenører",0]
["gælder fra 1.1.2013","42.99.00","Anden anlægsvirksomhed i.a.n.","Anlægsentreprenører",0]
[" ","43.11.00","Nedrivning","Murere og anden specialiseret bygge- og anlægsvirksomhed samt forberedende byggepladsarbejde ",0,"x"]
[" ","43.12.00","Forberedende byggepladsarbejder","Murere og anden specialiseret bygge- og anlægsvirksomhed samt forberedende byggepladsarbejde ",0,"x"]
[" ","43.13.00","Funderingsundersøgelser","Murere og anden specialiseret bygge- og anlægsvirksomhed samt forberedende byggepladsarbejde ",0,"x"]
[" ","43.21.00","El-installation","Bygningsinstallation",0]
[" ","43.22.00","VVS- og blikkenslagerforretninger","Bygningsinstallation",0]
[" ","43.24.00","Anden bygningsinstallationsvirksomhed","Bygningsinstallation",0]
[" ","43.31.00","Stukkatørvirksomhed","Bygningsfærdiggørelse",0]
[" ","43.32.00","Tømrer- og bygningssnedkervirksomhed","Bygningsfærdiggørelse",0]
[" ","43.33.00","Udførelse af gulvbelægninger og vægbeklædning","Bygningsfærdiggørelse",0]
[" ","43.34.10","Malerforretninger","Bygningsfærdiggørelse",0]
[" ","43.34.20","Glarmestervirksomhed","Bygningsfærdiggørelse",0]
[null,"43.35.00","Anden bygningsfærdiggørelse","Bygningsfærdiggørelse",0]
[" ","43.35.00","Anden bygningsfærdiggørelse","Bygningsfærdiggørelse",0]
[" ","43.41.00","Tagdækningsvirksomhed","Murere og anden specialiseret bygge- og anlægsvirksomhed samt forberedende byggepladsarbejde ",0,"x"]
[" ","43.91.00","Murere","Murere og anden specialiseret bygge- og anlægsvirksomhed samt forberedende byggepladsarbejde ",0]
[" ","43.99.00","Anden bygge- og anlægsvirksomhed, som kræver specialisering","Murere og anden specialiseret bygge- og anlægsvirksomhed samt forberedende byggepladsarbejde ",0]
[" ","46.71.00","Engroshandel med personbiler, varebiler og minibusser","Bilhandel",0.2]
[" ","47.81.00","Detailhandel med personbiler, varebiler og minibusser","Bilhandel",0.2]
[" ","47.81.00","Engros- og detailhandel med campingkøretøjer, små trailere mv.","Bilhandel",0.2]
[" ","46.71.00","Engros- og detailhandel med lastbiler og påhængsvogne mv.","Bilhandel",0.2]
[" ","95.31.90","Autoreparationsværksteder mv.","Bilværksteder mv.",0.2]
[" ","95.31.20","Karosseriværksteder og autolakererier","Bilværksteder mv.",0.2]
[" ","95.31.20","Undervognsbehandling","Bilværksteder mv.",0.2]
[" ","95.31.10","Dækservice","Bilværksteder mv.",0.2]
[" ","46.72.00","Engroshandel med reservedele og tilbehør til motorkøretøjer","Bilværksteder mv.",0.2]
[" ","47.82.00","Detailhandel med reservedele og tilbehør til motorkøretøjer","Bilværksteder mv.",0.2]
[" ","47.83.00","Salg, vedligeholdelse og reparation af motorcykler og reservedele og tilbehør hertil","Bilværksteder mv.",0.2]
[" ","46.11.00","Agenturhandel med landbrugsråvarer, levende dyr, tekstilmaterialer og halvfabrikata","Agenturhandel",0.3]
[" ","46.12.00","Agenturhandel med brændstoffer, malme, metaller og kemiske produkter til industrien","Agenturhandel",0.3]
[" ","46.13.00","Agenturhandel med tømmer og andre byggematerialer","Agenturhandel",0.3]
[" ","46.14.00","Agenturhandel med maskiner, teknisk udstyr, skibe og flyvemaskiner","Agenturhandel",0.3]
[" ","46.15.00","Agenturhandel med møbler, husholdningsartikler og isenkram","Agenturhandel",0.3]
[" ","46.16.00","Agenturhandel med tekstiler, beklædning, pelsværk, fodtøj og lædervarer","Agenturhandel",0.3]
[" ","46.17.10","Fiskeauktioner","Agenturhandel",0.3]
[" ","46.17.90","Anden agenturhandel med føde-, drikke- og tobaksvarer","Agenturhandel",0.3]
[" ","46.18.90","Agenturhandel med specialiseret varesortiment i.a.n.","Agenturhandel",0.3]
[" ","46.19.00","Agenturhandel med blandet sortiment","Agenturhandel",0.3]
[" ","46.21.00","Engroshandel med korn, uforarbejdet tobak, såsæd og foderstoffer","Engrosh. med korn og foderstof",0.3]
[" ","46.22.00","Engroshandel med blomster og planter","Engrosh. med korn og foderstof",0.3]
[" ","46.23.00","Engroshandel med levende dyr","Engrosh. med korn og foderstof",0.3]
[" ","46.24.00","Engroshandel med huder, skind og læder","Engrosh. med korn og foderstof",0.3]
[" ","46.31.00","Engroshandel med frugt og grøntsager","Engrosh. med føde-, drikke- og tobaksvarer",0.3]
[" ","46.32.10","Engroshandel med kød og kødprodukter","Engrosh. med føde-, drikke- og tobaksvarer",0.3]
[" ","46.33.00","Engroshandel med mejeriprodukter, æg samt spiselige olier og fedtstoffer","Engrosh. med føde-, drikke- og tobaksvarer",0.3]
[" ","46.34.10","Engroshandel med øl, mineralvand, frugt- og grøntsagssaft","Engrosh. med føde-, drikke- og tobaksvarer",0.3]
[" ","46.34.20","Engroshandel med vin og spiritus","Engrosh. med føde-, drikke- og tobaksvarer",0.3]
[" ","46.35.00","Engroshandel med tobaksvarer","Engrosh. med føde-, drikke- og tobaksvarer",0.3]
[" ","46.36.00","Engroshandel med sukker, chokolade og sukkervarer","Engrosh. med føde-, drikke- og tobaksvarer",0.3]
[" ","46.37.00","Engroshandel med kaffe, te, kakao og krydderier","Engrosh. med føde-, drikke- og tobaksvarer",0.3]
[" ","46.32.20","Engroshandel med fisk og fiskeprodukter","Engrosh. med føde-, drikke- og tobaksvarer",0.3]
[" ","46.38.00","Specialiseret engroshandel med fødevarer i.a.n.","Engrosh. med føde-, drikke- og tobaksvarer",0.3]
[" ","46.39.00","Ikke-specialiseret engroshandel med føde-, drikke- og tobaksvarer","Engrosh. med føde-, drikke- og tobaksvarer",0.3]
[" ","46.41.00","Engroshandel med tekstiler","Engrosh. med tekstiler og husholdningsudstyr",0.3]
[" ","46.42.10","Engroshandel med beklædning","Engrosh. med tekstiler og husholdningsudstyr",0.3]
[" ","46.42.20","Engroshandel med fodtøj","Engrosh. med tekstiler og husholdningsudstyr",0.3]
[" ","46.43.10","Engroshandel med hårde hvidevarer","Engrosh. med tekstiler og husholdningsudstyr",0.3]
[" ","46.43.20","Engroshandel med radio og tv mv.","Engrosh. med tekstiler og husholdningsudstyr",0.3]
[" ","46.43.20","Engroshandel med indspillede videoer, cd'er, dvd'er mv.","Engrosh. med tekstiler og husholdningsudstyr",0.3]
[" ","46.43.20","Engroshandel med fotografiske og optiske artikler","Engrosh. med tekstiler og husholdningsudstyr",0.3]
[" ","46.43.10","Engroshandel med elektriske husholdningsartikler","Engrosh. med tekstiler og husholdningsudstyr",0.3]
[" ","46.44.10","Engroshandel med porcelæns- og glasvarer","Engrosh. med tekstiler og husholdningsudstyr",0.3]
[" ","46.44.20","Engroshandel med rengøringsmidler","Engrosh. med tekstiler og husholdningsudstyr",0.3]
[" ","46.45.00","Engroshandel med parfumerivarer og kosmetik","Engrosh. med tekstiler og husholdningsudstyr",0.3]
[" ","46.46.10","Engroshandel med medicinalvarer og sygeplejeartikler","Engrosh. med tekstiler og husholdningsudstyr",0.3]
[" ","46.46.20","Engroshandel med læge- og hospitalsartikler","Engrosh. med tekstiler og husholdningsudstyr",0.3]
[" ","46.47.00","Engroshandel med møbler, tæpper og belysningsartikler","Engrosh. med tekstiler og husholdningsudstyr",0.3]
[" ","46.48.00","Engroshandel med ure, smykker og guld- og sølvvarer","Engrosh. med tekstiler og husholdningsudstyr",0.3]
[" ","46.49.10","Engroshandel med cykler, sportsartikler og lystbåde","Engrosh. med tekstiler og husholdningsudstyr",0.3]
[" ","46.49.20","Engroshandel med bøger, papir og papirvarer","Engrosh. med tekstiler og husholdningsudstyr",0.3]
[" ","46.49.30","Engroshandel med kufferter og lædervarer","Engrosh. med tekstiler og husholdningsudstyr",0.3]
[" ","46.49.90","Engroshandel med andre husholdningsartikler","Engrosh. med tekstiler og husholdningsudstyr",0.3]
[" ","46.50.00","Engroshandel med computere, ydre enheder og software","Engrosh. med it-udstyr",0.3]
[" ","46.50.00","Engroshandel med elektronisk udstyr","Engrosh. med it-udstyr",0.3]
[" ","46.50.00","Engroshandel med telekommunikationsudstyr","Engrosh. med it-udstyr",0.3]
[" ","46.61.00","Engroshandel med landbrugsmaskiner, -udstyr og tilbehør hertil","Engrosh. med andre maskiner",0.3]
[" ","46.62.00","Engroshandel med værktøjsmaskiner","Engrosh. med andre maskiner",0.3]
[" ","46.63.00","Engroshandel med maskiner til minedrift og bygge- og anlægsvirksomhed","Engrosh. med andre maskiner",0.3]
[" ","46.64.00","Engroshandel med maskiner, udstyr og tilbehør til tekstilindustrien","Engrosh. med andre maskiner",0.3]
[" ","46.47.00","Engroshandel med kontormøbler","Engrosh. med andre maskiner",0.3]
[" ","46.50.00","Engroshandel med andre kontormaskiner og andet kontorudstyr","Engrosh. med andre maskiner",0.3]
[" ","46.64.00","Engroshandel med andre maskiner og andet udstyr","Engrosh. med andre maskiner",0.3]
[" ","46.81.00","Engroshandel med fast, flydende og luftformigt brændstof og lignende varer","Anden engroshandel",0.3]
[" ","46.82.00","Engroshandel med metaller og metalmalme","Anden engroshandel",0.3]
[" ","46.83.00","Engroshandel med træ, trælast og byggematerialer","Anden engroshandel",0.3]
[" ","46.83.00","Engroshandel med lak, maling, tapet, gulvbelægning mv.","Anden engroshandel",0.3]
[" ","46.84.00","Engroshandel med isenkram, varmeanlæg og tilbehør","Anden engroshandel",0.3]
[" ","46.85.00","Engroshandel med kemiske produkter","Anden engroshandel",0.3]
[" ","46.86.00","Engroshandel med andre råvarer og halvfabrikata","Anden engroshandel",0.3]
[" ","46.87.00","Engroshandel med affaldsprodukter","Anden engroshandel",0.3]
[" ","46.90.00","Ikke-specialiseret engroshandel","Anden engroshandel",0.3]
[" ","47.11.10","Købmænd og døgnkiosker","Supermarkeder og varehuse mv.",0.5]
[" ","47.11.20","Supermarkeder","Supermarkeder og varehuse mv.",0.5]
[" ","47.11.30","Discountforretninger","Supermarkeder og varehuse mv.",0.5]
[" ","47.12.00","Anden detailhandel fra ikke-specialiserede forretninger","Supermarkeder og varehuse mv.",0.5]
[" ","47.21.00","Frugt- og grøntforretninger","Specialbutikker med fødevarer ",0.5]
[" ","47.22.00","Slagter- og viktualieforretninger","Specialbutikker med fødevarer ",0.5]
[" ","47.23.00","Fiskeforretninger","Specialbutikker med fødevarer ",0.5]
[" ","47.24.00","Detailhandel med brød, konditori- og sukkervarer","Specialbutikker med fødevarer ",0.5]
[" ","47.25.00","Detailhandel med drikkevarer","Specialbutikker med fødevarer ",0.5]
[" ","47.26.00","Tobaksforretninger","Specialbutikker med fødevarer ",0.5]
[" ","47.27.00","Anden detailhandel med fødevarer i specialforretninger","Specialbutikker med fødevarer ",0.5]
[" ","47.30.00","Servicestationer","Tankstationer",0.5]
[" ","47.40.00","Detailhandel med computere, ydre enheder og software","Detailh. med forbrugerelektronik",0.5]
[" ","47.40.00","Detailhandel med telekommunikationsudstyr","Detailh. med forbrugerelektronik",0.5]
[" ","47.40.00","Radio- og tv-forretninger","Detailh. med forbrugerelektronik",0.5]
[" ","47.51.00","Detailhandel med kjolestoffer, garn, broderier mv.","Detailh. med tekstiler og husholdningsudstyr mv.",0.5]
[" ","47.52.10","Farve- og tapetforretninger","Detailh. med tekstiler og husholdningsudstyr mv.",0.5]
[" ","47.52.20","Byggemarkeder og værktøjsmagasiner","Detailh. med tekstiler og husholdningsudstyr mv.",0.5]
[" ","47.53.00","Detailhandel med tæpper, vægbeklædning og gulvbelægning","Detailh. med tekstiler og husholdningsudstyr mv.",0.5]
[" ","47.54.00","Detailhandel med elektriske husholdningsapparater","Detailh. med tekstiler og husholdningsudstyr mv.",0.5]
[" ","47.55.10","Møbelforretninger","Detailh. med tekstiler og husholdningsudstyr mv.",0.5]
[" ","47.55.90","Boligtekstilforretninger","Detailh. med tekstiler og husholdningsudstyr mv.",0.5]
[" ","47.55.30","Detailhandel med køkkenudstyr, glas, porcelæn, bestik, vaser, lysestager mv.","Detailh. med tekstiler og husholdningsudstyr mv.",0.5]
[" ","47.69.10","Forhandlere af musikinstrumenter","Detailh. med tekstiler og husholdningsudstyr mv.",0.5]
[" ","47.55.90","Detailhandel med belysningsartikler samt husholdningsartikler i.a.n.","Detailh. med tekstiler og husholdningsudstyr mv.",0.5]
[" ","47.61.00","Detailhandel med bøger","Detailh. med kultur- og fritidsprodukter",0.5]
[" ","47.62.00","Detailhandel med aviser og papirvarer","Detailh. med kultur- og fritidsprodukter",0.5]
[" ","47.69.10","Detailhandel med musik- og videooptagelser","Detailh. med kultur- og fritidsprodukter",0.5]
[" ","47.63.10","Forhandlere af sports- og campingudstyr","Detailh. med kultur- og fritidsprodukter",0.5]
[" ","47.63.20","Cykel- og knallertforretninger","Detailh. med kultur- og fritidsprodukter",0.5]
[" ","47.63.30","Forhandlere af lystbåde og udstyr hertil","Detailh. med kultur- og fritidsprodukter",0.5]
[" ","47.64.00","Detailhandel med spil og legetøj","Detailh. med kultur- og fritidsprodukter",0.5]
[" ","47.71.10","Tøjforretninger","Detailh. med beklædning og fodtøj",0.5]
[" ","47.71.20","Babyudstyrs- og børnetøjsforretninger","Detailh. med beklædning og fodtøj",0.5]
[" ","47.72.10","Skotøjsforretninger","Detailh. med beklædning og fodtøj",0.5]
[" ","47.72.20","Lædervareforretninger","Detailh. med beklædning og fodtøj",0.5]
[" ","47.73.00","Apoteker","Detailh. med tekstiler og husholdningsudstyr mv.",0.5]
[" ","47.74.20","Detailhandel med medicinske og ortopædiske artikler","Detailh. med tekstiler og husholdningsudstyr mv.",0.5]
[" ","47.75.00","Detailhandel med kosmetikvarer og produkter til personlig pleje","Detailh. med tekstiler og husholdningsudstyr mv.",0.5]
[" ","47.76.10","Blomsterforretninger","Detailh. med tekstiler og husholdningsudstyr mv.",0.5]
[" ","47.76.10","Planteforhandlere og havecentre","Detailh. med tekstiler og husholdningsudstyr mv.",0.5]
[" ","47.76.20","Dyrehandel","Detailh. med tekstiler og husholdningsudstyr mv.",0.5]
[" ","47.77.00","Detailhandel med ure, smykker og guld- og sølvvarer","Detailh. med tekstiler og husholdningsudstyr mv.",0.5]
[" ","47.74.10","Optikere","Detailh. med tekstiler og husholdningsudstyr mv.",0.5]
[" ","47.78.00","Fotoforretninger","Detailh. med tekstiler og husholdningsudstyr mv.",0.5]
[" ","47.78.00","Forhandlere af gaveartikler og brugskunst","Detailh. med tekstiler og husholdningsudstyr mv.",0.5]
[" ","47.69.20","Kunsthandel og gallerivirksomhed","Detailh. med tekstiler og husholdningsudstyr mv.",0.5]
[" ","47.78.00","Detailhandel med andre varer i.a.n.","Detailh. med tekstiler og husholdningsudstyr mv.",0.5]
[" ","47.79.00","Detailhandel med brugte varer i forretninger","Detailh. med tekstiler og husholdningsudstyr mv.",0.5]
[" ","47.27.00","Detailhandel med føde-, drikke- og tobaksvarer fra stadepladser og markeder","Internethandel, postordre mv.",0.5]
[" ","47.71.10","Detailhandel med tekstiler, beklædningsartikler og fodtøj fra stadepladser og markeder","Internethandel, postordre mv.",0.5]
[" ","47.78.00","Detailhandel med andre varer fra stadepladser og markeder","Internethandel, postordre mv.",0.5]
["udgår 2013","47.91.10","Detailhandel fra postordreforretninger","Internethandel, postordre mv.",0.5]
["gælder fra  2014","47.27.00","Detailhandel med dagligvarer via internet","Internethandel, postordre mv.",0.5]
["gælder fra  2014","47.40.00","Detailhandel med elektroniske eller elektriske apparater samt fotoudstyr via internet","Internethandel, postordre mv.",0.5]
["gælder fra  2014","47.52.20","Detailhandel med husholdnings- eller boligudstyr, bortset fra elektriske apparater, via internet","Internethandel, postordre mv.",0.5]
["gælder fra  2014","47.61.00","Detailhandel med bøger, kontorartikler, musik eller film via internet","Internethandel, postordre mv.",0.5]
["gælder fra  2014","47.63.10","Detailhandel med hobbyartikler, musikinstrumenter, sportsudstyr, legetøj, cykler via internet","Internethandel, postordre mv.",0.5]
["gælder fra  2014","47.71.10","Detailhandel med tøj, sko, lædervarer, ure eller babyudstyr  via internet","Internethandel, postordre mv.",0.5]
["gælder fra  2014","47.75.00","Detailhandel med medicin og produkter til personlig pleje via internet","Internethandel, postordre mv.",0.5]
["gælder fra  2014","47.78.00","Detailhandel med andre varer i.a.n. via internet","Internethandel, postordre mv.",0.5]
[" ","60.39.00","Detailhandel via Internettet med digitale produkter","Internethandel, postordre mv.",0.5]
[" ","47.78.00","Anden detailhandel undtagen fra forretninger, stadepladser og markeder","Internethandel, postordre mv.",0.5]
[" ","49.11.00","Passagertransport med regional- eller fjerntog","Regional- og fjerntog",0.1]
[" ","49.20.00","Godstransport med tog","Regional- og fjerntog",0.1,"x"]
[" ","49.31.00","Rutebuskørsel, by- og nærtrafik","Lokaltog, bus og taxi mv.",0.1]
[" ","49.12.00","S-togstrafik, metro og andre nærbaner","Lokaltog, bus og taxi mv.",0.1]
[" ","49.33.00","Taxikørsel","Lokaltog, bus og taxi mv.",0.1,"x"]
[" ","49.31.00","Rutebuskørsel, fjerntrafik og skolebusser","Lokaltog, bus og taxi mv.",0.1]
[" ","49.32.00","Turistkørsel og anden landpassagertransport","Lokaltog, bus og taxi mv.",0.1]
[" ","49.41.00","Vejgodstransport","Fragtvognmænd og rørtransport",0.1,"x"]
[" ","49.42.00","Flytteforretninger","Fragtvognmænd og rørtransport",0.1,"x"]
[" ","49.50.00","Rørtransport","Fragtvognmænd og rørtransport",0.1,"x"]
[" ","50.10.00","Sø- og kysttransport af passagerer","Skibsfart",0.1]
[" ","50.20.00","Sø- og kysttransport af gods","Skibsfart",0.1,"x"]
[" ","50.30.00","Transport af passagerer ad indre vandveje","Skibsfart",0.1]
[" ","50.40.00","Transport af gods ad indre vandveje","Skibsfart",0.1,"x"]
[" ","51.10.10","Ruteflyvning","Luftfart",0.1]
[" ","51.10.20","Charter- og taxiflyvning","Luftfart",0.1]
[" ","51.21.00","Lufttransport af gods","Luftfart",0.1,"x"]
[" ","51.22.00","Rumfart","Luftfart",0.1,"x"]
[" ","52.10.00","Oplagrings- og pakhusvirksomhed","Hjælpevirksomhed til transport ",0.1,"x"]
[" ","52.21.10","Stationer, godsterminaler mv.","Hjælpevirksomhed til transport ",0.1,"x"]
[" ","52.21.20","Parkering og vejhjælp mv.","Hjælpevirksomhed til transport ",0.1,"x"]
[" ","52.21.30","Drift af betalingsveje, -broer og -tunneler","Hjælpevirksomhed til transport ",0.1,"x"]
[" ","52.22.10","Erhvervshavne","Hjælpevirksomhed til transport ",0.1,"x"]
[" ","52.22.20","Bugserings-, bjærgnings- og redningsvæsen mv.","Hjælpevirksomhed til transport ",0.1,"x"]
[" ","52.23.00","Serviceydelser i forbindelse med luftfart","Hjælpevirksomhed til transport ",0]
[" ","52.24.00","Godshåndtering","Hjælpevirksomhed til transport ",0.1,"x"]
[" ","52.26.00","Skibsmæglere","Hjælpevirksomhed til transport ",0.1]
[" ","52.26.00","Speditører","Hjælpevirksomhed til transport ",0.1,"x"]
[" ","52.25.00","Andre tjenesteydelser i forbindelse med transport","Hjælpevirksomhed til transport ",0.1,"x"]
[" ","53.10.00","Posttjenester omfattet af forsyningspligten","Post og kurertjeneste",0.1,"x"]
[" ","53.20.00","Andre post- og kurertjenester","Post og kurertjeneste",0.1,"x"]
[" ","55.10.00","Hoteller","Hoteller mv.",0.6]
[" ","55.10.00","Konferencecentre og kursusejendomme","Hoteller mv.",0.6]
[" ","55.20.00","Ferieboliger og andre indlogeringsfaciliteter til kortvarige ophold","Hoteller mv.",0.6]
[" ","55.30.00","Campingpladser","Hoteller mv.",0.6]
[" ","55.90.00","Andre overnatningsfaciliteter","Hoteller mv.",0.6]
[" ","56.11.10","Restauranter","Restauranter",0]
[" ","56.11.90","Pizzeriaer, grillbarer, isbarer mv.","Restauranter",0,"x"]
[" ","56.21.00","Event catering","Restauranter",0]
[" ","56.22.00","Anden restaurationsvirksomhed","Restauranter",0,"x"]
[" ","56.30.20","Cafeér, værtshuse, diskoteker mv.","Restauranter",0,"x"]
[" ","58.11.00","Udgivelse af bøger","Forlag",0.5]
[" ","58.19.00","Udgivelse af telefonbøger og adresselister","Forlag",0.5]
[" ","58.12.00","Udgivelse af aviser og dagblade","Forlag",0.5]
[" ","58.13.00","Udgivelse af ugeblade og magasiner","Forlag",0.5]
[" ","58.13.00","Udgivelse af distrikts- og annonceblade","Forlag",0.5]
[" ","58.19.00","Anden udgivervirksomhed","Forlag",0.5]
[" ","58.21.00","Udgivelse af computerspil","Udgivelse af computerspil og anden software",0.3]
[" ","58.29.00","Anden udgivelse af software","Udgivelse af computerspil og anden software",0.3]
[" ","59.11.00","Produktion af film og videofilm","Produktion af film, tv og musik mv.",0.3]
[" ","59.11.00","Produktion af tv-programmer","Produktion af film, tv og musik mv.",0.3]
[" ","59.12.00","Aktiviteter, der udøves efter produktion af film, video- og tv-programmer","Produktion af film, tv og musik mv.",0.3]
[" ","59.13.00","Distribution af film, video- og tv-programmer","Produktion af film, tv og musik mv.",0.3]
[" ","59.14.00","Biografer","Produktion af film, tv og musik mv.",0.3]
[" ","59.20.00","Indspilning af lydoptagelser og udgivelse af musik","Produktion af film, tv og musik mv.",0.3]
[" ","60.10.00","Radiovirksomhed","Radio- og tv-stationer",0.3]
[" ","60.20.00","Tv-virksomhed","Radio- og tv-stationer",0.3]
[" ","61.10.00","Fastnetbaseret telekommunikation","Telekommunikation",0.3]
[" ","61.10.00","Trådløs telekommunikation","Telekommunikation",0.3]
[" ","61.10.00","Satellitbaseret telekommunikation","Telekommunikation",0.3]
[" ","61.90.00","Anden telekommunikation","Telekommunikation",0.3]
[" ","62.10.00","Computerprogrammering","It-konsulenter mv.",0.3]
[" ","62.20.00","Konsulentbistand vedrørende informationsteknologi","It-konsulenter mv.",0.3]
[" ","62.20.00","Computer facility management","It-konsulenter mv.",0.3]
[" ","62.90.00","Anden it-servicevirksomhed","It-konsulenter mv.",0.3]
[" ","63.10.00","Databehandling, webhosting og lignende serviceydelser","Informationstjenester",0.3]
[" ","63.91.00","Webportaler","Informationstjenester",0.3]
[" ","60.31.00","Pressebureauer","Informationstjenester",0.3]
[" ","63.92.00","Andre informationstjenester i.a.n.","Informationstjenester",0.3]
[" ","64.11.00","Centralbanker","Pengeinstitutter",0]
[" ","64.19.00","Banker, sparekasser og andelskasser","Pengeinstitutter",0]
[" ","64.21.10","Finansielle holdingselskaber","Kreditforeninger mv.",0]
[" ","64.21.20","Ikke-finansielle holdingselskaber","Kreditforeninger mv.",0]
[" ","64.21.30","Gennemløbsholdingselskaber","Kreditforeninger mv.",0]
[" ","64.31.20","Investeringsforeninger","Kreditforeninger mv.",0]
[" ","64.31.10","Pengemarkedsforeninger","Kreditforeninger mv.",0]
[" ","64.99.10","Investeringsselskaber","Kreditforeninger mv.",0]
[" ","64.99.90","Ventureselskaber og kapitalfonde","Kreditforeninger mv.",0]
[" ","64.91.00","Finansiel leasing","Kreditforeninger mv.",0]
[" ","64.92.10","Realkreditinstitutter","Kreditforeninger mv.",0]
[" ","64.92.20","Andre kreditinstitutter","Kreditforeninger mv.",0]
[" ","64.92.30","Andre kreditselskaber","Kreditforeninger mv.",0]
[" ","64.99.90","FVC-selskaber","Kreditforeninger mv.",0]
[" ","64.99.90","Anden finansiel formidling undtagen forsikring og pensionsforsikring, i.a.n.","Kreditforeninger mv.",0]
[" ","65.11.00","Livsforsikring","Forsikring og pension",0]
[" ","65.12.00","Anden forsikring","Forsikring og pension",0]
[" ","65.20.00","Genforsikring","Forsikring og pension",0]
[" ","65.30.10","Pensionskasser","Forsikring og pension",0]
[" ","65.30.20","Anden pensionsforsikring","Forsikring og pension",0]
[" ","66.11.00","Forvaltning af kapitalmarkeder","Finansiel service",0]
[" ","66.12.00","Værdipapir- og varemægling","Finansiel service",0]
[" ","66.19.00","Andre hjælpetjenester i forbindelse med finansiel formidling","Finansiel service",0]
[" ","66.21.00","Risiko- og skadesvurdering","Finansiel service",0]
[" ","66.22.00","Forsikringsagenters og forsikringsmægleres virksomhed","Finansiel service",0]
[" ","66.29.00","Andre hjælpetjenester i forbindelse med forsikring og pensionsforsikring","Finansiel service",0]
[" ","66.30.00","Formueforvaltning","Finansiel service",0]
[" ","68.11.00","Køb og salg af egen fast ejendom","Ejendomsmæglere mv.",0.2]
[" ","68.20.10","Almennyttige boligselskaber","Boligudlejning",0.2,"x"]
[" ","68.20.20","Private andelsboligforeninger","Boligudlejning",0]
[" ","68.20.30","Anden udlejning af boliger","Boligudlejning",0]
[" ","68.20.40","Udlejning af erhvervsejendomme","Udlejning af erhvervsejendomme",0]
[" ","68.31.10","Ejendomsmæglere mv.","Ejendomsmæglere mv.",0.2]
[" ","68.31.20","Boliganvisning, ferieboligudlejning mv.","Ejendomsmæglere mv.",0.2]
[" ","68.32.10","Administration af fast ejendom på kontraktbasis","Ejendomsmæglere mv.",0.2]
[" ","68.32.20","Ejerforeninger","Ejendomsmæglere mv.",0]
[" ","69.10.00","Juridisk bistand","Advokatvirksomhed",0]
[" ","69.20.00","Bogføring og revision; skatterådgivning","Revision og bogføring",0]
[" ","70.10.10","Ikke-finansielle hovedsæders virksomhed","Virksomhedskonsulenter",0.4]
[" ","70.10.20","Finansielle hovedsæders virksomhed","Virksomhedskonsulenter",0.4]
[" ","73.30.00","Public relations og kommunikation","Virksomhedskonsulenter",0.4]
[" ","70.20.00","Virksomhedsrådgivning og anden rådgivning om driftsledelse","Virksomhedskonsulenter",0.4]
[" ","71.11.00","Arkitektvirksomhed","Arkitekter og rådgivende ingeniører",0.1]
[" ","71.12.10","Rådgivende ingeniørvirksomhed inden for byggeri og anlægsarbejder","Arkitekter og rådgivende ingeniører",0.1]
[" ","71.12.20","Rådgivende ingeniørvirksomhed inden for produktions- og maskinteknik","Arkitekter og rådgivende ingeniører",0.1]
[" ","71.12.30","Opstilling og levering af færdige fabriksanlæg","Arkitekter og rådgivende ingeniører",0.1]
[" ","71.12.40","Geologiske undersøgelser og prospektering, landinspektører mv.","Arkitekter og rådgivende ingeniører",0.1]
[" ","71.12.90","Anden teknisk rådgivning","Arkitekter og rådgivende ingeniører",0]
[" ","71.20.10","Kontrol af levnedsmidler","Arkitekter og rådgivende ingeniører",0]
[" ","71.20.20","Teknisk afprøvning og kontrol","Arkitekter og rådgivende ingeniører",0]
[" ","71.20.90","Anden måling og teknisk analyse","Arkitekter og rådgivende ingeniører",0]
[" ","72.10.00","Forskning og eksperimentel udvikling indenfor bioteknologi","Forskning og udvikling",0.8]
[" ","72.10.00","Anden forskning og eksperimentel udvikling inden for naturvidenskab og teknik","Forskning og udvikling",0.8]
[" ","72.20.00","Forskning og eksperimentel udvikling inden for samfundsvidenskab og humanistiske videnskaber","Forskning og udvikling",0.8]
[" ","73.11.10","Reklamebureauer","Reklame- og analysebureauer",0.3]
[" ","73.11.90","Anden reklamevirksomhed","Reklame- og analysebureauer",0.3]
[" ","73.12.00","Reklameplads i medier","Reklame- og analysebureauer",0.3]
[" ","73.20.00","Markedsanalyse og offentlig meningsmåling","Reklame- og analysebureauer",0.3]
[" ","74.11.00","Industriel design og produktdesign","Anden videnservice",0.3]
[" ","74.12.00","Kommunikationsdesign og grafisk design","Anden videnservice",0.3]
[" ","74.13.00","Indretningsarkitekter og rumdesign","Anden videnservice",0.3]
[" ","74.20.00","Fotografisk virksomhed","Anden videnservice",0.3]
[" ","74.30.00","Oversættelse og tolkning","Anden videnservice",0.3]
[" ","74.99.10","Landbrugskonsulenter","Anden videnservice",0.3]
[" ","74.99.90","Andre liberale, videnskabelige og tekniske tjenesteydelser i.a.n.","Anden videnservice",0.3]
[" ","75.00.00","Dyrlæger","Dyrlæger",0.4]
[" ","77.11.00","Udlejning og leasing af biler og lette motorkøretøjer","Udlejning og leasing af materiel",0]
[" ","77.12.00","Udlejning og leasing af lastbiler","Udlejning og leasing af materiel",0]
[" ","77.21.00","Udlejning og leasing af varer til fritid og sport","Udlejning og leasing af materiel",0]
[" ","77.22.00","Udlejning af videobånd og videodisks","Udlejning og leasing af materiel",0]
[" ","77.22.00","Udlejning og leasing af andre varer til personlig brug og husholdningsbrug i.a.n.","Udlejning og leasing af materiel",0]
[" ","77.31.00","Udlejning og leasing af landbrugsmaskiner og -udstyr","Udlejning og leasing af materiel",0]
[" ","77.32.00","Udlejning og leasing af entreprenørmateriel","Udlejning og leasing af materiel",0]
[" ","77.33.00","Udlejning af kontormaskiner og -udstyr, computere og it-udstyr","Udlejning og leasing af materiel",0]
[" ","77.34.00","Udlejning og leasing af skibe og både","Udlejning og leasing af materiel",0]
[" ","77.35.00","Udlejning og leasing af luftfartøjer","Udlejning og leasing af materiel",0]
[" ","77.39.90","Udlejning og leasing af andet materiel, udstyr og andre materielle aktiver i.a.n.","Udlejning og leasing af materiel",0]
[" ","77.40.00","Leasing af intellektuelle ejendomsrettigheder og lignende, dog ikke ophavsretsbeskyttede værker","Udlejning og leasing af materiel",0]
[" ","78.10.00","Arbejdsformidlingskontorer","Arbejdsformidling og vikarbureauer",0.6]
[" ","78.20.00","Vikarbureauer","Arbejdsformidling og vikarbureauer",0.6]
[" ","78.20.00","Anden personaleformidling","Arbejdsformidling og vikarbureauer",0.6]
[" ","79.11.00","Rejsebureauer","Rejsebureauer",0.5]
[" ","79.12.00","Rejsearrangører","Rejsebureauer",0.5]
[" ","79.90.00","Andre reservationstjenesteydelser og tjenesteydelser i forbindelse hermed","Rejsebureauer",0.5]
[" ","80.01.00","Private vagt- og sikkerhedstjenester","Vagt og sikkerhedstjeneste",0.4,"x"]
[" ","80.09.00","Serviceydelser i forbindelse med sikkerhedssystemer","Vagt og sikkerhedstjeneste",0.4,"x"]
[" ","80.01.00","Overvågning","Vagt og sikkerhedstjeneste",0.4,"x"]
[" ","81.10.00","Kombinerede serviceydelser","Ejendomsservice, rengøring og anlægsgartnere",0.2]
[" ","81.21.00","Almindelig rengøring i bygninger","Ejendomsservice, rengøring og anlægsgartnere",0.2]
[" ","81.22.10","Vinduespolering","Ejendomsservice, rengøring og anlægsgartnere",0.2]
[" ","81.22.20","Skorstensfejning","Ejendomsservice, rengøring og anlægsgartnere",0.2]
[" ","81.22.90","Anden rengøring af bygninger og rengøring af erhvervslokaler","Ejendomsservice, rengøring og anlægsgartnere",0.2]
[" ","81.23.00","Andre rengøringsydelser","Ejendomsservice, rengøring og anlægsgartnere",0.2]
[" ","81.30.00","Landskabspleje","Ejendomsservice, rengøring og anlægsgartnere",0.2]
[" ","82.10.00","Kombinerede administrationsserviceydelser","Anden operationel service",0.5]
[" ","82.10.00","Fotokopiering, dokumentbehandling og anden specialiseret kontorservice","Anden operationel service",0.4]
[" ","82.20.00","Call centres virksomhed","Anden operationel service",0.4]
[" ","82.30.00","Organisering af kongresser, messer og udstillinger","Anden operationel service",0.4]
[" ","82.91.00","Inkassovirksomhed og kreditoplysning","Anden operationel service",0.4]
[" ","82.92.00","Pakkerier","Anden operationel service",0.4]
[" ","82.99.00","Anden forretningsservice i.a.n.","Anden operationel service",0.4]
[" ","84.11.00","Generelle offentlige tjenester","Offentlig administration",0,"x"]
[" ","84.12.00","Administration af sundhedsvæsen, undervisning, kultur og sociale forhold undtagen social sikring","Offentlig administration",0,"x"]
[" ","84.13.00","Administration af og bidrag til erhvervsfremme","Offentlig administration",0,"x"]
[" ","84.21.00","Udenrigsanliggender","Forsvar, politi og retsvæsen mv.",0,"x"]
[" ","84.22.00","Forsvar","Forsvar, politi og retsvæsen mv.",0,"x"]
[" ","84.23.00","Domstole og fængselsvæsen","Forsvar, politi og retsvæsen mv.",0,"x"]
[" ","84.24.00","Politi","Forsvar, politi og retsvæsen mv.",0,"x"]
[" ","84.25.00","Brandvæsen","Forsvar, politi og retsvæsen mv.",0,"x"]
[" ","84.30.00","Lovpligtig socialsikring mv.","Offentlig administration",0,"x"]
[" ","85.10.00","Førskoleundervisning","Grundskoler",0.6]
[" ","85.20.10","Folkeskoler o.lign.","Grundskoler",0.6]
[" ","85.20.20","Specialskoler for handicappede","Grundskoler",0.6]
[" ","85.31.10","Ungdoms- og efterskoler","Gymnasier og erhvervsfaglige skoler",0.6]
[" ","85.31.20","Gymnasier, studenter- og HF-kurser","Gymnasier og erhvervsfaglige skoler",0.6]
[" ","85.32.00","Tekniske skoler og fagskoler","Gymnasier og erhvervsfaglige skoler",0.6]
[" ","85.33.00","Videregående uddannelser ikke på universitetsniveau","Videregående uddannelsesinstitutioner",0.6]
[" ","85.40.00","Videregående uddannelser på universitetsniveau","Videregående uddannelsesinstitutioner",0.6]
[" ","85.51.00","Undervisning inden for sport og fritid","Voksenundervisning mv.",0.6]
[" ","85.52.00","Undervisning i kulturelle discipliner","Voksenundervisning mv.",0.6]
[" ","85.53.00","Køreskoler","Voksenundervisning mv.",0.6]
[" ","85.59.00","Anden undervisning i.a.n.","Voksenundervisning mv.",0.6]
[" ","85.69.00","Hjælpeydelser i forbindelse med undervisning","Voksenundervisning mv.",0.6]
[" ","86.10.00","Hospitaler","Hospitaler",0]
[" ","86.21.00","Alment praktiserende læger","Læger, tandlæger mv.",0.3]
[" ","86.22.00","Praktiserende speciallæger","Læger, tandlæger mv.",0.3]
[" ","86.23.00","Praktiserende tandlæger","Læger, tandlæger mv.",0.3]
[" ","86.94.00","Sundhedspleje, hjemmesygepleje og jordemødre mv.","Læger, tandlæger mv.",0.3]
[" ","86.95.00","Fysio- og ergoterapeuter","Læger, tandlæger mv.",0.3]
[" ","86.93.00","Psykologisk rådgivning","Læger, tandlæger mv.",0.3]
[" ","86.96.00","Kiropraktorer","Læger, tandlæger mv.",0.3]
[" ","86.99.00","Sundhedsvæsen i øvrigt i.a.n.","Læger, tandlæger mv.",0.3]
[" ","87.10.10","Plejehjem","Plejehjem mv.",0.3]
[" ","87.10.20","Institutionsophold med sygepleje i.a.n.","Plejehjem mv.",0.3,"x"]
[" ","87.20.10","Døgninstitutioner for personer med psykiske handicap","Plejehjem mv.",0.3,"x"]
[" ","87.20.20","Behandlingshjem for stofmisbrugere og alkoholskadede","Plejehjem mv.",0.3,"x"]
[" ","87.30.10","Døgninstitutioner for personer med fysisk handicap","Plejehjem mv.",0.3,"x"]
[" ","87.30.20","Beskyttede boliger o.l.","Plejehjem mv.",0.3,"x"]
[" ","87.99.10","Døgninstitutioner for børn og unge","Plejehjem mv.",0.3,"x"]
[" ","87.99.20","Familiepleje","Plejehjem mv.",0.3,"x"]
[" ","87.99.90","Andre former for institutionsophold","Plejehjem mv.",0.3,"x"]
[" ","88.10.10","Hjemmehjælp","Daginstitutioner og dagcentre mv. ",0.3]
[" ","88.10.20","Dagcentre mv.","Daginstitutioner og dagcentre mv. ",0.3]
[" ","88.10.30","Revalideringsinstitutioner","Daginstitutioner og dagcentre mv. ",0.3]
[" ","88.91.10","Dagplejemødre","Daginstitutioner og dagcentre mv. ",0.3]
[" ","88.91.20","Vuggestuer","Daginstitutioner og dagcentre mv. ",0.3]
[" ","88.91.30","Børnehaver","Daginstitutioner og dagcentre mv. ",0.3]
[" ","88.91.40","Skolefritidsordninger og fritidshjem","Daginstitutioner og dagcentre mv. ",0.3]
[" ","88.91.50","Aldersintegrerede institutioner","Daginstitutioner og dagcentre mv. ",0.3]
[" ","88.91.60","Fritids- og ungdomsklubber","Daginstitutioner og dagcentre mv. ",0.3]
[" ","88.99.10","Foreninger, legater og fonde med sygdomsbekæmpende, sociale og velgørende formål","Daginstitutioner og dagcentre mv. ",0.3]
[" ","87.99.30","Flygtninge- og asylcentre","Daginstitutioner og dagcentre mv. ",0.3,"x"]
[" ","88.99.90","Andre sociale foranstaltninger uden institutionsophold i.a.n.","Daginstitutioner og dagcentre mv. ",0.3]
[" ","90.20.10","Teater- og koncertvirksomhed","Teater, musik og kunst",0.3]
[" ","90.20.20","Selvstændigt udøvende scenekunstnere","Teater, musik og kunst",0.3]
[" ","90.39.20","Hjælpeaktiviteter i forbindelse med scenekunst","Teater, musik og kunst",0.3]
[" ","90.12.00","Kunstnerisk skaben","Teater, musik og kunst",0.3]
[" ","90.31.00","Drift af teater- og koncertsale, kulturhuse mv.","Teater, musik og kunst",0.3]
[" ","91.11.00","Biblioteker ","Biblioteker, museer mv.",0.3]
[" ","91.12.00","Arkiver","Biblioteker, museer mv.",0.3]
[" ","91.21.00","Museer","Biblioteker, museer mv.",0.3]
[" ","91.22.00","Historiske monumenter og bygninger og lignende attraktioner","Biblioteker, museer mv.",0.3]
[" ","91.41.00","Botaniske og zoologiske haver samt naturreservater","Biblioteker, museer mv.",0.3]
[" ","92.00.00","Lotteri- og anden spillevirksomhed","Lotteri og andet spil",0.3]
[" ","93.11.00","Drift af sportsanlæg","Sport",0.3]
[" ","93.12.00","Sportsklubber","Sport",0.3]
[" ","93.13.00","Fitnesscentre","Sport",0.3]
[" ","93.19.00","Andre sportsaktiviteter","Sport",0.3]
[" ","93.21.00","Forlystelsesparker o.l.","Forlystelsesparker og andre fritidsaktiviteter",0.3]
[" ","93.29.10","Lystbådehavne","Forlystelsesparker og andre fritidsaktiviteter",0.3]
[" ","93.29.90","Andre forlystelser og fritidsaktiviteter","Forlystelsesparker og andre fritidsaktiviteter",0.3]
[" ","94.11.00","Erhvervs- og arbejdsgiverorganisationer","Organisationer og foreninger",0.3]
[" ","94.12.00","Faglige sammenslutninger","Organisationer og foreninger",0.3]
[" ","94.20.00","Fagforeninger","Organisationer og foreninger",0.3]
[" ","94.91.00","Religiøse institutioner og foreninger","Organisationer og foreninger",0.3]
[" ","94.92.00","Politiske partier","Organisationer og foreninger",0.3]
[" ","94.99.00","Andre organisationer og foreninger i.a.n.","Organisationer og foreninger",0.3]
[" ","95.10.00","Reparation af computere og ydre enheder","Reparation af husholdningsudstyr",0.4]
[" ","95.10.00","Reparation af kommunikationsudstyr","Reparation af husholdningsudstyr",0.4]
[" ","95.21.00","Reparation af forbrugerelektronik","Reparation af husholdningsudstyr",0.4]
[" ","95.22.00","Reparation af husholdningsapparater og redskaber til hus og have","Reparation af husholdningsudstyr",0.4]
[" ","95.23.00","Reparation af skotøj og lædervarer","Reparation af husholdningsudstyr",0.4]
[" ","95.24.00","Reparation af møbler og boligudstyr","Reparation af husholdningsudstyr",0.4]
[" ","95.25.00","Reparation af ure, smykker og guld- og sølvvarer","Reparation af husholdningsudstyr",0.4]
[" ","95.29.00","Reparation af andre varer til personligt brug og husholdningsbrug","Reparation af husholdningsudstyr",0.4]
[" ","96.10.10","Erhvervs- og institutionsvaskerier","Frisører, vaskerier og andre serviceydelser",0.4]
[" ","96.10.20","Renserier, selvbetjeningsvaskerier mv.","Frisører, vaskerier og andre serviceydelser",0.4]
[" ","96.21.00","Frisørsaloner","Frisører, vaskerier og andre serviceydelser",0.4]
[" ","96.22.00","Skønheds- og hudpleje","Frisører, vaskerier og andre serviceydelser",0.4]
[" ","96.30.00","Bedemænd og begravelsesvæsen","Frisører, vaskerier og andre serviceydelser",0.4]
[" ","96.23.00","Aktiviteter vedrørende fysisk velvære","Frisører, vaskerier og andre serviceydelser",0.4]
[" ","96.99.00","Andre personlige serviceydelser i.a.n.","Frisører, vaskerier og andre serviceydelser",0.4]
[" ","97.00.00","Husholdninger med ansat medhjælp","Private husholdninger med ansat medhjælp ",0.6]
[" ","98.10.00","Private husholdningers produktion af varer til eget brug, i.a.n.","Private husholdninger med ansat medhjælp ",0.6]
[" ","98.20.00","Private husholdningers produktion af tjenesteydelser til eget brug, i.a.n.","Private husholdninger med ansat medhjælp ",0.6]
[" ","99.00.20","Ekstraterritoriale organisationer og organer","Internationale organisationer og ambassader ",0]
[" ","99.99.99","Uoplyst","Uoplyst aktivitet",0]

{"sheet":"DB Koder Danmark old db07","index":3,"n_rows":744,"n_cols":11,"rows_kept":744,"cut":false,"hidden":true,"merged":[]}
["NB","DB25","Titler","127 std","Præmiereduktion","Do not include","Ny verdi",null,"DB07","DB25","DB07"]
[" ","2000-11-01","Dyrkning af korn (undtagen ris), bælgfrugter og olieholdige frø","Landbrug og gartneri",0,null,{"$f":"IFERROR(INDEX($I$2:$K$737,MATCH(B2,$K$2:$K$737,0),2),B2)","v":"01.11.00"},null,"01.11.00","01.11.00","2000-11-01"]
[" ","2000-12-01","Dyrkning af ris","Landbrug og gartneri",0,null,{"$f":"IFERROR(INDEX($I$2:$K$737,MATCH(B3,$K$2:$K$737,0),2),B3)","v":"01.12.00"},null,"01.12.00","01.12.00","2000-12-01"]
[" ","01.13.00","Dyrkning af grøntsager og meloner, rødder og rodknolde","Landbrug og gartneri",0,null,"01.13.00",null,"01.13.00","01.13.00","01.13.00"]
[" ","01.14.00","Dyrkning af sukkerrør","Landbrug og gartneri",0,null,"01.14.00",null,"01.14.00","01.14.00","01.14.00"]
[" ","01.15.00","Dyrkning af tobak","Landbrug og gartneri",0,null,"01.15.00",null,"01.15.00","01.15.00","01.15.00"]
[" ","01.16.00","Dyrkning af tekstilplanter","00.16.01",0,null,"01.16.00",null,"01.16.00","01.16.00","01.16.00"]
[" ","01.19.00","Dyrkning af andre etårige afgrøder","Landbrug og gartneri",0,null,"01.19.00",null,"01.19.00","01.19.00","01.19.00"]
[" ","01.21.00","Dyrkning af druer","Landbrug og gartneri",0,null,"01.21.00",null,"01.21.00","01.21.00","01.21.00"]
[" ","01.22.00","Dyrkning af tropiske og subtropiske frugter","Landbrug og gartneri",0,null,"01.22.00",null,"01.22.00","01.22.00","01.22.00"]
[" ","01.23.00","Dyrkning af citrusfrugter","Landbrug og gartneri",0,null,"01.23.00",null,"01.23.00","01.23.00","01.23.00"]
[" ","01.24.00","Dyrkning af kernefrugter og stenfrugter","Landbrug og gartneri",0,null,"01.24.00",null,"01.24.00","01.24.00","01.24.00"]
[" ","01.25.00","Dyrkning af andre træfrugter, bær og nødder","Landbrug og gartneri",0,null,"01.25.00",null,"01.25.00","01.25.00","01.25.00"]
[" ","01.26.00","Dyrkning af olieholdige frugter","Landbrug og gartneri",0,null,"01.26.00",null,"01.26.00","01.26.00","01.26.00"]
[" ","01.27.00","Dyrkning af planter til fremstilling af drikkevarer","Landbrug og gartneri",0,null,"01.27.00",null,"01.27.00","01.27.00","01.27.00"]
[" ","01.28.00","Dyrkning af krydderiplanter, aromaplanter og lægeplanter","Landbrug og gartneri",0,null,"01.28.00",null,"01.28.00","01.28.00","01.28.00"]
[" ","01.29.00","Dyrkning af andre flerårige afgrøder","Landbrug og gartneri",0,null,"01.29.00",null,"01.29.00","01.29.00","01.29.00"]
[" ","01.30.00","Planteformering","Landbrug og gartneri",0,null,"01.30.00",null,"01.30.00","01.30.00","01.30.00"]
[" ","01.41.00","Avl af malkekvæg","Landbrug og gartneri",0,null,"01.41.00",null,"01.41.00","01.41.00","01.41.00"]
[" ","01.42.00","Avl af andet kvæg og bøfler","Landbrug og gartneri",0,null,"01.42.00",null,"01.42.00","01.42.00","01.42.00"]
[" ","01.43.00","Avl af heste og dyr af hestefamilien","Landbrug og gartneri",0,null,"01.43.00",null,"01.43.00","01.43.00","01.43.00"]
[" ","01.44.00","Avl af kameler og dyr af kamelfamilien","Landbrug og gartneri",0,null,"01.44.00",null,"01.44.00","01.44.00","01.44.00"]
[" ","01.45.00","Avl af får og geder","Landbrug og gartneri",0,null,"01.45.00",null,"01.45.00","01.45.00","01.45.00"]
[" ","01.46.10","Avl af smågrise","Landbrug og gartneri",0,null,"01.46.10",null,"01.46.10","01.46.10","01.46.10"]
[" ","01.46.20","Produktion af slagtesvin","Landbrug og gartneri",0,null,"01.46.20",null,"01.46.20","01.46.20","01.46.20"]
[" ","01.47.00","Fjerkræavl","Landbrug og gartneri",0,null,"01.47.00",null,"01.47.00","01.47.00","01.47.00"]
[" ","01.49.10","Kenneler","Landbrug og gartneri",0,null,"01.48.00",null,"01.49.10","01.48.00","01.49.10"]
[" ","01.49.20","Avl af pelsdyr mv.","Landbrug og gartneri",0,null,"01.48.00",null,"01.49.20","01.48.00","01.49.20"]
[" ","01.50.00","Blandet drift","Landbrug og gartneri",0,null,"01.50.00",null,"01.50.00","01.50.00","01.50.00"]
[" ","01.61.00","Serviceydelser i forbindelse med planteavl","Landbrug og gartneri",0,null,"01.61.00",null,"01.61.00","01.61.00","01.61.00"]
[" ","01.62.00","Serviceydelser i forbindelse med husdyravl","Landbrug og gartneri",0,null,"01.62.00",null,"01.62.00","01.62.00","01.62.00"]
[" ","01.63.00","Forarbejdning af afgrøder efter høst","Landbrug og gartneri",0,null,"01.63.00",null,"01.63.00","01.63.00","01.63.00"]
[" ","01.64.00","Forarbejdning af frø/sædekorn til udsæd","Landbrug og gartneri",0,null,"01.63.00",null,"01.64.00","01.63.00","01.64.00"]
[" ","01.70.00","Jagt, fældefangst og serviceydelser i forbindelse hermed","Landbrug og gartneri",0,null,"01.70.00",null,"01.70.00","01.70.00","01.70.00"]
[" ","2000-10-02","Dyrkning af træer og andre skovbrugsaktiviteter","Skovbrug",0,null,"02.10.00",null,"02.10.00","02.10.00","2000-10-02"]
[" ","02.20.00","Skovning","Skovbrug",0,null,"02.20.00",null,"02.20.00","02.20.00","02.20.00"]
[" ","02.30.00","Indsamling af vildtvoksende forstmateriale undtagen træer","Skovbrug",0,null,"02.30.00",null,"02.30.00","02.30.00","02.30.00"]
[" ","02.40.00","Serviceydelser til skovbrug","Skovbrug",0,null,"02.40.00",null,"02.40.00","02.40.00","02.40.00"]
[" ","2000-11-03","Havfiskeri","Fiskeri",0,null,"03.11.00",null,"03.11.00","03.11.00","2000-11-03"]
[" ","2000-12-03","Ferskvandsfiskeri","Fiskeri",0,null,"03.12.00",null,"03.12.00","03.12.00","2000-12-03"]
[" ","03.21.00","Havbrug","Fiskeri",0,null,"03.21.00",null,"03.21.00","03.21.00","03.21.00"]
[" ","03.22.00","Ferskvandsbrug","Fiskeri",0,null,"03.22.00",null,"03.22.00","03.22.00","03.22.00"]
[" ","2000-10-05","Indvinding af stenkul","Indvinding af grus og sten",0,null,"05.10.00",null,"05.10.00","05.10.00","2000-10-05"]
[" ","05.20.00","Indvinding af brunkul","Indvinding af grus og sten",0,null,"05.20.00",null,"05.20.00","05.20.00","05.20.00"]
[" ","2000-10-06","Indvinding af råolie","Indvinding af olie og gas",0,null,"06.10.00",null,"06.10.00","06.10.00","2000-10-06"]
[" ","06.20.00","Indvinding af naturgas","Indvinding af olie og gas",0,null,"06.20.00",null,"06.20.00","06.20.00","06.20.00"]
[" ","2000-10-07","Brydning af jernmalm","Indvinding af grus og sten",0,null,"07.10.00",null,"07.10.00","07.10.00","2000-10-07"]
[" ","07.21.00","Brydning af uran- og thoriummalme","Indvinding af grus og sten",0,null,"07.21.00",null,"07.21.00","07.21.00","07.21.00"]
[" ","07.29.00","Brydning af andre ikke-jernholdige metalmalme","Indvinding af grus og sten",0,null,"07.29.00",null,"07.29.00","07.29.00","07.29.00"]
[" ","2000-11-08","Brydning af pynte- og bygningssten, kalksten, gips, kridt og skifer","Indvinding af grus og sten",0,null,"08.11.00",null,"08.11.00","08.11.00","2000-11-08"]
[" ","2000-12-08","Grus- og sandgravning; indvinding af ler og kaolin","Indvinding af grus og sten",0,null,"08.12.00",null,"08.12.00","08.12.00","2000-12-08"]
[" ","08.91.00","Indvinding af mineraler til fremstilling af kemiske produkter og gødningsstoffer","Indvinding af grus og sten",0,null,"08.91.00",null,"08.91.00","08.91.00","08.91.00"]
[" ","08.92.00","Indvinding og agglomerering af tørv","Indvinding af grus og sten",0,null,"08.92.00",null,"08.92.00","08.92.00","08.92.00"]
[" ","08.93.00","Saltindvinding","Indvinding af grus og sten",0,null,"08.93.00",null,"08.93.00","08.93.00","08.93.00"]
[" ","08.99.00","Anden råstofindvinding i.a.n.","Indvinding af grus og sten",0,null,"08.99.00",null,"08.99.00","08.99.00","08.99.00"]
[" ","2000-10-09","Serviceydelser i forbindelse med indvinding af råolie og naturgas","Service til råstofindvinding",0,null,"09.10.00",null,"09.10.00","09.10.00","2000-10-09"]
[" ","09.90.00","Serviceydelser i forbindelse med anden råstofindvinding","Service til råstofindvinding",0,null,"09.90.00",null,"09.90.00","09.90.00","09.90.00"]
[" ","2010-11-10","Forarbejdning af svinekød","Slagterier",0,null,"10.11.10",null,"10.11.10","10.11.10","2010-11-10"]
[" ","1990-11-10","Forarbejdning af andet kød","Slagterier",0,null,"10.11.90",null,"10.11.90","10.11.90","1990-11-10"]
[" ","2000-12-10","Forarbejdning og konservering af fjerkrækød","Slagterier",0,null,"10.12.00",null,"10.12.00","10.12.00","2000-12-10"]
[" ","10.13.00","Produktion af kød- og fjerkrækødprodukter","Slagterier",0,null,"10.13.00",null,"10.13.00","10.13.00","10.13.00"]
[" ","10.20.10","Fremstilling af fiskemel","Fiskeindustri",0,null,"10.20.10",null,"10.20.10","10.20.10","10.20.10"]
[" ","10.20.20","Forarbejdning og konservering af fisk, krebsdyr og bløddyr, undtagen fiskemel","Fiskeindustri",0,null,"10.20.20",null,"10.20.20","10.20.20","10.20.20"]
[" ","10.31.00","Forarbejdning og konservering af kartofler","Anden fødevareindustri",0,null,"10.31.00",null,"10.31.00","10.31.00","10.31.00"]
[" ","10.32.00","Fremstilling af frugt- og grøntsagssaft","Anden fødevareindustri",0,null,"10.32.00",null,"10.32.00","10.32.00","10.32.00"]
[" ","10.39.00","Anden forarbejdning og konservering af frugt og grøntsager","Anden fødevareindustri",0,null,"10.39.00",null,"10.39.00","10.39.00","10.39.00"]
[" ","10.41.00","Fremstilling af olier og fedtstoffer","Anden fødevareindustri",0,null,{"$f":"IFERROR(INDEX($I$2:$K$737,MATCH(B67,$K$2:$K$737,0),2),B67)","v":"10.41.00"},null,"10.41.00","10.41.00","10.41.00"]
[" ","10.42.00","Fremstilling af margarine o.l. spiselige fedtstoffer","Anden fødevareindustri",0,null,"10.42.00",null,"10.42.00","10.42.00","10.42.00"]
[" ","10.51.00","Mejerier samt ostefremstilling","Mejerier",0,null,"10.51.00",null,"10.51.00","10.51.00","10.51.00"]
[" ","10.52.00","Fremstilling af konsumis","Mejerier",0,null,"10.52.00",null,"10.52.00","10.52.00","10.52.00"]
[" ","10.61.00","Fremstilling af mølleriprodukter","Bagerier, brødfabrikker mv.",0,null,"10.61.00",null,"10.61.00","10.61.00","10.61.00"]
[" ","10.62.00","Fremstilling af stivelse og stivelsesprodukter","Bagerier, brødfabrikker mv.",0,null,"10.62.00",null,"10.62.00","10.62.00","10.62.00"]
[" ","10.71.10","Industriel fremstilling af brød; kager mv.","Bagerier, brødfabrikker mv.",0,null,"10.71.10",null,"10.71.10","10.71.10","10.71.10"]
[" ","10.71.20","Fremstilling af friske bageriprodukter","Bagerier, brødfabrikker mv.",0,null,"10.71.20",null,"10.71.20","10.71.20","10.71.20"]
[" ","10.72.00","Fremstilling af tvebakker og kiks; fremstilling af konserverede kager, tærter mv.","Bagerier, brødfabrikker mv.",0,null,"10.72.00",null,"10.72.00","10.72.00","10.72.00"]
[" ","10.73.00","Fremstilling af makaroni, nudler, couscous og lignende dejvarer","Bagerier, brødfabrikker mv.",0,null,"10.73.00",null,"10.73.00","10.73.00","10.73.00"]
[" ","10.81.00","Fremstilling af sukker","Anden fødevareindustri",0,null,"10.81.00",null,"10.81.00","10.81.00","10.81.00"]
[" ","10.82.00","Fremstilling af kakao, chokolade og sukkervarer","Anden fødevareindustri",0,null,"10.82.00",null,"10.82.00","10.82.00","10.82.00"]
[" ","10.83.00","Forarbejdning af te og kaffe","Anden fødevareindustri",0,null,"10.83.00",null,"10.83.00","10.83.00","10.83.00"]
[" ","10.84.00","Fremstilling af smagspræparater og krydderier","Anden fødevareindustri",0,null,"10.84.00",null,"10.84.00","10.84.00","10.84.00"]
[" ","10.85.00","Fremstilling af færdigretter","Anden fødevareindustri",0,null,"10.85.00",null,"10.85.00","10.85.00","10.85.00"]
[" ","10.86.00","Fremstilling af homogeniserede produkter og diætmad","Anden fødevareindustri",0,null,"10.86.00",null,"10.86.00","10.86.00","10.86.00"]
[" ","10.89.00","Fremstilling af andre fødevarer i.a.n.","Anden fødevareindustri",0,null,"10.89.00",null,"10.89.00","10.89.00","10.89.00"]
[" ","10.91.00","Fremstilling af færdige foderblandinger til landbrugsdyr","Anden fødevareindustri",0,null,"10.91.00",null,"10.91.00","10.91.00","10.91.00"]
[" ","10.92.00","Fremstilling af færdige foderblandinger til kæledyr","Anden fødevareindustri",0,null,"10.92.00",null,"10.92.00","10.92.00","10.92.00"]
[" ","2000-01-11","Destillation, rektifikation og blanding af alkohol","Drikkevareindustri",0,null,"11.01.00",null,"11.01.00","11.01.00","2000-01-11"]
[" ","2000-02-11","Fremstilling af vin af druer","Drikkevareindustri",0,null,"11.02.00",null,"11.02.00","11.02.00","2000-02-11"]
[" ","2000-03-11","Fremstilling af cider og anden frugtvin","Drikkevareindustri",0,null,"11.03.00",null,"11.03.00","11.03.00","2000-03-11"]
[" ","2000-04-11","Fremstilling af andre ikke-destillerede gærede drikkevarer","Drikkevareindustri",0,null,"11.04.00",null,"11.04.00","11.04.00","2000-04-11"]
[" ","2000-05-11","Fremstilling af øl","Drikkevareindustri",0,null,"11.05.00",null,"11.05.00","11.05.00","2000-05-11"]
[" ","2000-06-11","Fremstilling af malt","Drikkevareindustri",0,null,"11.06.00",null,"11.06.00","11.06.00","2000-06-11"]
[" ","2000-07-11","Fremstilling af læskedrikke; fremstilling af mineralvand og andet vand på flaske","Drikkevareindustri",0,null,"11.07.00",null,"11.07.00","11.07.00","2000-07-11"]
[" ","12.00.00","Fremstilling af tobaksprodukter","Tobaksindustri",0,null,"12.00.00",null,"12.00.00","12.00.00","12.00.00"]
[" ","2000-10-13","Forbehandling og spinding af tekstilfibre","Tekstilindustri",0,null,"13.10.00",null,"13.10.00","13.10.00","2000-10-13"]
[" ","13.20.00","Vævning af tekstiler","Tekstilindustri",0,null,"13.20.00",null,"13.20.00","13.20.00","13.20.00"]
[" ","13.30.00","Efterbehandling af tekstiler","Tekstilindustri",0,null,"13.30.00",null,"13.30.00","13.30.00","13.30.00"]
[" ","13.91.00","Fremstilling af trikotagestoffer","Tekstilindustri",0,null,"13.91.00",null,"13.91.00","13.91.00","13.91.00"]
[" ","13.92.10","Fremstilling af boligtekstiler","Tekstilindustri",0,null,"13.92.00",null,"13.92.10","13.92.00","13.92.10"]
[" ","13.92.20","Fremstilling af færdige tekstilvarer undtagen boligtekstiler og beklædningsartikler","Tekstilindustri",0,null,"13.96.00",null,"13.92.20","13.96.00","13.92.20"]
[" ","13.93.00","Fremstilling af tæpper","Tekstilindustri",0,null,"13.93.00",null,"13.93.00","13.93.00","13.93.00"]
[" ","13.94.00","Fremstilling af reb, tovværk, sejlgarn og netstoffer","Tekstilindustri",0,null,"13.94.00",null,"13.94.00","13.94.00","13.94.00"]
[" ","13.95.00","Fremstilling af fiberdug og varer af fiberdug undtagen beklædningsartikler","Tekstilindustri",0,null,"13.95.00",null,"13.95.00","13.95.00","13.95.00"]
[" ","13.96.00","Fremstilling af andre tekniske og industrielle tekstiler","Tekstilindustri",0,null,"13.96.00",null,"13.96.00","13.96.00","13.96.00"]
[" ","13.99.00","Fremstilling af andre tekstiler i.a.n.","Tekstilindustri",0,null,"13.99.00",null,"13.99.00","13.99.00","13.99.00"]
[" ","2000-11-14","Fremstilling af beklædningsartikler af læder","Beklædningsindustri",0,null,"14.24.00",null,"14.11.00","14.24.00","2000-11-14"]
[" ","2000-12-14","Fremstilling af arbejdsbeklædning","Beklædningsindustri",0,null,"14.23.00",null,"14.12.00","14.23.00","2000-12-14"]
[" ","14.13.00","Fremstilling af anden yderbeklædning","Beklædningsindustri",0,null,"14.21.00",null,"14.13.00","14.21.00","14.13.00"]
[" ","14.14.00","Fremstilling af underbeklædning","Beklædningsindustri",0,null,"14.22.00",null,"14.14.00","14.22.00","14.14.00"]
[" ","14.19.00","Fremstilling af andre beklædningsartikler samt tilbehør","Beklædningsindustri",0,null,"14.29.00",null,"14.19.00","14.29.00","14.19.00"]
[" ","14.20.00","Fremstilling af varer af pelsskind","Beklædningsindustri",0,null,"14.24.00",null,"14.20.00","14.24.00","14.20.00"]
[" ","14.31.00","Fremstilling af strikkede og hæklede strømpevarer","Beklædningsindustri",0,null,"14.10.00",null,"14.31.00","14.10.00","14.31.00"]
[" ","14.39.00","Fremstilling af andre strikkede og hæklede beklædningsartikler","Beklædningsindustri",0,null,"14.10.00",null,"14.39.00","14.10.00","14.39.00"]
[" ","2000-11-15","Garvning og beredning af læder; beredning og farvning af pelsskind","Læder- og fodtøjsindustri",0,null,"15.11.00",null,"15.11.00","15.11.00","2000-11-15"]
[" ","2000-12-15","Fremstilling af tasker, kufferter, sadelmagervarer mv.","Læder- og fodtøjsindustri",0,null,"15.12.00",null,"15.12.00","15.12.00","2000-12-15"]
[" ","15.20.00","Fremstilling af fodtøj","Læder- og fodtøjsindustri",0,null,"15.20.00",null,"15.20.00","15.20.00","15.20.00"]
[" ","2000-10-16","Udsavning og høvling af træ","Træindustri",0,null,"16.11.00",null,"16.10.00","16.11.00","2000-10-16"]
[" ","16.21.00","Fremstilling af finerplader og træbaserede plader","Træindustri",0,null,"16.21.00",null,"16.21.00","16.21.00","16.21.00"]
[" ","16.22.00","Fremstilling af sammensatte parketstave","Træindustri",0,null,"16.22.00",null,"16.22.00","16.22.00","16.22.00"]
[" ","16.23.00","Fremstilling af bygningstømmer og snedkeriartikler i øvrigt","Træindustri",0,null,"16.23.00",null,"16.23.00","16.23.00","16.23.00"]
[" ","16.24.00","Fremstilling af træemballage","Træindustri",0,null,"16.24.00",null,"16.24.00","16.24.00","16.24.00"]
[" ","16.29.00","Fremstilling af andre træprodukter; fremstilling af varer af kork, strå og flettematerialer","Træindustri",0,null,"16.28.00",null,"16.29.00","16.28.00","16.29.00"]
[" ","2000-11-17","Fremstilling af papirmasse","Papirindustri",0,null,"17.11.00",null,"17.11.00","17.11.00","2000-11-17"]
[" ","2000-12-17","Fremstilling af papir og pap","Papirindustri",0,null,"17.12.00",null,"17.12.00","17.12.00","2000-12-17"]
[" ","17.21.00","Fremstilling af bølgepap og pap og emballage af papir og pap","Papirindustri",0,null,"17.21.00",null,"17.21.00","17.21.00","17.21.00"]
[" ","17.22.00","Fremstilling af husholdningsartikler og hygiejneartikler samt toiletartikler af papir og pap","Papirindustri",0,null,"17.22.00",null,"17.22.00","17.22.00","17.22.00"]
[" ","17.23.00","Fremstilling af kontorartikler af papir","Papirindustri",0,null,"17.23.00",null,"17.23.00","17.23.00","17.23.00"]
[" ","17.24.00","Fremstilling af tapet","Papirindustri",0,null,"17.24.00",null,"17.24.00","17.24.00","17.24.00"]
[" ","17.29.00","Fremstilling af andre papir- og papvarer","Papirindustri",0,null,"17.25.00",null,"17.29.00","17.25.00","17.29.00"]
[" ","2000-11-18","Trykning af dagblade","Trykkerier mv.",0,null,"18.11.00",null,"18.11.00","18.11.00","2000-11-18"]
[" ","2000-12-18","Anden trykning","Trykkerier mv.",0,null,"18.12.00",null,"18.12.00","18.12.00","2000-12-18"]
[" ","18.13.00","Prepress- og premedia-arbejde","Trykkerier mv.",0,null,{"$f":"IFERROR(INDEX($I$2:$K$737,MATCH(B131,$K$2:$K$737,0),2),B131)","v":"18.13.00"},null,"18.13.00","18.13.00","18.13.00"]
[" ","18.14.00","Bogbinding og lignende serviceydelser","Trykkerier mv.",0,null,"18.14.00",null,"18.14.00","18.14.00","18.14.00"]
[" ","18.20.00","Reproduktion af indspillede medier","Trykkerier mv.",0,null,"18.20.00",null,"18.20.00","18.20.00","18.20.00"]
[" ","2000-10-19","Fremstilling af koks mv.","Olieraffinaderier mv. ",0,null,"19.10.00",null,"19.10.00","19.10.00","2000-10-19"]
[" ","19.20.00","Fremstilling af raffinerede mineralolieprodukter","Olieraffinaderier mv. ",0,null,"19.20.00",null,"19.20.00","19.20.00","19.20.00"]
[" ","2000-11-20","Fremstilling af industrigasser","Fremst. af basiskemikalier",0,null,"20.11.00",null,"20.11.00","20.11.00","2000-11-20"]
[" ","2000-12-20","Fremstilling af farvestoffer og pigmenter","Fremst. af basiskemikalier",0,null,"20.12.00",null,"20.12.00","20.12.00","2000-12-20"]
[" ","20.13.00","Fremstilling af andre uorganiske basiskemikalier","Fremst. af basiskemikalier",0,null,"20.13.00",null,"20.13.00","20.13.00","20.13.00"]
[" ","20.14.00","Fremstilling af andre organiske basiskemikalier","Fremst. af basiskemikalier",0,null,"20.14.00",null,"20.14.00","20.14.00","20.14.00"]
[" ","20.15.00","Fremstilling af gødningsstoffer og nitrogenprodukter","Fremst. af basiskemikalier",0,null,"20.15.00",null,"20.15.00","20.15.00","20.15.00"]
[" ","20.16.00","Fremstilling af plast i ubearbejdet form","Fremst. af basiskemikalier",0,null,"20.16.00",null,"20.16.00","20.16.00","20.16.00"]
[" ","20.17.00","Fremstilling af syntetisk gummi i ubearbejdet form","Fremst. af basiskemikalier",0,null,"20.17.00",null,"20.17.00","20.17.00","20.17.00"]
[" ","20.20.00","Fremstilling af pesticider og andre agrokemiske produkter","Fremst. af basiskemikalier",0,null,"20.20.00",null,"20.20.00","20.20.00","20.20.00"]
[" ","20.30.00","Fremstilling af maling, lak og lignende overfladebehandlingsmidler, trykfarver samt tætningsmaterialer","Fremst. af maling og sæbe mv.",0,null,"20.30.00",null,"20.30.00","20.30.00","20.30.00"]
[" ","20.41.00","Fremstilling af sæbe, rengørings- og rensemidler samt poleremidler","Fremst. af maling og sæbe mv.",0,null,"20.41.00",null,"20.41.00","20.41.00","20.41.00"]
[" ","20.42.00","Fremstilling af parfume, hårshampoo, tandpasta mv.","Fremst. af maling og sæbe mv.",0,null,"20.42.00",null,"20.42.00","20.42.00","20.42.00"]
[" ","20.51.00","Fremstilling af sprængstoffer","Fremst. af maling og sæbe mv.",0,null,"20.59.00",null,"20.51.00","20.59.00","20.51.00"]
[" ","20.52.00","Fremstilling af lim","Fremst. af maling og sæbe mv.",0,null,"20.59.00",null,"20.52.00","20.59.00","20.52.00"]
[" ","20.53.00","Fremstilling af æteriske olier","Fremst. af maling og sæbe mv.",0,null,"20.59.00",null,"20.53.00","20.59.00","20.53.00"]
[" ","20.59.00","Fremstilling af andre kemiske produkter i.a.n.","Fremst. af maling og sæbe mv.",0,null,"20.59.00",null,"20.59.00","20.59.00","20.59.00"]
[" ","20.60.00","Fremstilling af kemofibre","Fremst. af maling og sæbe mv.",0,null,"20.60.00",null,"20.60.00","20.60.00","20.60.00"]
[" ","2000-10-21","Fremstilling af farmaceutiske råvarer","Medicinalindustri",0,null,"21.10.00",null,"21.10.00","21.10.00","2000-10-21"]
[" ","21.20.00","Fremstilling af farmaceutiske præparater","Medicinalindustri",0,null,"21.20.00",null,"21.20.00","21.20.00","21.20.00"]
[" ","2000-11-22","Fremstilling af gummidæk og gummislanger; vulkanisering af dæk","Plast- og gummiindustri",0,null,"22.11.00",null,"22.11.00","22.11.00","2000-11-22"]
[" ","22.19.00","Fremstilling af andre gummiprodukter","Plast- og gummiindustri",0,null,"22.12.00",null,"22.19.00","22.12.00","22.19.00"]
[" ","22.21.00","Fremstilling af plader, ark, rør og slanger samt profiler af plast","Plast- og gummiindustri",0,null,"22.21.00",null,"22.21.00","22.21.00","22.21.00"]
[" ","22.22.00","Fremstilling af plastemballage","Plast- og gummiindustri",0,null,"22.22.00",null,"22.22.00","22.22.00","22.22.00"]
[" ","22.23.00","Fremstilling af bygningsartikler af plast","Plast- og gummiindustri",0,null,"22.24.00",null,"22.23.00","22.24.00","22.23.00"]
[" ","22.29.00","Fremstilling af andre plastprodukter","Plast- og gummiindustri",0,null,"22.26.00",null,"22.29.00","22.26.00","22.29.00"]
[" ","2000-11-23","Fremstilling af planglas","Glasindustri og keramisk industri",0,null,"23.11.00",null,"23.11.00","23.11.00","2000-11-23"]
[" ","2000-12-23","Formning og forarbejdning af planglas","Glasindustri og keramisk industri",0,null,"23.12.00",null,"23.12.00","23.12.00","2000-12-23"]
[" ","23.13.00","Fremstilling af flasker, drikkeglas mv.","Glasindustri og keramisk industri",0,null,"23.13.00",null,"23.13.00","23.13.00","23.13.00"]
[" ","23.14.00","Fremstilling af glasfiber","Glasindustri og keramisk industri",0,null,"23.14.00",null,"23.14.00","23.14.00","23.14.00"]
[" ","23.19.00","Fremstilling og bearbejdning af andet glas (herunder teknisk glas)","Glasindustri og keramisk industri",0,null,"23.15.00",null,"23.19.00","23.15.00","23.19.00"]
[" ","23.20.00","Fremstilling af ildfaste produkter","Glasindustri og keramisk industri",0,null,"23.20.00",null,"23.20.00","23.20.00","23.20.00"]
[" ","23.31.00","Fremstilling af keramiske teglsten og gulvfliser","Betonindustri og teglværker",0,null,"23.31.00",null,"23.31.00","23.31.00","23.31.00"]
[" ","23.32.00","Fremstilling af mursten, teglsten og byggematerialer af brændt ler","Betonindustri og teglværker",0,null,"23.32.00",null,"23.32.00","23.32.00","23.32.00"]
[" ","23.41.00","Fremstilling af keramiske husholdningsartikler og pyntegenstande","Glasindustri og keramisk industri",0,null,"23.41.00",null,"23.41.00","23.41.00","23.41.00"]
[" ","23.42.00","Fremstilling af keramiske sanitetsartikler","Glasindustri og keramisk industri",0,null,"23.42.00",null,"23.42.00","23.42.00","23.42.00"]
[" ","23.43.00","Fremstilling af keramiske isolatorer og isoleringsdele","Glasindustri og keramisk industri",0,null,"23.43.00",null,"23.43.00","23.43.00","23.43.00"]
[" ","23.44.00","Fremstilling af andre keramiske produkter til teknisk brug","Glasindustri og keramisk industri",0,null,"23.44.00",null,"23.44.00","23.44.00","23.44.00"]
[" ","23.49.00","Fremstilling af andre keramiske produkter","Glasindustri og keramisk industri",0,null,"23.45.00",null,"23.49.00","23.45.00","23.49.00"]
[" ","23.51.00","Fremstilling af cement","Betonindustri og teglværker",0,null,"23.51.00",null,"23.51.00","23.51.00","23.51.00"]
[" ","23.52.00","Fremstilling af kalk og gips","Betonindustri og teglværker",0,null,"23.52.00",null,"23.52.00","23.52.00","23.52.00"]
[" ","23.61.00","Fremstilling af byggematerialer af beton","Betonindustri og teglværker",0,null,"23.61.00",null,"23.61.00","23.61.00","23.61.00"]
[" ","23.62.00","Fremstilling af byggematerialer af gips","Betonindustri og teglværker",0,null,"23.62.00",null,"23.62.00","23.62.00","23.62.00"]
[" ","23.63.00","Fremstilling af færdigblandet beton","Betonindustri og teglværker",0,null,"23.63.00",null,"23.63.00","23.63.00","23.63.00"]
[" ","23.64.00","Fremstilling af mørtel","Betonindustri og teglværker",0,null,"23.64.00",null,"23.64.00","23.64.00","23.64.00"]
[" ","23.65.00","Fremstilling af fibercement","Betonindustri og teglværker",0,null,"23.65.00",null,"23.65.00","23.65.00","23.65.00"]
[" ","23.69.00","Fremstilling af andre beton-, gips- og cementprodukter","Betonindustri og teglværker",0,null,"23.66.00",null,"23.69.00","23.66.00","23.69.00"]
[" ","23.70.00","Tilhugning, tilskæring og færdigbearbejdning af sten","Betonindustri og teglværker",0,null,"23.70.00",null,"23.70.00","23.70.00","23.70.00"]
[" ","23.91.00","Fremstilling af slibemidler","Betonindustri og teglværker",0,null,"23.91.00",null,"23.91.00","23.91.00","23.91.00"]
[" ","23.99.10","Fremstilling af asfalt og tagpap","Betonindustri og teglværker",0,null,"23.99.10",null,"23.99.10","23.99.10","23.99.10"]
[" ","23.99.90","Fremstilling af andre ikke-metalholdige mineralske produkter i.a.n.","Betonindustri og teglværker",0,null,"23.99.90",null,"23.99.90","23.99.90","23.99.90"]
[" ","2000-10-24","Fremstilling af råjern og råstål samt jernlegeringer","Fremst. af metal",0,null,"24.10.00",null,"24.10.00","24.10.00","2000-10-24"]
[" ","24.20.00","Fremstilling af rør og hule profiler og tilhørende fittings af stål","Fremst. af metal",0,null,"24.20.00",null,"24.20.00","24.20.00","24.20.00"]
[" ","24.31.00","Fremstilling af stænger ved koldtrækning","Fremst. af metal",0,null,"24.31.00",null,"24.31.00","24.31.00","24.31.00"]
[" ","24.32.00","Fremstilling af stålbånd ved koldvalsning","Fremst. af metal",0,null,"24.32.00",null,"24.32.00","24.32.00","24.32.00"]
[" ","24.33.00","Koldbehandling","Fremst. af metal",0,null,"24.33.00",null,"24.33.00","24.33.00","24.33.00"]
[" ","24.34.00","Fremstilling af tråd ved koldtrækning","Fremst. af metal",0,null,"24.34.00",null,"24.34.00","24.34.00","24.34.00"]
[" ","24.41.00","Fremstilling af ædelmetaller","Fremst. af metal",0,null,"24.41.00",null,"24.41.00","24.41.00","24.41.00"]
[" ","24.42.00","Fremstilling af aluminium","Fremst. af metal",0,null,"24.42.00",null,"24.42.00","24.42.00","24.42.00"]
[" ","24.43.00","Fremstilling af bly, zink og tin","Fremst. af metal",0,null,"24.43.00",null,"24.43.00","24.43.00","24.43.00"]
[" ","24.44.00","Fremstilling af kobber","Fremst. af metal",0,null,"24.44.00",null,"24.44.00","24.44.00","24.44.00"]
[" ","24.45.00","Anden fremstilling af ikke-jernholdige metaller","Fremst. af metal",0,null,{"$f":"IFERROR(INDEX($I$2:$K$737,MATCH(B195,$K$2:$K$737,0),2),B195)","v":"24.45.00"},null,"24.45.00","24.45.00","24.45.00"]
[" ","24.46.00","Oparbejdning af nukleart brændsel","Fremst. af metal",0,null,"24.46.00",null,"24.46.00","24.46.00","24.46.00"]
[" ","24.51.00","Støbning af jernprodukter","Fremst. af metal",0,null,"24.51.00",null,"24.51.00","24.51.00","24.51.00"]
[" ","24.52.00","Støbning af stålprodukter","Fremst. af metal",0,null,"24.52.00",null,"24.52.00","24.52.00","24.52.00"]
[" ","24.53.00","Støbning af letmetalprodukter","Fremst. af metal",0,null,"24.53.00",null,"24.53.00","24.53.00","24.53.00"]
[" ","24.54.00","Støbning af andre ikke-jernholdige metalprodukter","Fremst. af metal",0,null,"24.54.00",null,"24.54.00","24.54.00","24.54.00"]
[" ","2000-11-25","Fremstilling af metalkonstruktioner og dele heraf","Metalvareindustri",0,null,"25.11.00",null,"25.11.00","25.11.00","2000-11-25"]
[" ","2000-12-25","Fremstilling af døre og vinduer af metal","Metalvareindustri",0,null,"25.12.00",null,"25.12.00","25.12.00","2000-12-25"]
[" ","25.21.00","Fremstilling af radiatorer og kedler til centralvarmeanlæg","Metalvareindustri",0,null,"25.21.00",null,"25.21.00","25.21.00","25.21.00"]
[" ","25.29.00","Fremstilling af andre tanke og beholdere af metal","Metalvareindustri",0,null,"25.22.00",null,"25.29.00","25.22.00","25.29.00"]
[" ","25.30.00","Fremstilling af dampkedler undtagen centralvarmekedler","Metalvareindustri",0,null,"25.21.00",null,"25.30.00","25.21.00","25.30.00"]
[" ","25.40.00","Fremstilling af våben og ammunition","Metalvareindustri",0,null,"25.30.00",null,"25.40.00","25.30.00","25.40.00"]
[" ","25.50.00","Smedning, presning, sænksmedning og valsning af metal; pulvermetallurgi","Metalvareindustri",0,null,"25.40.00",null,"25.50.00","25.40.00","25.50.00"]
[" ","25.61.00","Overfladebehandling af metal","Metalvareindustri",0,null,"25.51.00",null,"25.61.00","25.51.00","25.61.00"]
[" ","25.62.00","Maskinforarbejdning","Metalvareindustri",0,null,"25.53.00",null,"25.62.00","25.53.00","25.62.00"]
[" ","25.71.00","Fremstilling af bestik, skære- og klipperedskaber","Metalvareindustri",0,null,"25.61.00",null,"25.71.00","25.61.00","25.71.00"]
[" ","25.72.00","Fremstilling af låse og hængsler","Metalvareindustri",0,null,"25.62.00",null,"25.72.00","25.62.00","25.72.00"]
[" ","25.73.00","Fremstilling af håndværktøj","Metalvareindustri",0,null,"25.63.00",null,"25.73.00","25.63.00","25.73.00"]
[" ","25.91.00","Fremstilling af metaltønder og lignende beholdere","Metalvareindustri",0,null,"25.91.00",null,"25.91.00","25.91.00","25.91.00"]
[" ","25.92.00","Fremstilling af letmetalemballage","Metalvareindustri",0,null,"25.92.00",null,"25.92.00","25.92.00","25.92.00"]
[" ","25.93.00","Fremstilling af trådvarer, kæder og fjedre","Metalvareindustri",0,null,"25.93.00",null,"25.93.00","25.93.00","25.93.00"]
[" ","25.94.00","Fremstilling af lukkeanordninger, bolte, skruer og møtrikker","Metalvareindustri",0,null,"25.94.00",null,"25.94.00","25.94.00","25.94.00"]
[" ","25.99.00","Fremstilling af andre færdige metalprodukter i.a.n.","Metalvareindustri",0,null,"25.99.00",null,"25.99.00","25.99.00","25.99.00"]
[" ","2000-11-26","Fremstilling af elektroniske komponenter og plader","Fremst. af computere og kommunikationsudstyr mv. ",0,null,"26.11.00",null,"26.11.00","26.11.00","2000-11-26"]
[" ","2000-12-26","Fremstilling af printplader o.l.","Fremst. af computere og kommunikationsudstyr mv. ",0,null,"26.12.00",null,"26.12.00","26.12.00","2000-12-26"]
[" ","26.20.00","Fremstilling af computere og ydre enheder","Fremst. af computere og kommunikationsudstyr mv. ",0,null,"26.20.00",null,"26.20.00","26.20.00","26.20.00"]
[" ","26.30.00","Fremstilling af kommunikationsudstyr","Fremst. af computere og kommunikationsudstyr mv. ",0,null,"26.30.00",null,"26.30.00","26.30.00","26.30.00"]
[" ","26.40.00","Fremstilling af elektronik til husholdninger","Fremst. af computere og kommunikationsudstyr mv. ",0,null,"26.40.00",null,"26.40.00","26.40.00","26.40.00"]
[" ","26.51.00","Fremstilling af udstyr til måling, afprøvning, navigation og kontrol","Fremst. af andet elektronisk udstyr",0,null,"26.51.00",null,"26.51.00","26.51.00","26.51.00"]
[" ","26.52.00","Fremstilling af ure","Fremst. af andet elektronisk udstyr",0,null,"26.52.00",null,"26.52.00","26.52.00","26.52.00"]
[" ","26.60.10","Fremstilling af høreapparater og dele hertil","Fremst. af andet elektronisk udstyr",0,null,"26.60.10",null,"26.60.10","26.60.10","26.60.10"]
[" ","26.60.90","Fremstilling af bestrålingsudstyr og elektromedicinsk og elektroterapeutisk udstyr","Fremst. af andet elektronisk udstyr",0,null,"26.60.90",null,"26.60.90","26.60.90","26.60.90"]
[" ","26.70.00","Fremstilling af optiske instrumenter og fotografisk udstyr","Fremst. af andet elektronisk udstyr",0,null,"26.70.00",null,"26.70.00","26.70.00","26.70.00"]
[" ","26.80.00","Fremstilling af magnetiske og optiske media","Fremst. af andet elektronisk udstyr",0,null,"26.70.00",null,"26.80.00","26.70.00","26.80.00"]
[" ","2000-11-27","Fremstilling af elektriske motorer, generatorer og transformere","Fremst. af elektriske motorer mv. ",0,null,"27.11.00",null,"27.11.00","27.11.00","2000-11-27"]
[" ","2000-12-27","Fremstilling af elektriske fordelings- og kontrolapparater","Fremst. af elektriske motorer mv. ",0,null,"27.12.00",null,"27.12.00","27.12.00","2000-12-27"]
[" ","27.20.00","Fremstilling af batterier og akkumulatorer","Fremst. af elektriske motorer mv. ",0,null,"27.20.00",null,"27.20.00","27.20.00","27.20.00"]
[" ","27.31.00","Fremstilling af lyslederkabler","Fremst. af ledninger og kabler",0,null,"27.31.00",null,"27.31.00","27.31.00","27.31.00"]
[" ","27.32.00","Fremstilling af andre elektroniske og elektriske ledninger og kabler","Fremst. af ledninger og kabler",0,null,"27.32.00",null,"27.32.00","27.32.00","27.32.00"]
[" ","27.33.00","Fremstilling af tilbehør til ledninger og kabler","Fremst. af ledninger og kabler",0,null,"27.33.00",null,"27.33.00","27.33.00","27.33.00"]
[" ","27.40.00","Fremstilling af elektriske belysningsartikler","Fremst. af husholdningsapparater, lamper mv.",0,null,"27.40.00",null,"27.40.00","27.40.00","27.40.00"]
[" ","27.51.00","Fremstilling af elektriske husholdningsapparater","Fremst. af husholdningsapparater, lamper mv.",0,null,"27.51.00",null,"27.51.00","27.51.00","27.51.00"]
[" ","27.52.00","Fremstilling af ikke-elektriske husholdningsapparater","Fremst. af husholdningsapparater, lamper mv.",0,null,"27.52.00",null,"27.52.00","27.52.00","27.52.00"]
[" ","27.90.00","Fremstilling af andet elektrisk udstyr","Fremst. af husholdningsapparater, lamper mv.",0,null,"27.90.00",null,"27.90.00","27.90.00","27.90.00"]
[" ","2010-11-28","Fremstilling af vindmøller og dele hertil","Fremst. af motorer, vindmøller og pumper",0,null,"28.11.00",null,"28.11.10","28.11.00","2010-11-28"]
[" ","1990-11-28","Fremstilling af motorer og turbiner undtagen motorer til vindmøller, flyvemaskiner, motorkøretøjer og knallerter","Fremst. af motorer, vindmøller og pumper",0,null,"28.11.00",null,"28.11.90","28.11.00","1990-11-28"]
[" ","2000-12-28","Fremstilling af hydraulisk udstyr","Fremst. af motorer, vindmøller og pumper",0,null,"28.12.00",null,"28.12.00","28.12.00","2000-12-28"]
[" ","28.13.00","Fremstilling af andre pumper og kompressorer","Fremst. af motorer, vindmøller og pumper",0,null,"28.13.00",null,"28.13.00","28.13.00","28.13.00"]
[" ","28.14.00","Fremstilling af andre haner og ventiler","Fremst. af motorer, vindmøller og pumper",0,null,"28.14.00",null,"28.14.00","28.14.00","28.14.00"]
[" ","28.15.00","Fremstilling af lejer, tandhjul, tandhjulsudvekslinger og drivelementer","Fremst. af motorer, vindmøller og pumper",0,null,"28.15.00",null,"28.15.00","28.15.00","28.15.00"]
[" ","28.21.00","Fremstilling af ovne, ildsteder og fyringsaggregater","Fremst. af andre maskiner",0,null,"28.21.00",null,"28.21.00","28.21.00","28.21.00"]
[" ","28.22.00","Fremstilling af løfte- og håndteringsudstyr","Fremst. af andre maskiner",0,null,"28.22.00",null,"28.22.00","28.22.00","28.22.00"]
[" ","28.23.00","Fremstilling af kontormaskiner og -udstyr (undtagen computere og ydre enheder)","Fremst. af andre maskiner",0,null,"28.23.00",null,"28.23.00","28.23.00","28.23.00"]
[" ","28.24.00","Fremstilling af motordrevet håndværktøj","Fremst. af andre maskiner",0,null,"28.24.00",null,"28.24.00","28.24.00","28.24.00"]
[" ","28.25.00","Fremstilling af køle- og ventilationsanlæg (til industriel brug)","Fremst. af andre maskiner",0,null,"28.25.00",null,"28.25.00","28.25.00","28.25.00"]
[" ","28.29.00","Fremstilling af andre maskiner til generelle formål i.a.n.","Fremst. af andre maskiner",0,null,"28.29.00",null,"28.29.00","28.29.00","28.29.00"]
[" ","28.30.00","Fremstilling af landbrugs- og skovbrugsmaskiner","Fremst. af andre maskiner",0,null,"28.30.00",null,"28.30.00","28.30.00","28.30.00"]
[" ","28.41.00","Fremstilling af metalforarbejdende værktøjsmaskiner","Fremst. af andre maskiner",0,null,"28.41.00",null,"28.41.00","28.41.00","28.41.00"]
[" ","28.49.00","Fremstilling af andre værktøjsmaskiner","Fremst. af andre maskiner",0,null,"28.42.00",null,"28.49.00","28.42.00","28.49.00"]
[" ","28.91.00","Fremstilling af maskiner til metallurgi","Fremst. af andre maskiner",0,null,"28.91.00",null,"28.91.00","28.91.00","28.91.00"]
[" ","28.92.00","Fremstilling af maskiner til råstofindvindingsindustrien samt bygge og anlæg","Fremst. af andre maskiner",0,null,"28.92.00",null,"28.92.00","28.92.00","28.92.00"]
[" ","28.93.00","Fremstilling af maskiner til føde-, drikke- og tobaksvareindustrien","Fremst. af andre maskiner",0,null,"28.93.00",null,"28.93.00","28.93.00","28.93.00"]
[" ","28.94.00","Fremstilling af maskiner til produktion af tekstiler, beklædningsartikler og læder","Fremst. af andre maskiner",0,null,"28.94.00",null,"28.94.00","28.94.00","28.94.00"]
[" ","28.95.00","Fremstilling af maskiner til produktion af papir og pap","Fremst. af andre maskiner",0,null,"28.95.00",null,"28.95.00","28.95.00","28.95.00"]
[" ","28.96.00","Fremstilling af maskiner til produktion af plast og gummi","Fremst. af andre maskiner",0,null,{"$f":"IFERROR(INDEX($I$2:$K$737,MATCH(B259,$K$2:$K$737,0),2),B259)","v":"28.96.00"},null,"28.96.00","28.96.00","28.96.00"]
[" ","28.99.00","Fremstilling af øvrige maskiner til specielle formål i.a.n.","Fremst. af andre maskiner",0,null,"28.99.00",null,"28.99.00","28.99.00","28.99.00"]
[" ","2000-10-29","Fremstilling af motorkøretøjer","Fremst. af motorkøretøjer og dele hertil",0,null,"29.10.00",null,"29.10.00","29.10.00","2000-10-29"]
[" ","29.20.00","Fremstilling af karosserier til motorkøretøjer; fremstilling af påhængsvogne og sættevogne","Fremst. af motorkøretøjer og dele hertil",0,null,"29.20.00",null,"29.20.00","29.20.00","29.20.00"]
[" ","29.31.00","Fremstilling af elektrisk og elektronisk udstyr til motorkøretøjer","Fremst. af motorkøretøjer og dele hertil",0,null,"29.31.00",null,"29.31.00","29.31.00","29.31.00"]
[" ","29.32.00","Fremstilling af andre dele og tilbehør til motorkøretøjer","Fremst. af motorkøretøjer og dele hertil",0,null,"29.32.00",null,"29.32.00","29.32.00","29.32.00"]
[" ","2000-11-30","Bygning af skibe og flydende materiel","Fremst. af skibe og andre transportmidler",0,null,"30.11.00",null,"30.11.00","30.11.00","2000-11-30"]
[" ","2000-12-30","Bygning af både til fritid og sport","Fremst. af skibe og andre transportmidler",0,null,"30.12.00",null,"30.12.00","30.12.00","2000-12-30"]
[" ","30.20.00","Fremstilling af lokomotiver og andet rullende materiel til jernbaner og sporveje","Fremst. af skibe og andre transportmidler",0,null,"30.20.00",null,"30.20.00","30.20.00","30.20.00"]
[null,"30.31.00","Fremstilling af civile luft- og rumfartøjer o.ling.","Fremst. af skibe og andre transportmidler",0,"x","30.31.00",null,"30.30.00","30.31.00","30.30.00"]
[" ","30.30.00","Fremstilling af luft- og rumfartøjer o.l.","Fremst. af skibe og andre transportmidler",0,"x","30.31.00",null,"30.40.00","30.40.00","30.40.00"]
[" ","30.40.00","Fremstilling af militære kampkøretøjer","Fremst. af skibe og andre transportmidler",0,null,"30.40.00",null,"30.91.00","30.91.00","30.91.00"]
[" ","30.91.00","Fremstilling af motorcykler","Fremst. af skibe og andre transportmidler",0,null,"30.91.00",null,"30.92.00","30.92.00","30.92.00"]
[" ","30.92.00","Fremstilling af cykler og invalidekøretøjer","Fremst. af skibe og andre transportmidler",0,null,"30.92.00",null,"30.99.00","30.99.00","30.99.00"]
[" ","30.99.00","Fremstilling af andre transportmidler i.a.n.","Fremst. af skibe og andre transportmidler",0,null,"30.99.00",null,"31.01.00","31.00.00","2000-01-31"]
[" ","2000-01-31","Fremstilling af kontor- og butiksmøbler","Møbelindustri",0,null,"31.00.00",null,"31.02.00","31.00.00","31.02.00"]
[" ","31.02.00","Fremstilling af køkkenmøbler","Møbelindustri",0,null,"31.00.00",null,"31.03.00","31.00.00","2000-03-31"]
[" ","2000-03-31","Fremstilling af madrasser","Møbelindustri",0,null,"31.00.00",null,"31.09.00","31.00.00","31.09.00"]
[" ","31.09.00","Fremstilling af andre møbler","Møbelindustri",0,null,"31.00.00",null,"32.11.00","32.11.00","32.11.00"]
[" ","32.11.00","Prægning af mønter","Legetøj og anden fremstillingsvirksomhed",0,null,"32.11.00",null,"32.12.00","32.12.00","32.12.00"]
[" ","32.12.00","Fremstilling af smykker i ædle metaller og relaterede produkter","Legetøj og anden fremstillingsvirksomhed",0,null,"32.12.00",null,"32.13.00","32.13.00","32.13.00"]
[" ","32.13.00","Fremstilling af bijouteri og lignende varer","Legetøj og anden fremstillingsvirksomhed",0,null,"32.13.00",null,"32.20.00","32.20.00","32.20.00"]
[" ","32.20.00","Fremstilling af musikinstrumenter","Legetøj og anden fremstillingsvirksomhed",0,null,"32.20.00",null,"32.30.00","32.30.00","32.30.00"]
[" ","32.30.00","Fremstilling af sportsudstyr","Legetøj og anden fremstillingsvirksomhed",0,null,"32.30.00",null,"32.40.00","32.40.00","32.40.00"]
[" ","32.40.00","Fremstilling af spil og legetøj","Legetøj og anden fremstillingsvirksomhed",0,null,"32.40.00",null,"32.50.00","32.50.00","32.50.00"]
[" ","32.50.00","Fremstilling af medicinske og dentale instrumenter samt udstyr hertil","Fremst. af medicinske instrumenter mv.",0,null,"32.50.00",null,"32.91.00","32.91.00","32.91.00"]
[" ","32.91.00","Fremstilling af koste og børster","Legetøj og anden fremstillingsvirksomhed",0,null,"32.91.00",null,"32.99.00","32.99.00","32.99.00"]
[" ","32.99.00","Anden fremstillingsvirksomhed i.a.n.","Legetøj og anden fremstillingsvirksomhed",0,null,"32.99.00",null,"33.11.00","33.11.00","33.11.00"]
[" ","33.11.00","Reparation af jern- og metalvarer","Reparation og installation af maskiner og udstyr",0,null,"33.11.00",null,"33.12.00","33.12.00","33.12.00"]
[" ","33.12.00","Reparation af maskiner","Reparation og installation af maskiner og udstyr",0,null,"33.12.00",null,"33.13.00","33.13.00","33.13.00"]
[" ","33.13.00","Reparation af elektronisk og optisk udstyr","Reparation og installation af maskiner og udstyr",0,null,"33.13.00",null,"33.14.00","33.14.00","33.14.00"]
[" ","33.14.00","Reparation af elektrisk udstyr","Reparation og installation af maskiner og udstyr",0,null,"33.14.00",null,"33.15.00","33.15.00","33.15.00"]
[" ","33.15.00","Reparation og vedligeholdelse af skibe og både","Reparation og installation af maskiner og udstyr",0,null,"33.15.00",null,"33.16.00","33.16.00","33.16.00"]
[" ","33.16.00","Reparation og vedligeholdelse af luft- og rumfartøjer","Reparation og installation af maskiner og udstyr",0,null,"33.16.00",null,"33.17.00","33.17.00","33.17.00"]
[" ","33.17.00","Reparation og vedligeholdelse af andre transportmidler","Reparation og installation af maskiner og udstyr",0,null,"33.17.00",null,"33.19.00","33.19.00","33.19.00"]
[" ","33.19.00","Reparation af andet udstyr","Reparation og installation af maskiner og udstyr",0,null,"33.19.00",null,"33.20.00","33.20.00","33.20.00"]
[" ","33.20.00","Installation af industrimaskiner og -udstyr","Reparation og installation af maskiner og udstyr",0,null,"33.20.00",null,"35.11.00","35.12.00","35.11.00"]
[" ","35.11.00","Produktion af elektricitet","Elforsyning",0,null,"35.12.00",null,"35.12.00","35.13.00","35.12.00"]
[" ","35.12.00","Transmission af elektricitet","Elforsyning",0,null,"35.13.00",null,"35.13.00","35.14.00","35.13.00"]
[" ","35.13.00","Distribution af elektricitet","Elforsyning",0,null,"35.14.00",null,"35.14.00","35.15.90","35.14.00"]
[" ","35.14.00","Handel med elektricitet","Elforsyning",0,null,"35.15.90",null,"35.21.00","35.21.00","35.21.00"]
[" ","35.21.00","Fremstilling af gas","Gasforsyning",0,null,"35.21.00",null,"35.22.00","35.22.00","35.22.00"]
[" ","35.22.00","Distribution af gas","Gasforsyning",0,null,"35.22.00",null,"35.23.00","35.23.00","35.23.00"]
[" ","35.23.00","Handel med gas gennem rørledninger","Gasforsyning",0,null,"35.23.00",null,"35.30.00","35.30.00","35.30.00"]
[" ","35.30.00","Varmeforsyning","Varmeforsyning",0,null,"35.30.00",null,"36.00.00","36.00.00","36.00.00"]
[" ","36.00.00","Vandforsyning","Vandforsyning",0,null,"36.00.00",null,"37.00.00","37.00.00","37.00.00"]
[" ","37.00.00","Opsamling og behandling af spildevand","Kloak- og rensningsanlæg",0,null,"37.00.00",null,"38.11.00","38.11.00","38.11.00"]
[" ","38.11.00","Indsamling af ikke-farligt affald","Renovation og genbrug",0,null,"38.11.00",null,"38.12.00","38.12.00","38.12.00"]
[" ","38.12.00","Indsamling af farligt affald","Renovation og genbrug",0,null,"38.12.00",null,"38.21.10","38.21.00","38.21.10"]
[" ","38.21.10","Behandling og bortskaffelse af ikke-farligt affald","Renovation og genbrug",0,null,"38.21.00",null,"38.21.20","38.22.00","38.21.20"]
[" ","38.21.20","Bortskaffelse af affald med energiproduktion","Renovation og genbrug",0,null,"38.22.00",null,"38.22.00","38.32.00","38.22.00"]
[" ","38.22.00","Behandling og bortskaffelse af farligt affald","Renovation og genbrug",0,null,"38.32.00",null,"38.31.00","38.21.00","38.31.00"]
[" ","38.31.00","Demontering af udtjente køretøjer, skibe, maskiner mv.","Renovation og genbrug",0,null,"38.21.00",null,"38.32.00","38.21.00","38.32.00"]
[" ","38.32.00","Genbrug af sorterede materialer","Renovation og genbrug",0,null,"38.21.00",null,"39.00.00","39.00.00","39.00.00"]
[" ","39.00.00","Rensning af jord og grundvand og anden form for forureningsbekæmpelse","Rensning af jord og grundvand",0,null,"39.00.00",null,"41.10.00","68.12.00","41.10.00"]
[" ","41.10.00","Gennemførelse af byggeprojekter","Byggeentreprenører",0,null,"68.12.00",null,"41.20.00","41.00.00","41.20.00"]
[" ","41.20.00","Opførelse af bygninger","Byggeentreprenører",0,null,"41.00.00",null,"42.11.00","42.11.00","42.11.00"]
["udgår 31.12.2012","42.10.00","Anlæg af veje og jernbaner","Anlægsentreprenører",0,null,"42.10.00",null,"42.12.00","42.12.00","42.12.00"]
["gælder fra 1.1.2013","42.11.00","Anlæg af veje og motorveje","Anlægsentreprenører",0,null,"42.11.00",null,"42.13.00","42.13.00","42.13.00"]
["gælder fra 1.1.2013","42.12.00","Anlæg af jernbaner og undergrundsbaner","Anlægsentreprenører",0,null,"42.12.00",null,"42.21.00","42.21.00","42.21.00"]
["gælder fra 1.1.2013","42.13.00","Anlæg af broer og tunneller","Anlægsentreprenører",0,null,"42.13.00",null,"42.22.00","42.22.00","42.22.00"]
["udgår 31.12.2012","42.20.00","Anlæg af ledningsnet","Anlægsentreprenører",0,null,"42.20.00",null,"42.91.00","42.91.00","42.91.00"]
["gælder fra 1.1.2013","42.21.00","Anlæg af ledningsnet til væsker","Anlægsentreprenører",0,null,"42.21.00",null,"42.99.00","42.99.00","42.99.00"]
["gælder fra 1.1.2013","42.22.00","Anlæg af ledningsnet til elektricitet og kommunikation","Anlægsentreprenører",0,null,"42.22.00",null,"43.11.00","43.11.00","43.11.00"]
["udgår 31.12.2012","42.90.00","Anden anlægsvirksomhed","Anlægsentreprenører",0,null,{"$f":"IFERROR(INDEX($I$2:$K$737,MATCH(B323,$K$2:$K$737,0),2),B323)","v":"42.90.00"},null,"43.12.00","43.12.00","43.12.00"]
["gælder fra 1.1.2013","42.91.00","Anlæg af vandveje, havne, diger og dæmninger","Anlægsentreprenører",0,null,"42.91.00",null,"43.13.00","43.13.00","43.13.00"]
["gælder fra 1.1.2013","42.99.00","Anden anlægsvirksomhed i.a.n.","Anlægsentreprenører",0,null,"42.99.00",null,"43.21.00","43.21.00","43.21.00"]
[" ","43.11.00","Nedrivning","Murere og anden specialiseret bygge- og anlægsvirksomhed samt forberedende byggepladsarbejde ",0,"x","43.11.00",null,"43.22.00","43.22.00","43.22.00"]
[" ","43.12.00","Forberedende byggepladsarbejder","Murere og anden specialiseret bygge- og anlægsvirksomhed samt forberedende byggepladsarbejde ",0,"x","43.12.00",null,"43.29.00","43.24.00","43.29.00"]
[" ","43.13.00","Funderingsundersøgelser","Murere og anden specialiseret bygge- og anlægsvirksomhed samt forberedende byggepladsarbejde ",0,"x","43.13.00",null,"43.31.00","43.31.00","43.31.00"]
[" ","43.21.00","El-installation","Bygningsinstallation",0,null,"43.21.00",null,"43.32.00","43.32.00","43.32.00"]
[" ","43.22.00","VVS- og blikkenslagerforretninger","Bygningsinstallation",0,null,"43.22.00",null,"43.33.00","43.33.00","43.33.00"]
[" ","43.29.00","Anden bygningsinstallationsvirksomhed","Bygningsinstallation",0,null,"43.24.00",null,"43.34.10","43.34.10","43.34.10"]
[" ","43.31.00","Stukkatørvirksomhed","Bygningsfærdiggørelse",0,null,"43.31.00",null,"43.34.20","43.34.20","43.34.20"]
[" ","43.32.00","Tømrer- og bygningssnedkervirksomhed","Bygningsfærdiggørelse",0,null,"43.32.00",null,"43.39.00","43.35.00","43.39.00"]
[" ","43.33.00","Udførelse af gulvbelægninger og vægbeklædning","Bygningsfærdiggørelse",0,null,"43.33.00",null,"43.91.00","43.41.00","43.91.00"]
[" ","43.34.10","Malerforretninger","Bygningsfærdiggørelse",0,null,"43.34.10",null,"43.99.10","43.91.00","43.99.10"]
[" ","43.34.20","Glarmestervirksomhed","Bygningsfærdiggørelse",0,null,"43.34.20",null,"43.99.90","43.99.00","43.99.90"]
[null,"43.35.00","Anden bygningsfærdiggørelse","Bygningsfærdiggørelse",0,null,"43.35.00",null,"45.11.10","46.71.00","45.11.10"]
[" ","43.39.00","Anden bygningsfærdiggørelse","Bygningsfærdiggørelse",0,null,"43.35.00",null,"45.11.20","47.81.00","45.11.20"]
[" ","43.91.00","Tagdækningsvirksomhed","Murere og anden specialiseret bygge- og anlægsvirksomhed samt forberedende byggepladsarbejde ",0,"x","43.41.00",null,"45.19.10","47.81.00","45.19.10"]
[" ","43.99.10","Murere","Murere og anden specialiseret bygge- og anlægsvirksomhed samt forberedende byggepladsarbejde ",0,null,"43.91.00",null,"45.19.20","46.71.00","45.19.20"]
[" ","43.99.90","Anden bygge- og anlægsvirksomhed, som kræver specialisering","Murere og anden specialiseret bygge- og anlægsvirksomhed samt forberedende byggepladsarbejde ",0,null,"43.99.00",null,"45.20.10","95.31.90","45.20.10"]
[" ","45.11.10","Engroshandel med personbiler, varebiler og minibusser","Bilhandel",0.2,null,"46.71.00",null,"45.20.20","95.31.20","45.20.20"]
[" ","45.11.20","Detailhandel med personbiler, varebiler og minibusser","Bilhandel",0.2,null,"47.81.00",null,"45.20.30","95.31.20","45.20.30"]
[" ","45.19.10","Engros- og detailhandel med campingkøretøjer, små trailere mv.","Bilhandel",0.2,null,"47.81.00",null,"45.20.40","95.31.10","45.20.40"]
[" ","45.19.20","Engros- og detailhandel med lastbiler og påhængsvogne mv.","Bilhandel",0.2,null,"46.71.00",null,"45.31.00","46.72.00","45.31.00"]
[" ","45.20.10","Autoreparationsværksteder mv.","Bilværksteder mv.",0.2,null,"95.31.90",null,"45.32.00","47.82.00","45.32.00"]
[" ","45.20.20","Karosseriværksteder og autolakererier","Bilværksteder mv.",0.2,null,"95.31.20",null,"45.40.00","47.83.00","45.40.00"]
[" ","45.20.30","Undervognsbehandling","Bilværksteder mv.",0.2,null,"95.31.20",null,"46.11.00","46.11.00","46.11.00"]
[" ","45.20.40","Dækservice","Bilværksteder mv.",0.2,null,"95.31.10",null,"46.12.00","46.12.00","46.12.00"]
[" ","45.31.00","Engroshandel med reservedele og tilbehør til motorkøretøjer","Bilværksteder mv.",0.2,null,"46.72.00",null,"46.13.00","46.13.00","46.13.00"]
[" ","45.32.00","Detailhandel med reservedele og tilbehør til motorkøretøjer","Bilværksteder mv.",0.2,null,"47.82.00",null,"46.14.00","46.14.00","46.14.00"]
[" ","45.40.00","Salg, vedligeholdelse og reparation af motorcykler og reservedele og tilbehør hertil","Bilværksteder mv.",0.2,null,"47.83.00",null,"46.15.00","46.15.00","46.15.00"]
[" ","46.11.00","Agenturhandel med landbrugsråvarer, levende dyr, tekstilmaterialer og halvfabrikata","Agenturhandel",0.3,null,"46.11.00",null,"46.16.00","46.16.00","46.16.00"]
[" ","46.12.00","Agenturhandel med brændstoffer, malme, metaller og kemiske produkter til industrien","Agenturhandel",0.3,null,"46.12.00",null,"46.17.10","46.17.10","46.17.10"]
[" ","46.13.00","Agenturhandel med tømmer og andre byggematerialer","Agenturhandel",0.3,null,"46.13.00",null,"46.17.90","46.17.90","46.17.90"]
[" ","46.14.00","Agenturhandel med maskiner, teknisk udstyr, skibe og flyvemaskiner","Agenturhandel",0.3,null,"46.14.00",null,"46.18.00","46.18.90","46.18.00"]
[" ","46.15.00","Agenturhandel med møbler, husholdningsartikler og isenkram","Agenturhandel",0.3,null,"46.15.00",null,"46.19.00","46.19.00","46.19.00"]
[" ","46.16.00","Agenturhandel med tekstiler, beklædning, pelsværk, fodtøj og lædervarer","Agenturhandel",0.3,null,"46.16.00",null,"46.21.00","46.21.00","46.21.00"]
[" ","46.17.10","Fiskeauktioner","Agenturhandel",0.3,null,"46.17.10",null,"46.22.00","46.22.00","46.22.00"]
[" ","46.17.90","Anden agenturhandel med føde-, drikke- og tobaksvarer","Agenturhandel",0.3,null,"46.17.90",null,"46.23.00","46.23.00","46.23.00"]
[" ","46.18.00","Agenturhandel med specialiseret varesortiment i.a.n.","Agenturhandel",0.3,null,"46.18.90",null,"46.24.00","46.24.00","46.24.00"]
[" ","46.19.00","Agenturhandel med blandet sortiment","Agenturhandel",0.3,null,"46.19.00",null,"46.31.00","46.31.00","46.31.00"]
[" ","46.21.00","Engroshandel med korn, uforarbejdet tobak, såsæd og foderstoffer","Engrosh. med korn og foderstof",0.3,null,"46.21.00",null,"46.32.00","46.32.10","46.32.00"]
[" ","46.22.00","Engroshandel med blomster og planter","Engrosh. med korn og foderstof",0.3,null,"46.22.00",null,"46.33.00","46.33.00","46.33.00"]
[" ","46.23.00","Engroshandel med levende dyr","Engrosh. med korn og foderstof",0.3,null,"46.23.00",null,"46.34.10","46.34.10","46.34.10"]
[" ","46.24.00","Engroshandel med huder, skind og læder","Engrosh. med korn og foderstof",0.3,null,"46.24.00",null,"46.34.20","46.34.20","46.34.20"]
[" ","46.31.00","Engroshandel med frugt og grøntsager","Engrosh. med føde-, drikke- og tobaksvarer",0.3,null,"46.31.00",null,"46.35.00","46.35.00","46.35.00"]
[" ","46.32.00","Engroshandel med kød og kødprodukter","Engrosh. med føde-, drikke- og tobaksvarer",0.3,null,"46.32.10",null,"46.36.00","46.36.00","46.36.00"]
[" ","46.33.00","Engroshandel med mejeriprodukter, æg samt spiselige olier og fedtstoffer","Engrosh. med føde-, drikke- og tobaksvarer",0.3,null,"46.33.00",null,"46.37.00","46.37.00","46.37.00"]
[" ","46.34.10","Engroshandel med øl, mineralvand, frugt- og grøntsagssaft","Engrosh. med føde-, drikke- og tobaksvarer",0.3,null,"46.34.10",null,"46.38.10","46.32.20","46.38.10"]
[" ","46.34.20","Engroshandel med vin og spiritus","Engrosh. med føde-, drikke- og tobaksvarer",0.3,null,"46.34.20",null,"46.38.90","46.38.00","46.38.90"]
[" ","46.35.00","Engroshandel med tobaksvarer","Engrosh. med føde-, drikke- og tobaksvarer",0.3,null,"46.35.00",null,"46.39.00","46.39.00","46.39.00"]
[" ","46.36.00","Engroshandel med sukker, chokolade og sukkervarer","Engrosh. med føde-, drikke- og tobaksvarer",0.3,null,"46.36.00",null,"46.41.00","46.41.00","46.41.00"]
[" ","46.37.00","Engroshandel med kaffe, te, kakao og krydderier","Engrosh. med føde-, drikke- og tobaksvarer",0.3,null,"46.37.00",null,"46.42.10","46.42.10","46.42.10"]
[" ","46.38.10","Engroshandel med fisk og fiskeprodukter","Engrosh. med føde-, drikke- og tobaksvarer",0.3,null,"46.32.20",null,"46.42.20","46.42.20","46.42.20"]
[" ","46.38.90","Specialiseret engroshandel med fødevarer i.a.n.","Engrosh. med føde-, drikke- og tobaksvarer",0.3,null,"46.38.00",null,"46.43.10","46.43.10","46.43.10"]
[" ","46.39.00","Ikke-specialiseret engroshandel med føde-, drikke- og tobaksvarer","Engrosh. med føde-, drikke- og tobaksvarer",0.3,null,"46.39.00",null,"46.43.20","46.43.20","46.43.20"]
[" ","46.41.00","Engroshandel med tekstiler","Engrosh. med tekstiler og husholdningsudstyr",0.3,null,"46.41.00",null,"46.43.30","46.43.20","46.43.30"]
[" ","46.42.10","Engroshandel med beklædning","Engrosh. med tekstiler og husholdningsudstyr",0.3,null,"46.42.10",null,"46.43.40","46.43.20","46.43.40"]
[" ","46.42.20","Engroshandel med fodtøj","Engrosh. med tekstiler og husholdningsudstyr",0.3,null,"46.42.20",null,"46.43.50","46.43.10","46.43.50"]
[" ","46.43.10","Engroshandel med hårde hvidevarer","Engrosh. med tekstiler og husholdningsudstyr",0.3,null,"46.43.10",null,"46.44.10","46.44.10","46.44.10"]
[" ","46.43.20","Engroshandel med radio og tv mv.","Engrosh. med tekstiler og husholdningsudstyr",0.3,null,"46.43.20",null,"46.44.20","46.44.20","46.44.20"]
[" ","46.43.30","Engroshandel med indspillede videoer, cd'er, dvd'er mv.","Engrosh. med tekstiler og husholdningsudstyr",0.3,null,"46.43.20",null,"46.45.00","46.45.00","46.45.00"]
[" ","46.43.40","Engroshandel med fotografiske og optiske artikler","Engrosh. med tekstiler og husholdningsudstyr",0.3,null,"46.43.20",null,"46.46.10","46.46.10","46.46.10"]
[" ","46.43.50","Engroshandel med elektriske husholdningsartikler","Engrosh. med tekstiler og husholdningsudstyr",0.3,null,"46.43.10",null,"46.46.20","46.46.20","46.46.20"]
[" ","46.44.10","Engroshandel med porcelæns- og glasvarer","Engrosh. med tekstiler og husholdningsudstyr",0.3,null,"46.44.10",null,"46.47.00","46.47.00","46.47.00"]
[" ","46.44.20","Engroshandel med rengøringsmidler","Engrosh. med tekstiler og husholdningsudstyr",0.3,null,{"$f":"IFERROR(INDEX($I$2:$K$737,MATCH(B387,$K$2:$K$737,0),2),B387)","v":"46.44.20"},null,"46.48.00","46.48.00","46.48.00"]
[" ","46.45.00","Engroshandel med parfumerivarer og kosmetik","Engrosh. med tekstiler og husholdningsudstyr",0.3,null,"46.45.00",null,"46.49.10","46.49.10","46.49.10"]
[" ","46.46.10","Engroshandel med medicinalvarer og sygeplejeartikler","Engrosh. med tekstiler og husholdningsudstyr",0.3,null,"46.46.10",null,"46.49.20","46.49.20","46.49.20"]
[" ","46.46.20","Engroshandel med læge- og hospitalsartikler","Engrosh. med tekstiler og husholdningsudstyr",0.3,null,"46.46.20",null,"46.49.30","46.49.30","46.49.30"]
[" ","46.47.00","Engroshandel med møbler, tæpper og belysningsartikler","Engrosh. med tekstiler og husholdningsudstyr",0.3,null,"46.47.00",null,"46.49.90","46.49.90","46.49.90"]
[" ","46.48.00","Engroshandel med ure, smykker og guld- og sølvvarer","Engrosh. med tekstiler og husholdningsudstyr",0.3,null,"46.48.00",null,"46.51.00","46.50.00","46.51.00"]
[" ","46.49.10","Engroshandel med cykler, sportsartikler og lystbåde","Engrosh. med tekstiler og husholdningsudstyr",0.3,null,"46.49.10",null,"46.52.10","46.50.00","46.52.10"]
[" ","46.49.20","Engroshandel med bøger, papir og papirvarer","Engrosh. med tekstiler og husholdningsudstyr",0.3,null,"46.49.20",null,"46.52.20","46.50.00","46.52.20"]
[" ","46.49.30","Engroshandel med kufferter og lædervarer","Engrosh. med tekstiler og husholdningsudstyr",0.3,null,"46.49.30",null,"46.61.00","46.61.00","46.61.00"]
[" ","46.49.90","Engroshandel med andre husholdningsartikler","Engrosh. med tekstiler og husholdningsudstyr",0.3,null,"46.49.90",null,"46.62.00","46.62.00","46.62.00"]
[" ","46.51.00","Engroshandel med computere, ydre enheder og software","Engrosh. med it-udstyr",0.3,null,"46.50.00",null,"46.63.00","46.63.00","46.63.00"]
[" ","46.52.10","Engroshandel med elektronisk udstyr","Engrosh. med it-udstyr",0.3,null,"46.50.00",null,"46.64.00","46.64.00","46.64.00"]
[" ","46.52.20","Engroshandel med telekommunikationsudstyr","Engrosh. med it-udstyr",0.3,null,"46.50.00",null,"46.65.00","46.47.00","46.65.00"]
[" ","46.61.00","Engroshandel med landbrugsmaskiner, -udstyr og tilbehør hertil","Engrosh. med andre maskiner",0.3,null,"46.61.00",null,"46.66.00","46.50.00","46.66.00"]
[" ","46.62.00","Engroshandel med værktøjsmaskiner","Engrosh. med andre maskiner",0.3,null,"46.62.00",null,"46.69.00","46.64.00","46.69.00"]
[" ","46.63.00","Engroshandel med maskiner til minedrift og bygge- og anlægsvirksomhed","Engrosh. med andre maskiner",0.3,null,"46.63.00",null,"46.71.00","46.81.00","46.71.00"]
[" ","46.64.00","Engroshandel med maskiner, udstyr og tilbehør til tekstilindustrien","Engrosh. med andre maskiner",0.3,null,"46.64.00",null,"46.72.00","46.82.00","46.72.00"]
[" ","46.65.00","Engroshandel med kontormøbler","Engrosh. med andre maskiner",0.3,null,"46.47.00",null,"46.73.10","46.83.00","46.73.10"]
[" ","46.66.00","Engroshandel med andre kontormaskiner og andet kontorudstyr","Engrosh. med andre maskiner",0.3,null,"46.50.00",null,"46.73.20","46.83.00","46.73.20"]
[" ","46.69.00","Engroshandel med andre maskiner og andet udstyr","Engrosh. med andre maskiner",0.3,null,"46.64.00",null,"46.74.00","46.84.00","46.74.00"]
[" ","46.71.00","Engroshandel med fast, flydende og luftformigt brændstof og lignende varer","Anden engroshandel",0.3,null,"46.81.00",null,"46.75.00","46.85.00","46.75.00"]
[" ","46.72.00","Engroshandel med metaller og metalmalme","Anden engroshandel",0.3,null,"46.82.00",null,"46.76.00","46.86.00","46.76.00"]
[" ","46.73.10","Engroshandel med træ, trælast og byggematerialer","Anden engroshandel",0.3,null,"46.83.00",null,"46.77.00","46.87.00","46.77.00"]
[" ","46.73.20","Engroshandel med lak, maling, tapet, gulvbelægning mv.","Anden engroshandel",0.3,null,"46.83.00",null,"46.90.00","46.90.00","46.90.00"]
[" ","46.74.00","Engroshandel med isenkram, varmeanlæg og tilbehør","Anden engroshandel",0.3,null,"46.84.00",null,"47.11.10","47.11.10","47.11.10"]
[" ","46.75.00","Engroshandel med kemiske produkter","Anden engroshandel",0.3,null,"46.85.00",null,"47.11.20","47.11.20","47.11.20"]
[" ","46.76.00","Engroshandel med andre råvarer og halvfabrikata","Anden engroshandel",0.3,null,"46.86.00",null,"47.11.30","47.11.30","47.11.30"]
[" ","46.77.00","Engroshandel med affaldsprodukter","Anden engroshandel",0.3,null,"46.87.00",null,"47.19.00","47.12.00","47.19.00"]
[" ","46.90.00","Ikke-specialiseret engroshandel","Anden engroshandel",0.3,null,"46.90.00",null,"47.21.00","47.21.00","47.21.00"]
[" ","47.11.10","Købmænd og døgnkiosker","Supermarkeder og varehuse mv.",0.5,null,"47.11.10",null,"47.22.00","47.22.00","47.22.00"]
[" ","47.11.20","Supermarkeder","Supermarkeder og varehuse mv.",0.5,null,"47.11.20",null,"47.23.00","47.23.00","47.23.00"]
[" ","47.11.30","Discountforretninger","Supermarkeder og varehuse mv.",0.5,null,"47.11.30",null,"47.24.00","47.24.00","47.24.00"]
[" ","47.19.00","Anden detailhandel fra ikke-specialiserede forretninger","Supermarkeder og varehuse mv.",0.5,null,"47.12.00",null,"47.25.00","47.25.00","47.25.00"]
[" ","47.21.00","Frugt- og grøntforretninger","Specialbutikker med fødevarer ",0.5,null,"47.21.00",null,"47.26.00","47.26.00","47.26.00"]
[" ","47.22.00","Slagter- og viktualieforretninger","Specialbutikker med fødevarer ",0.5,null,"47.22.00",null,"47.29.00","47.27.00","47.29.00"]
[" ","47.23.00","Fiskeforretninger","Specialbutikker med fødevarer ",0.5,null,"47.23.00",null,"47.30.00","47.30.00","47.30.00"]
[" ","47.24.00","Detailhandel med brød, konditori- og sukkervarer","Specialbutikker med fødevarer ",0.5,null,"47.24.00",null,"47.41.00","47.40.00","47.41.00"]
[" ","47.25.00","Detailhandel med drikkevarer","Specialbutikker med fødevarer ",0.5,null,"47.25.00",null,"47.42.00","47.40.00","47.42.00"]
[" ","47.26.00","Tobaksforretninger","Specialbutikker med fødevarer ",0.5,null,"47.26.00",null,"47.43.00","47.40.00","47.43.00"]
[" ","47.29.00","Anden detailhandel med fødevarer i specialforretninger","Specialbutikker med fødevarer ",0.5,null,"47.27.00",null,"47.51.00","47.51.00","47.51.00"]
[" ","47.30.00","Servicestationer","Tankstationer",0.5,null,"47.30.00",null,"47.52.10","47.52.10","47.52.10"]
[" ","47.41.00","Detailhandel med computere, ydre enheder og software","Detailh. med forbrugerelektronik",0.5,null,"47.40.00",null,"47.52.20","47.52.20","47.52.20"]
[" ","47.42.00","Detailhandel med telekommunikationsudstyr","Detailh. med forbrugerelektronik",0.5,null,"47.40.00",null,"47.53.00","47.53.00","47.53.00"]
[" ","47.43.00","Radio- og tv-forretninger","Detailh. med forbrugerelektronik",0.5,null,"47.40.00",null,"47.54.00","47.54.00","47.54.00"]
[" ","47.51.00","Detailhandel med kjolestoffer, garn, broderier mv.","Detailh. med tekstiler og husholdningsudstyr mv.",0.5,null,"47.51.00",null,"47.59.10","47.55.10","47.59.10"]
[" ","47.52.10","Farve- og tapetforretninger","Detailh. med tekstiler og husholdningsudstyr mv.",0.5,null,"47.52.10",null,"47.59.20","47.55.90","47.59.20"]
[" ","47.52.20","Byggemarkeder og værktøjsmagasiner","Detailh. med tekstiler og husholdningsudstyr mv.",0.5,null,"47.52.20",null,"47.59.30","47.55.30","47.59.30"]
[" ","47.53.00","Detailhandel med tæpper, vægbeklædning og gulvbelægning","Detailh. med tekstiler og husholdningsudstyr mv.",0.5,null,"47.53.00",null,"47.59.40","47.69.10","47.59.40"]
[" ","47.54.00","Detailhandel med elektriske husholdningsapparater","Detailh. med tekstiler og husholdningsudstyr mv.",0.5,null,"47.54.00",null,"47.59.90","47.55.90","47.59.90"]
[" ","47.59.10","Møbelforretninger","Detailh. med tekstiler og husholdningsudstyr mv.",0.5,null,"47.55.10",null,"47.61.00","47.61.00","47.61.00"]
[" ","47.59.20","Boligtekstilforretninger","Detailh. med tekstiler og husholdningsudstyr mv.",0.5,null,"47.55.90",null,"47.62.00","47.62.00","47.62.00"]
[" ","47.59.30","Detailhandel med køkkenudstyr, glas, porcelæn, bestik, vaser, lysestager mv.","Detailh. med tekstiler og husholdningsudstyr mv.",0.5,null,"47.55.30",null,"47.63.00","47.69.10","47.63.00"]
[" ","47.59.40","Forhandlere af musikinstrumenter","Detailh. med tekstiler og husholdningsudstyr mv.",0.5,null,"47.69.10",null,"47.64.10","47.63.10","47.64.10"]
[" ","47.59.90","Detailhandel med belysningsartikler samt husholdningsartikler i.a.n.","Detailh. med tekstiler og husholdningsudstyr mv.",0.5,null,"47.55.90",null,"47.64.20","47.63.20","47.64.20"]
[" ","47.61.00","Detailhandel med bøger","Detailh. med kultur- og fritidsprodukter",0.5,null,"47.61.00",null,"47.64.30","47.63.30","47.64.30"]
[" ","47.62.00","Detailhandel med aviser og papirvarer","Detailh. med kultur- og fritidsprodukter",0.5,null,"47.62.00",null,"47.65.00","47.64.00","47.65.00"]
[" ","47.63.00","Detailhandel med musik- og videooptagelser","Detailh. med kultur- og fritidsprodukter",0.5,null,"47.69.10",null,"47.71.10","47.71.10","47.71.10"]
[" ","47.64.10","Forhandlere af sports- og campingudstyr","Detailh. med kultur- og fritidsprodukter",0.5,null,"47.63.10",null,"47.71.20","47.71.20","47.71.20"]
[" ","47.64.20","Cykel- og knallertforretninger","Detailh. med kultur- og fritidsprodukter",0.5,null,"47.63.20",null,"47.72.10","47.72.10","47.72.10"]
[" ","47.64.30","Forhandlere af lystbåde og udstyr hertil","Detailh. med kultur- og fritidsprodukter",0.5,null,"47.63.30",null,"47.72.20","47.72.20","47.72.20"]
[" ","47.65.00","Detailhandel med spil og legetøj","Detailh. med kultur- og fritidsprodukter",0.5,null,"47.64.00",null,"47.73.00","47.73.00","47.73.00"]
[" ","47.71.10","Tøjforretninger","Detailh. med beklædning og fodtøj",0.5,null,"47.71.10",null,"47.74.00","47.74.20","47.74.00"]
[" ","47.71.20","Babyudstyrs- og børnetøjsforretninger","Detailh. med beklædning og fodtøj",0.5,null,"47.71.20",null,"47.75.00","47.75.00","47.75.00"]
[" ","47.72.10","Skotøjsforretninger","Detailh. med beklædning og fodtøj",0.5,null,"47.72.10",null,"47.76.10","47.76.10","47.76.10"]
[" ","47.72.20","Lædervareforretninger","Detailh. med beklædning og fodtøj",0.5,null,{"$f":"IFERROR(INDEX($I$2:$K$737,MATCH(B451,$K$2:$K$737,0),2),B451)","v":"47.72.20"},null,"47.76.20","47.76.10","47.76.20"]
[" ","47.73.00","Apoteker","Detailh. med tekstiler og husholdningsudstyr mv.",0.5,null,"47.73.00",null,"47.76.30","47.76.20","47.76.30"]
[" ","47.74.00","Detailhandel med medicinske og ortopædiske artikler","Detailh. med tekstiler og husholdningsudstyr mv.",0.5,null,"47.74.20",null,"47.77.00","47.77.00","47.77.00"]
[" ","47.75.00","Detailhandel med kosmetikvarer og produkter til personlig pleje","Detailh. med tekstiler og husholdningsudstyr mv.",0.5,null,"47.75.00",null,"47.78.10","47.74.10","47.78.10"]
[" ","47.76.10","Blomsterforretninger","Detailh. med tekstiler og husholdningsudstyr mv.",0.5,null,"47.76.10",null,"47.78.20","47.78.00","47.78.20"]
[" ","47.76.20","Planteforhandlere og havecentre","Detailh. med tekstiler og husholdningsudstyr mv.",0.5,null,"47.76.10",null,"47.78.30","47.78.00","47.78.30"]
[" ","47.76.30","Dyrehandel","Detailh. med tekstiler og husholdningsudstyr mv.",0.5,null,"47.76.20",null,"47.78.40","47.69.20","47.78.40"]
[" ","47.77.00","Detailhandel med ure, smykker og guld- og sølvvarer","Detailh. med tekstiler og husholdningsudstyr mv.",0.5,null,"47.77.00",null,"47.78.90","47.78.00","47.78.90"]
[" ","47.78.10","Optikere","Detailh. med tekstiler og husholdningsudstyr mv.",0.5,null,"47.74.10",null,"47.79.00","47.79.00","47.79.00"]
[" ","47.78.20","Fotoforretninger","Detailh. med tekstiler og husholdningsudstyr mv.",0.5,null,"47.78.00",null,"47.81.00","47.27.00","47.81.00"]
[" ","47.78.30","Forhandlere af gaveartikler og brugskunst","Detailh. med tekstiler og husholdningsudstyr mv.",0.5,null,"47.78.00",null,"47.82.00","47.71.10","47.82.00"]
[" ","47.78.40","Kunsthandel og gallerivirksomhed","Detailh. med tekstiler og husholdningsudstyr mv.",0.5,null,"47.69.20",null,"47.89.00","47.78.00","47.89.00"]
[" ","47.78.90","Detailhandel med andre varer i.a.n.","Detailh. med tekstiler og husholdningsudstyr mv.",0.5,null,"47.78.00",null,"47.91.11","47.27.00","47.91.11"]
[" ","47.79.00","Detailhandel med brugte varer i forretninger","Detailh. med tekstiler og husholdningsudstyr mv.",0.5,null,"47.79.00",null,"47.91.12","47.40.00","47.91.12"]
[" ","47.81.00","Detailhandel med føde-, drikke- og tobaksvarer fra stadepladser og markeder","Internethandel, postordre mv.",0.5,null,"47.27.00",null,"47.91.13","47.52.20","47.91.13"]
[" ","47.82.00","Detailhandel med tekstiler, beklædningsartikler og fodtøj fra stadepladser og markeder","Internethandel, postordre mv.",0.5,null,"47.71.10",null,"47.91.14","47.61.00","47.91.14"]
[" ","47.89.00","Detailhandel med andre varer fra stadepladser og markeder","Internethandel, postordre mv.",0.5,null,"47.78.00",null,"47.91.15","47.63.10","47.91.15"]
["udgår 2013","47.91.10","Detailhandel fra postordreforretninger","Internethandel, postordre mv.",0.5,null,"47.91.10",null,"47.91.16","47.71.10","47.91.16"]
["gælder fra  2014","47.91.11","Detailhandel med dagligvarer via internet","Internethandel, postordre mv.",0.5,null,"47.27.00",null,"47.91.17","47.75.00","47.91.17"]
["gælder fra  2014","47.91.12","Detailhandel med elektroniske eller elektriske apparater samt fotoudstyr via internet","Internethandel, postordre mv.",0.5,null,"47.40.00",null,"47.91.19","47.78.00","47.91.19"]
["gælder fra  2014","47.91.13","Detailhandel med husholdnings- eller boligudstyr, bortset fra elektriske apparater, via internet","Internethandel, postordre mv.",0.5,null,"47.52.20",null,"47.91.20","60.39.00","47.91.20"]
["gælder fra  2014","47.91.14","Detailhandel med bøger, kontorartikler, musik eller film via internet","Internethandel, postordre mv.",0.5,null,"47.61.00",null,"47.99.00","47.78.00","47.99.00"]
["gælder fra  2014","47.91.15","Detailhandel med hobbyartikler, musikinstrumenter, sportsudstyr, legetøj, cykler via internet","Internethandel, postordre mv.",0.5,null,"47.63.10",null,"49.10.00","49.11.00","49.10.00"]
["gælder fra  2014","47.91.16","Detailhandel med tøj, sko, lædervarer, ure eller babyudstyr  via internet","Internethandel, postordre mv.",0.5,null,"47.71.10",null,"49.20.00","49.20.00","49.20.00"]
["gælder fra  2014","47.91.17","Detailhandel med medicin og produkter til personlig pleje via internet","Internethandel, postordre mv.",0.5,null,"47.75.00",null,"49.31.10","49.31.00","49.31.10"]
["gælder fra  2014","47.91.19","Detailhandel med andre varer i.a.n. via internet","Internethandel, postordre mv.",0.5,null,"47.78.00",null,"49.31.20","49.12.00","49.31.20"]
[" ","47.91.20","Detailhandel via Internettet med digitale produkter","Internethandel, postordre mv.",0.5,null,"60.39.00",null,"49.32.00","49.33.00","49.32.00"]
[" ","47.99.00","Anden detailhandel undtagen fra forretninger, stadepladser og markeder","Internethandel, postordre mv.",0.5,null,"47.78.00",null,"49.39.10","49.31.00","49.39.10"]
[" ","49.10.00","Passagertransport med regional- eller fjerntog","Regional- og fjerntog",0.1,null,"49.11.00",null,"49.39.20","49.32.00","49.39.20"]
[" ","49.20.00","Godstransport med tog","Regional- og fjerntog",0.1,"x","49.20.00",null,"49.41.00","49.41.00","49.41.00"]
[" ","49.31.10","Rutebuskørsel, by- og nærtrafik","Lokaltog, bus og taxi mv.",0.1,null,"49.31.00",null,"49.42.00","49.42.00","49.42.00"]
[" ","49.31.20","S-togstrafik, metro og andre nærbaner","Lokaltog, bus og taxi mv.",0.1,null,"49.12.00",null,"49.50.00","49.50.00","49.50.00"]
[" ","49.32.00","Taxikørsel","Lokaltog, bus og taxi mv.",0.1,"x","49.33.00",null,"50.10.00","50.10.00","50.10.00"]
[" ","49.39.10","Rutebuskørsel, fjerntrafik og skolebusser","Lokaltog, bus og taxi mv.",0.1,null,"49.31.00",null,"50.20.00","50.20.00","50.20.00"]
[" ","49.39.20","Turistkørsel og anden landpassagertransport","Lokaltog, bus og taxi mv.",0.1,null,"49.32.00",null,"50.30.00","50.30.00","50.30.00"]
[" ","49.41.00","Vejgodstransport","Fragtvognmænd og rørtransport",0.1,"x","49.41.00",null,"50.40.00","50.40.00","50.40.00"]
[" ","49.42.00","Flytteforretninger","Fragtvognmænd og rørtransport",0.1,"x","49.42.00",null,"51.10.10","51.10.10","51.10.10"]
[" ","49.50.00","Rørtransport","Fragtvognmænd og rørtransport",0.1,"x","49.50.00",null,"51.10.20","51.10.20","51.10.20"]
[" ","50.10.00","Sø- og kysttransport af passagerer","Skibsfart",0.1,null,"50.10.00",null,"51.21.00","51.21.00","51.21.00"]
[" ","50.20.00","Sø- og kysttransport af gods","Skibsfart",0.1,"x","50.20.00",null,"51.22.00","51.22.00","51.22.00"]
[" ","50.30.00","Transport af passagerer ad indre vandveje","Skibsfart",0.1,null,"50.30.00",null,"52.10.00","52.10.00","52.10.00"]
[" ","50.40.00","Transport af gods ad indre vandveje","Skibsfart",0.1,"x","50.40.00",null,"52.21.10","52.21.10","52.21.10"]
[" ","51.10.10","Ruteflyvning","Luftfart",0.1,null,"51.10.10",null,"52.21.20","52.21.20","52.21.20"]
[" ","51.10.20","Charter- og taxiflyvning","Luftfart",0.1,null,"51.10.20",null,"52.21.30","52.21.30","52.21.30"]
[" ","51.21.00","Lufttransport af gods","Luftfart",0.1,"x","51.21.00",null,"52.22.10","52.22.10","52.22.10"]
[" ","51.22.00","Rumfart","Luftfart",0.1,"x","51.22.00",null,"52.22.20","52.22.20","52.22.20"]
[" ","52.10.00","Oplagrings- og pakhusvirksomhed","Hjælpevirksomhed til transport ",0.1,"x","52.10.00",null,"52.23.00","52.23.00","52.23.00"]
[" ","52.21.10","Stationer, godsterminaler mv.","Hjælpevirksomhed til transport ",0.1,"x","52.21.10",null,"52.24.00","52.24.00","52.24.00"]
[" ","52.21.20","Parkering og vejhjælp mv.","Hjælpevirksomhed til transport ",0.1,"x","52.21.20",null,"52.29.10","52.26.00","52.29.10"]
[" ","52.21.30","Drift af betalingsveje, -broer og -tunneler","Hjælpevirksomhed til transport ",0.1,"x","52.21.30",null,"52.29.20","52.26.00","52.29.20"]
[" ","52.22.10","Erhvervshavne","Hjælpevirksomhed til transport ",0.1,"x","52.22.10",null,"52.29.90","52.25.00","52.29.90"]
[" ","52.22.20","Bugserings-, bjærgnings- og redningsvæsen mv.","Hjælpevirksomhed til transport ",0.1,"x","52.22.20",null,"53.10.00","53.10.00","53.10.00"]
[" ","52.23.00","Serviceydelser i forbindelse med luftfart","Hjælpevirksomhed til transport ",0,null,"52.23.00",null,"53.20.00","53.20.00","53.20.00"]
[" ","52.24.00","Godshåndtering","Hjælpevirksomhed til transport ",0.1,"x","52.24.00",null,"55.10.10","55.10.00","55.10.10"]
[" ","52.29.10","Skibsmæglere","Hjælpevirksomhed til transport ",0.1,null,"52.26.00",null,"55.10.20","55.10.00","55.10.20"]
[" ","52.29.20","Speditører","Hjælpevirksomhed til transport ",0.1,"x","52.26.00",null,"55.20.00","55.20.00","55.20.00"]
[" ","52.29.90","Andre tjenesteydelser i forbindelse med transport","Hjælpevirksomhed til transport ",0.1,"x","52.25.00",null,"55.30.00","55.30.00","55.30.00"]
[" ","53.10.00","Posttjenester omfattet af forsyningspligten","Post og kurertjeneste",0.1,"x","53.10.00",null,"55.90.00","55.90.00","55.90.00"]
[" ","53.20.00","Andre post- og kurertjenester","Post og kurertjeneste",0.1,"x","53.20.00",null,"56.10.10","56.11.10","56.10.10"]
[" ","55.10.10","Hoteller","Hoteller mv.",0.6,null,"55.10.00",null,"56.10.20","56.11.90","56.10.20"]
[" ","55.10.20","Konferencecentre og kursusejendomme","Hoteller mv.",0.6,null,"55.10.00",null,"56.21.00","56.21.00","56.21.00"]
[" ","55.20.00","Ferieboliger og andre indlogeringsfaciliteter til kortvarige ophold","Hoteller mv.",0.6,null,"55.20.00",null,"56.29.00","56.22.00","56.29.00"]
[" ","55.30.00","Campingpladser","Hoteller mv.",0.6,null,"55.30.00",null,"56.30.00","56.30.20","56.30.00"]
[" ","55.90.00","Andre overnatningsfaciliteter","Hoteller mv.",0.6,null,"55.90.00",null,"58.11.00","58.11.00","58.11.00"]
[" ","56.10.10","Restauranter","Restauranter",0,null,{"$f":"IFERROR(INDEX($I$2:$K$737,MATCH(B515,$K$2:$K$737,0),2),B515)","v":"56.11.10"},null,"58.12.00","58.19.00","58.12.00"]
[" ","56.10.20","Pizzeriaer, grillbarer, isbarer mv.","Restauranter",0,"x","56.11.90",null,"58.13.00","58.12.00","58.13.00"]
[" ","56.21.00","Event catering","Restauranter",0,null,"56.21.00",null,"58.14.10","58.13.00","58.14.10"]
[" ","56.29.00","Anden restaurationsvirksomhed","Restauranter",0,"x","56.22.00",null,"58.14.20","58.13.00","58.14.20"]
[" ","56.30.00","Cafeér, værtshuse, diskoteker mv.","Restauranter",0,"x","56.30.20",null,"58.19.00","58.19.00","58.19.00"]
[" ","58.11.00","Udgivelse af bøger","Forlag",0.5,null,"58.11.00",null,"58.21.00","58.21.00","58.21.00"]
[" ","58.12.00","Udgivelse af telefonbøger og adresselister","Forlag",0.5,null,"58.19.00",null,"58.29.00","58.29.00","58.29.00"]
[" ","58.13.00","Udgivelse af aviser og dagblade","Forlag",0.5,null,"58.12.00",null,"59.11.10","59.11.00","59.11.10"]
[" ","58.14.10","Udgivelse af ugeblade og magasiner","Forlag",0.5,null,"58.13.00",null,"59.11.20","59.11.00","59.11.20"]
[" ","58.14.20","Udgivelse af distrikts- og annonceblade","Forlag",0.5,null,"58.13.00",null,"59.12.00","59.12.00","59.12.00"]
[" ","58.19.00","Anden udgivervirksomhed","Forlag",0.5,null,"58.19.00",null,"59.13.00","59.13.00","59.13.00"]
[" ","58.21.00","Udgivelse af computerspil","Udgivelse af computerspil og anden software",0.3,null,"58.21.00",null,"59.14.00","59.14.00","59.14.00"]
[" ","58.29.00","Anden udgivelse af software","Udgivelse af computerspil og anden software",0.3,null,"58.29.00",null,"59.20.00","59.20.00","59.20.00"]
[" ","59.11.10","Produktion af film og videofilm","Produktion af film, tv og musik mv.",0.3,null,"59.11.00",null,"60.10.00","60.10.00","60.10.00"]
[" ","59.11.20","Produktion af tv-programmer","Produktion af film, tv og musik mv.",0.3,null,"59.11.00",null,"60.20.00","60.20.00","60.20.00"]
[" ","59.12.00","Aktiviteter, der udøves efter produktion af film, video- og tv-programmer","Produktion af film, tv og musik mv.",0.3,null,"59.12.00",null,"61.10.00","61.10.00","61.10.00"]
[" ","59.13.00","Distribution af film, video- og tv-programmer","Produktion af film, tv og musik mv.",0.3,null,"59.13.00",null,"61.20.00","61.10.00","61.20.00"]
[" ","59.14.00","Biografer","Produktion af film, tv og musik mv.",0.3,null,"59.14.00",null,"61.30.00","61.10.00","61.30.00"]
[" ","59.20.00","Indspilning af lydoptagelser og udgivelse af musik","Produktion af film, tv og musik mv.",0.3,null,"59.20.00",null,"61.90.00","61.90.00","61.90.00"]
[" ","60.10.00","Radiovirksomhed","Radio- og tv-stationer",0.3,null,"60.10.00",null,"62.01.00","62.10.00","62.01.00"]
[" ","60.20.00","Tv-virksomhed","Radio- og tv-stationer",0.3,null,"60.20.00",null,"62.02.00","62.20.00","62.02.00"]
[" ","61.10.00","Fastnetbaseret telekommunikation","Telekommunikation",0.3,null,"61.10.00",null,"62.03.00","62.20.00","62.03.00"]
[" ","61.20.00","Trådløs telekommunikation","Telekommunikation",0.3,null,"61.10.00",null,"62.09.00","62.90.00","62.09.00"]
[" ","61.30.00","Satellitbaseret telekommunikation","Telekommunikation",0.3,null,"61.10.00",null,"63.11.00","63.10.00","63.11.00"]
[" ","61.90.00","Anden telekommunikation","Telekommunikation",0.3,null,"61.90.00",null,"63.12.00","63.91.00","63.12.00"]
[" ","62.01.00","Computerprogrammering","It-konsulenter mv.",0.3,null,"62.10.00",null,"63.91.00","60.31.00","63.91.00"]
[" ","62.02.00","Konsulentbistand vedrørende informationsteknologi","It-konsulenter mv.",0.3,null,"62.20.00",null,"63.99.00","63.92.00","63.99.00"]
[" ","62.03.00","Computer facility management","It-konsulenter mv.",0.3,null,"62.20.00",null,"64.11.00","64.11.00","64.11.00"]
[" ","62.09.00","Anden it-servicevirksomhed","It-konsulenter mv.",0.3,null,"62.90.00",null,"64.19.00","64.19.00","64.19.00"]
[" ","63.11.00","Databehandling, webhosting og lignende serviceydelser","Informationstjenester",0.3,null,"63.10.00",null,"64.20.10","64.21.10","64.20.10"]
[" ","63.12.00","Webportaler","Informationstjenester",0.3,null,"63.91.00",null,"64.20.20","64.21.20","64.20.20"]
[" ","63.91.00","Pressebureauer","Informationstjenester",0.3,null,"60.31.00",null,"64.20.30","64.21.30","64.20.30"]
[" ","63.99.00","Andre informationstjenester i.a.n.","Informationstjenester",0.3,null,"63.92.00",null,"64.30.10","64.31.20","64.30.10"]
[" ","64.11.00","Centralbanker","Pengeinstitutter",0,null,"64.11.00",null,"64.30.20","64.31.10","64.30.20"]
[" ","64.19.00","Banker, sparekasser og andelskasser","Pengeinstitutter",0,null,"64.19.00",null,"64.30.30","64.99.10","64.30.30"]
[" ","64.20.10","Finansielle holdingselskaber","Kreditforeninger mv.",0,null,"64.21.10",null,"64.30.40","64.99.90","64.30.40"]
[" ","64.20.20","Ikke-finansielle holdingselskaber","Kreditforeninger mv.",0,null,"64.21.20",null,"64.91.00","64.91.00","64.91.00"]
[" ","64.20.30","Gennemløbsholdingselskaber","Kreditforeninger mv.",0,null,"64.21.30",null,"64.92.10","64.92.10","64.92.10"]
[" ","64.30.10","Investeringsforeninger","Kreditforeninger mv.",0,null,"64.31.20",null,"64.92.20","64.92.20","64.92.20"]
[" ","64.30.20","Pengemarkedsforeninger","Kreditforeninger mv.",0,null,"64.31.10",null,"64.92.30","64.92.30","64.92.30"]
[" ","64.30.30","Investeringsselskaber","Kreditforeninger mv.",0,null,"64.99.10",null,"64.92.40","64.99.90","64.92.40"]
[" ","64.30.40","Ventureselskaber og kapitalfonde","Kreditforeninger mv.",0,null,"64.99.90",null,"64.99.00","64.99.90","64.99.00"]
[" ","64.91.00","Finansiel leasing","Kreditforeninger mv.",0,null,"64.91.00",null,"65.11.00","65.11.00","65.11.00"]
[" ","64.92.10","Realkreditinstitutter","Kreditforeninger mv.",0,null,"64.92.10",null,"65.12.00","65.12.00","65.12.00"]
[" ","64.92.20","Andre kreditinstitutter","Kreditforeninger mv.",0,null,"64.92.20",null,"65.20.00","65.20.00","65.20.00"]
[" ","64.92.30","Andre kreditselskaber","Kreditforeninger mv.",0,null,"64.92.30",null,"65.30.10","65.30.10","65.30.10"]
[" ","64.92.40","FVC-selskaber","Kreditforeninger mv.",0,null,"64.99.90",null,"65.30.20","65.30.20","65.30.20"]
[" ","64.99.00","Anden finansiel formidling undtagen forsikring og pensionsforsikring, i.a.n.","Kreditforeninger mv.",0,null,"64.99.90",null,"66.11.00","66.11.00","66.11.00"]
[" ","65.11.00","Livsforsikring","Forsikring og pension",0,null,"65.11.00",null,"66.12.00","66.12.00","66.12.00"]
[" ","65.12.00","Anden forsikring","Forsikring og pension",0,null,"65.12.00",null,"66.19.00","66.19.00","66.19.00"]
[" ","65.20.00","Genforsikring","Forsikring og pension",0,null,"65.20.00",null,"66.21.00","66.21.00","66.21.00"]
[" ","65.30.10","Pensionskasser","Forsikring og pension",0,null,"65.30.10",null,"66.22.00","66.22.00","66.22.00"]
[" ","65.30.20","Anden pensionsforsikring","Forsikring og pension",0,null,"65.30.20",null,"66.29.00","66.29.00","66.29.00"]
[" ","66.11.00","Forvaltning af kapitalmarkeder","Finansiel service",0,null,"66.11.00",null,"66.30.00","66.30.00","66.30.00"]
[" ","66.12.00","Værdipapir- og varemægling","Finansiel service",0,null,"66.12.00",null,"68.10.00","68.11.00","68.10.00"]
[" ","66.19.00","Andre hjælpetjenester i forbindelse med finansiel formidling","Finansiel service",0,null,"66.19.00",null,"68.20.10","68.20.10","68.20.10"]
[" ","66.21.00","Risiko- og skadesvurdering","Finansiel service",0,null,"66.21.00",null,"68.20.20","68.20.20","68.20.20"]
[" ","66.22.00","Forsikringsagenters og forsikringsmægleres virksomhed","Finansiel service",0,null,"66.22.00",null,"68.20.30","68.20.30","68.20.30"]
[" ","66.29.00","Andre hjælpetjenester i forbindelse med forsikring og pensionsforsikring","Finansiel service",0,null,"66.29.00",null,"68.20.40","68.20.40","68.20.40"]
[" ","66.30.00","Formueforvaltning","Finansiel service",0,null,"66.30.00",null,"68.31.10","68.31.10","68.31.10"]
[" ","68.10.00","Køb og salg af egen fast ejendom","Ejendomsmæglere mv.",0.2,null,"68.11.00",null,"68.31.20","68.31.20","68.31.20"]
[" ","68.20.10","Almennyttige boligselskaber","Boligudlejning",0.2,"x","68.20.10",null,"68.32.10","68.32.10","68.32.10"]
[" ","68.20.20","Private andelsboligforeninger","Boligudlejning",0,null,"68.20.20",null,"68.32.20","68.32.20","68.32.20"]
[" ","68.20.30","Anden udlejning af boliger","Boligudlejning",0,null,"68.20.30",null,"69.10.00","69.10.00","69.10.00"]
[" ","68.20.40","Udlejning af erhvervsejendomme","Udlejning af erhvervsejendomme",0,null,{"$f":"IFERROR(INDEX($I$2:$K$737,MATCH(B579,$K$2:$K$737,0),2),B579)","v":"68.20.40"},null,"69.20.00","69.20.00","69.20.00"]
[" ","68.31.10","Ejendomsmæglere mv.","Ejendomsmæglere mv.",0.2,null,"68.31.10",null,"70.10.10","70.10.10","70.10.10"]
[" ","68.31.20","Boliganvisning, ferieboligudlejning mv.","Ejendomsmæglere mv.",0.2,null,"68.31.20",null,"70.10.20","70.10.20","70.10.20"]
[" ","68.32.10","Administration af fast ejendom på kontraktbasis","Ejendomsmæglere mv.",0.2,null,"68.32.10",null,"70.21.00","73.30.00","70.21.00"]
[" ","68.32.20","Ejerforeninger","Ejendomsmæglere mv.",0,null,"68.32.20",null,"70.22.00","70.20.00","70.22.00"]
[" ","69.10.00","Juridisk bistand","Advokatvirksomhed",0,null,"69.10.00",null,"71.11.00","71.11.00","71.11.00"]
[" ","69.20.00","Bogføring og revision; skatterådgivning","Revision og bogføring",0,null,"69.20.00",null,"71.12.10","71.12.10","71.12.10"]
[" ","70.10.10","Ikke-finansielle hovedsæders virksomhed","Virksomhedskonsulenter",0.4,null,"70.10.10",null,"71.12.20","71.12.20","71.12.20"]
[" ","70.10.20","Finansielle hovedsæders virksomhed","Virksomhedskonsulenter",0.4,null,"70.10.20",null,"71.12.30","71.12.30","71.12.30"]
[" ","70.21.00","Public relations og kommunikation","Virksomhedskonsulenter",0.4,null,"73.30.00",null,"71.12.40","71.12.40","71.12.40"]
[" ","70.22.00","Virksomhedsrådgivning og anden rådgivning om driftsledelse","Virksomhedskonsulenter",0.4,null,"70.20.00",null,"71.12.90","71.12.90","71.12.90"]
[" ","71.11.00","Arkitektvirksomhed","Arkitekter og rådgivende ingeniører",0.1,null,"71.11.00",null,"71.20.10","71.20.10","71.20.10"]
[" ","71.12.10","Rådgivende ingeniørvirksomhed inden for byggeri og anlægsarbejder","Arkitekter og rådgivende ingeniører",0.1,null,"71.12.10",null,"71.20.20","71.20.20","71.20.20"]
[" ","71.12.20","Rådgivende ingeniørvirksomhed inden for produktions- og maskinteknik","Arkitekter og rådgivende ingeniører",0.1,null,"71.12.20",null,"71.20.90","71.20.90","71.20.90"]
[" ","71.12.30","Opstilling og levering af færdige fabriksanlæg","Arkitekter og rådgivende ingeniører",0.1,null,"71.12.30",null,"72.11.00","72.10.00","72.11.00"]
[" ","71.12.40","Geologiske undersøgelser og prospektering, landinspektører mv.","Arkitekter og rådgivende ingeniører",0.1,null,"71.12.40",null,"72.19.00","72.10.00","72.19.00"]
[" ","71.12.90","Anden teknisk rådgivning","Arkitekter og rådgivende ingeniører",0,null,"71.12.90",null,"72.20.00","72.20.00","72.20.00"]
[" ","71.20.10","Kontrol af levnedsmidler","Arkitekter og rådgivende ingeniører",0,null,"71.20.10",null,"73.11.10","73.11.10","73.11.10"]
[" ","71.20.20","Teknisk afprøvning og kontrol","Arkitekter og rådgivende ingeniører",0,null,"71.20.20",null,"73.11.90","73.11.90","73.11.90"]
[" ","71.20.90","Anden måling og teknisk analyse","Arkitekter og rådgivende ingeniører",0,null,"71.20.90",null,"73.12.00","73.12.00","73.12.00"]
[" ","72.11.00","Forskning og eksperimentel udvikling indenfor bioteknologi","Forskning og udvikling",0.8,null,"72.10.00",null,"73.20.00","73.20.00","73.20.00"]
[" ","72.19.00","Anden forskning og eksperimentel udvikling inden for naturvidenskab og teknik","Forskning og udvikling",0.8,null,"72.10.00",null,"74.10.10","74.11.00","74.10.10"]
[" ","72.20.00","Forskning og eksperimentel udvikling inden for samfundsvidenskab og humanistiske videnskaber","Forskning og udvikling",0.8,null,"72.20.00",null,"74.10.20","74.12.00","74.10.20"]
[" ","73.11.10","Reklamebureauer","Reklame- og analysebureauer",0.3,null,"73.11.10",null,"74.10.30","74.13.00","74.10.30"]
[" ","73.11.90","Anden reklamevirksomhed","Reklame- og analysebureauer",0.3,null,"73.11.90",null,"74.20.00","74.20.00","74.20.00"]
[" ","73.12.00","Reklameplads i medier","Reklame- og analysebureauer",0.3,null,"73.12.00",null,"74.30.00","74.30.00","74.30.00"]
[" ","73.20.00","Markedsanalyse og offentlig meningsmåling","Reklame- og analysebureauer",0.3,null,"73.20.00",null,"74.90.10","74.99.10","74.90.10"]
[" ","74.10.10","Industriel design og produktdesign","Anden videnservice",0.3,null,"74.11.00",null,"74.90.90","74.99.90","74.90.90"]
[" ","74.10.20","Kommunikationsdesign og grafisk design","Anden videnservice",0.3,null,"74.12.00",null,"75.00.00","75.00.00","75.00.00"]
[" ","74.10.30","Indretningsarkitekter og rumdesign","Anden videnservice",0.3,null,"74.13.00",null,"77.11.00","77.11.00","77.11.00"]
[" ","74.20.00","Fotografisk virksomhed","Anden videnservice",0.3,null,"74.20.00",null,"77.12.00","77.12.00","77.12.00"]
[" ","74.30.00","Oversættelse og tolkning","Anden videnservice",0.3,null,"74.30.00",null,"77.21.00","77.21.00","77.21.00"]
[" ","74.90.10","Landbrugskonsulenter","Anden videnservice",0.3,null,"74.99.10",null,"77.22.00","77.22.00","77.22.00"]
[" ","74.90.90","Andre liberale, videnskabelige og tekniske tjenesteydelser i.a.n.","Anden videnservice",0.3,null,"74.99.90",null,"77.29.00","77.22.00","77.29.00"]
[" ","75.00.00","Dyrlæger","Dyrlæger",0.4,null,"75.00.00",null,"77.31.00","77.31.00","77.31.00"]
[" ","77.11.00","Udlejning og leasing af biler og lette motorkøretøjer","Udlejning og leasing af materiel",0,null,"77.11.00",null,"77.32.00","77.32.00","77.32.00"]
[" ","77.12.00","Udlejning og leasing af lastbiler","Udlejning og leasing af materiel",0,null,"77.12.00",null,"77.33.00","77.33.00","77.33.00"]
[" ","77.21.00","Udlejning og leasing af varer til fritid og sport","Udlejning og leasing af materiel",0,null,"77.21.00",null,"77.34.00","77.34.00","77.34.00"]
[" ","77.22.00","Udlejning af videobånd og videodisks","Udlejning og leasing af materiel",0,null,"77.22.00",null,"77.35.00","77.35.00","77.35.00"]
[" ","77.29.00","Udlejning og leasing af andre varer til personlig brug og husholdningsbrug i.a.n.","Udlejning og leasing af materiel",0,null,"77.22.00",null,"77.39.00","77.39.90","77.39.00"]
[" ","77.31.00","Udlejning og leasing af landbrugsmaskiner og -udstyr","Udlejning og leasing af materiel",0,null,"77.31.00",null,"77.40.00","77.40.00","77.40.00"]
[" ","77.32.00","Udlejning og leasing af entreprenørmateriel","Udlejning og leasing af materiel",0,null,"77.32.00",null,"78.10.00","78.10.00","78.10.00"]
[" ","77.33.00","Udlejning af kontormaskiner og -udstyr, computere og it-udstyr","Udlejning og leasing af materiel",0,null,"77.33.00",null,"78.20.00","78.20.00","78.20.00"]
[" ","77.34.00","Udlejning og leasing af skibe og både","Udlejning og leasing af materiel",0,null,"77.34.00",null,"78.30.00","78.20.00","78.30.00"]
[" ","77.35.00","Udlejning og leasing af luftfartøjer","Udlejning og leasing af materiel",0,null,"77.35.00",null,"79.11.00","79.11.00","79.11.00"]
[" ","77.39.00","Udlejning og leasing af andet materiel, udstyr og andre materielle aktiver i.a.n.","Udlejning og leasing af materiel",0,null,"77.39.90",null,"79.12.00","79.12.00","79.12.00"]
[" ","77.40.00","Leasing af intellektuelle ejendomsrettigheder og lignende, dog ikke ophavsretsbeskyttede værker","Udlejning og leasing af materiel",0,null,"77.40.00",null,"79.90.00","79.90.00","79.90.00"]
[" ","78.10.00","Arbejdsformidlingskontorer","Arbejdsformidling og vikarbureauer",0.6,null,"78.10.00",null,"80.10.00","80.01.00","80.10.00"]
[" ","78.20.00","Vikarbureauer","Arbejdsformidling og vikarbureauer",0.6,null,"78.20.00",null,"80.20.00","80.09.00","80.20.00"]
[" ","78.30.00","Anden personaleformidling","Arbejdsformidling og vikarbureauer",0.6,null,"78.20.00",null,"80.30.00","80.01.00","80.30.00"]
[" ","79.11.00","Rejsebureauer","Rejsebureauer",0.5,null,"79.11.00",null,"81.10.00","81.10.00","81.10.00"]
[" ","79.12.00","Rejsearrangører","Rejsebureauer",0.5,null,"79.12.00",null,"81.21.00","81.21.00","81.21.00"]
[" ","79.90.00","Andre reservationstjenesteydelser og tjenesteydelser i forbindelse hermed","Rejsebureauer",0.5,null,"79.90.00",null,"81.22.10","81.22.10","81.22.10"]
[" ","80.10.00","Private vagt- og sikkerhedstjenester","Vagt og sikkerhedstjeneste",0.4,"x","80.01.00",null,"81.22.20","81.22.20","81.22.20"]
[" ","80.20.00","Serviceydelser i forbindelse med sikkerhedssystemer","Vagt og sikkerhedstjeneste",0.4,"x","80.09.00",null,"81.22.90","81.22.90","81.22.90"]
[" ","80.30.00","Overvågning","Vagt og sikkerhedstjeneste",0.4,"x","80.01.00",null,"81.29.00","81.23.00","81.29.00"]
[" ","81.10.00","Kombinerede serviceydelser","Ejendomsservice, rengøring og anlægsgartnere",0.2,null,"81.10.00",null,"81.30.00","81.30.00","81.30.00"]
[" ","81.21.00","Almindelig rengøring i bygninger","Ejendomsservice, rengøring og anlægsgartnere",0.2,null,"81.21.00",null,"82.11.00","82.10.00","82.11.00"]
[" ","81.22.10","Vinduespolering","Ejendomsservice, rengøring og anlægsgartnere",0.2,null,"81.22.10",null,"82.19.00","82.10.00","82.19.00"]
[" ","81.22.20","Skorstensfejning","Ejendomsservice, rengøring og anlægsgartnere",0.2,null,"81.22.20",null,"82.20.00","82.20.00","82.20.00"]
[" ","81.22.90","Anden rengøring af bygninger og rengøring af erhvervslokaler","Ejendomsservice, rengøring og anlægsgartnere",0.2,null,"81.22.90",null,"82.30.00","82.30.00","82.30.00"]
[" ","81.29.00","Andre rengøringsydelser","Ejendomsservice, rengøring og anlægsgartnere",0.2,null,"81.23.00",null,"82.91.00","82.91.00","82.91.00"]
[" ","81.30.00","Landskabspleje","Ejendomsservice, rengøring og anlægsgartnere",0.2,null,"81.30.00",null,"82.92.00","82.92.00","82.92.00"]
[" ","82.11.00","Kombinerede administrationsserviceydelser","Anden operationel service",0.5,null,"82.10.00",null,"82.99.00","82.99.00","82.99.00"]
[" ","82.19.00","Fotokopiering, dokumentbehandling og anden specialiseret kontorservice","Anden operationel service",0.4,null,{"$f":"IFERROR(INDEX($I$2:$K$737,MATCH(B643,$K$2:$K$737,0),2),B643)","v":"82.10.00"},null,"84.11.00","84.11.00","84.11.00"]
[" ","82.20.00","Call centres virksomhed","Anden operationel service",0.4,null,"82.20.00",null,"84.12.00","84.12.00","84.12.00"]
[" ","82.30.00","Organisering af kongresser, messer og udstillinger","Anden operationel service",0.4,null,"82.30.00",null,"84.13.00","84.13.00","84.13.00"]
[" ","82.91.00","Inkassovirksomhed og kreditoplysning","Anden operationel service",0.4,null,"82.91.00",null,"84.21.00","84.21.00","84.21.00"]
[" ","82.92.00","Pakkerier","Anden operationel service",0.4,null,"82.92.00",null,"84.22.00","84.22.00","84.22.00"]
[" ","82.99.00","Anden forretningsservice i.a.n.","Anden operationel service",0.4,null,"82.99.00",null,"84.23.00","84.23.00","84.23.00"]
[" ","84.11.00","Generelle offentlige tjenester","Offentlig administration",0,"x","84.11.00",null,"84.24.00","84.24.00","84.24.00"]
[" ","84.12.00","Administration af sundhedsvæsen, undervisning, kultur og sociale forhold undtagen social sikring","Offentlig administration",0,"x","84.12.00",null,"84.25.00","84.25.00","84.25.00"]
[" ","84.13.00","Administration af og bidrag til erhvervsfremme","Offentlig administration",0,"x","84.13.00",null,"84.30.00","84.30.00","84.30.00"]
[" ","84.21.00","Udenrigsanliggender","Forsvar, politi og retsvæsen mv.",0,"x","84.21.00",null,"85.10.00","85.10.00","85.10.00"]
[" ","84.22.00","Forsvar","Forsvar, politi og retsvæsen mv.",0,"x","84.22.00",null,"85.20.10","85.20.10","85.20.10"]
[" ","84.23.00","Domstole og fængselsvæsen","Forsvar, politi og retsvæsen mv.",0,"x","84.23.00",null,"85.20.20","85.20.20","85.20.20"]
[" ","84.24.00","Politi","Forsvar, politi og retsvæsen mv.",0,"x","84.24.00",null,"85.31.10","85.31.10","85.31.10"]
[" ","84.25.00","Brandvæsen","Forsvar, politi og retsvæsen mv.",0,"x","84.25.00",null,"85.31.20","85.31.20","85.31.20"]
[" ","84.30.00","Lovpligtig socialsikring mv.","Offentlig administration",0,"x","84.30.00",null,"85.32.00","85.32.00","85.32.00"]
[" ","85.10.00","Førskoleundervisning","Grundskoler",0.6,null,"85.10.00",null,"85.41.00","85.33.00","85.41.00"]
[" ","85.20.10","Folkeskoler o.lign.","Grundskoler",0.6,null,"85.20.10",null,"85.42.00","85.40.00","85.42.00"]
[" ","85.20.20","Specialskoler for handicappede","Grundskoler",0.6,null,"85.20.20",null,"85.51.00","85.51.00","85.51.00"]
[" ","85.31.10","Ungdoms- og efterskoler","Gymnasier og erhvervsfaglige skoler",0.6,null,"85.31.10",null,"85.52.00","85.52.00","85.52.00"]
[" ","85.31.20","Gymnasier, studenter- og HF-kurser","Gymnasier og erhvervsfaglige skoler",0.6,null,"85.31.20",null,"85.53.00","85.53.00","85.53.00"]
[" ","85.32.00","Tekniske skoler og fagskoler","Gymnasier og erhvervsfaglige skoler",0.6,null,"85.32.00",null,"85.59.00","85.59.00","85.59.00"]
[" ","85.41.00","Videregående uddannelser ikke på universitetsniveau","Videregående uddannelsesinstitutioner",0.6,null,"85.33.00",null,"85.60.00","85.69.00","85.60.00"]
[" ","85.42.00","Videregående uddannelser på universitetsniveau","Videregående uddannelsesinstitutioner",0.6,null,"85.40.00",null,"86.10.00","86.10.00","86.10.00"]
[" ","85.51.00","Undervisning inden for sport og fritid","Voksenundervisning mv.",0.6,null,"85.51.00",null,"86.21.00","86.21.00","86.21.00"]
[" ","85.52.00","Undervisning i kulturelle discipliner","Voksenundervisning mv.",0.6,null,"85.52.00",null,"86.22.00","86.22.00","86.22.00"]
[" ","85.53.00","Køreskoler","Voksenundervisning mv.",0.6,null,"85.53.00",null,"86.23.00","86.23.00","86.23.00"]
[" ","85.59.00","Anden undervisning i.a.n.","Voksenundervisning mv.",0.6,null,"85.59.00",null,"86.90.10","86.94.00","86.90.10"]
[" ","85.60.00","Hjælpeydelser i forbindelse med undervisning","Voksenundervisning mv.",0.6,null,"85.69.00",null,"86.90.20","86.95.00","86.90.20"]
[" ","86.10.00","Hospitaler","Hospitaler",0,null,"86.10.00",null,"86.90.30","86.93.00","86.90.30"]
[" ","86.21.00","Alment praktiserende læger","Læger, tandlæger mv.",0.3,null,"86.21.00",null,"86.90.40","86.96.00","86.90.40"]
[" ","86.22.00","Praktiserende speciallæger","Læger, tandlæger mv.",0.3,null,"86.22.00",null,"86.90.90","86.99.00","86.90.90"]
[" ","86.23.00","Praktiserende tandlæger","Læger, tandlæger mv.",0.3,null,"86.23.00",null,"87.10.10","87.10.10","87.10.10"]
[" ","86.90.10","Sundhedspleje, hjemmesygepleje og jordemødre mv.","Læger, tandlæger mv.",0.3,null,"86.94.00",null,"87.10.20","87.10.20","87.10.20"]
[" ","86.90.20","Fysio- og ergoterapeuter","Læger, tandlæger mv.",0.3,null,"86.95.00",null,"87.20.10","87.20.10","87.20.10"]
[" ","86.90.30","Psykologisk rådgivning","Læger, tandlæger mv.",0.3,null,"86.93.00",null,"87.20.20","87.20.20","87.20.20"]
[" ","86.90.40","Kiropraktorer","Læger, tandlæger mv.",0.3,null,"86.96.00",null,"87.30.10","87.30.10","87.30.10"]
[" ","86.90.90","Sundhedsvæsen i øvrigt i.a.n.","Læger, tandlæger mv.",0.3,null,"86.99.00",null,"87.30.20","87.30.20","87.30.20"]
[" ","87.10.10","Plejehjem","Plejehjem mv.",0.3,null,"87.10.10",null,"87.90.10","87.99.10","87.90.10"]
[" ","87.10.20","Institutionsophold med sygepleje i.a.n.","Plejehjem mv.",0.3,"x","87.10.20",null,"87.90.20","87.99.20","87.90.20"]
[" ","87.20.10","Døgninstitutioner for personer med psykiske handicap","Plejehjem mv.",0.3,"x","87.20.10",null,"87.90.90","87.99.90","87.90.90"]
[" ","87.20.20","Behandlingshjem for stofmisbrugere og alkoholskadede","Plejehjem mv.",0.3,"x","87.20.20",null,"88.10.10","88.10.10","88.10.10"]
[" ","87.30.10","Døgninstitutioner for personer med fysisk handicap","Plejehjem mv.",0.3,"x","87.30.10",null,"88.10.20","88.10.20","88.10.20"]
[" ","87.30.20","Beskyttede boliger o.l.","Plejehjem mv.",0.3,"x","87.30.20",null,"88.10.30","88.10.30","88.10.30"]
[" ","87.90.10","Døgninstitutioner for børn og unge","Plejehjem mv.",0.3,"x","87.99.10",null,"88.91.10","88.91.10","88.91.10"]
[" ","87.90.20","Familiepleje","Plejehjem mv.",0.3,"x","87.99.20",null,"88.91.20","88.91.20","88.91.20"]
[" ","87.90.90","Andre former for institutionsophold","Plejehjem mv.",0.3,"x","87.99.90",null,"88.91.30","88.91.30","88.91.30"]
[" ","88.10.10","Hjemmehjælp","Daginstitutioner og dagcentre mv. ",0.3,null,"88.10.10",null,"88.91.40","88.91.40","88.91.40"]
[" ","88.10.20","Dagcentre mv.","Daginstitutioner og dagcentre mv. ",0.3,null,"88.10.20",null,"88.91.50","88.91.50","88.91.50"]
[" ","88.10.30","Revalideringsinstitutioner","Daginstitutioner og dagcentre mv. ",0.3,null,"88.10.30",null,"88.91.60","88.91.60","88.91.60"]
[" ","88.91.10","Dagplejemødre","Daginstitutioner og dagcentre mv. ",0.3,null,"88.91.10",null,"88.99.10","88.99.10","88.99.10"]
[" ","88.91.20","Vuggestuer","Daginstitutioner og dagcentre mv. ",0.3,null,"88.91.20",null,"88.99.20","87.99.30","88.99.20"]
[" ","88.91.30","Børnehaver","Daginstitutioner og dagcentre mv. ",0.3,null,"88.91.30",null,"88.99.90","88.99.90","88.99.90"]
[" ","88.91.40","Skolefritidsordninger og fritidshjem","Daginstitutioner og dagcentre mv. ",0.3,null,"88.91.40",null,"90.01.10","90.20.10","90.01.10"]
[" ","88.91.50","Aldersintegrerede institutioner","Daginstitutioner og dagcentre mv. ",0.3,null,"88.91.50",null,"90.01.20","90.20.20","90.01.20"]
[" ","88.91.60","Fritids- og ungdomsklubber","Daginstitutioner og dagcentre mv. ",0.3,null,"88.91.60",null,"90.02.00","90.39.20","90.02.00"]
[" ","88.99.10","Foreninger, legater og fonde med sygdomsbekæmpende, sociale og velgørende formål","Daginstitutioner og dagcentre mv. ",0.3,null,"88.99.10",null,"90.03.00","90.12.00","90.03.00"]
[" ","88.99.20","Flygtninge- og asylcentre","Daginstitutioner og dagcentre mv. ",0.3,"x","87.99.30",null,"90.04.00","90.31.00","90.04.00"]
[" ","88.99.90","Andre sociale foranstaltninger uden institutionsophold i.a.n.","Daginstitutioner og dagcentre mv. ",0.3,null,"88.99.90",null,"91.01.10","91.11.00","91.01.10"]
[" ","90.01.10","Teater- og koncertvirksomhed","Teater, musik og kunst",0.3,null,"90.20.10",null,"91.01.20","91.12.00","91.01.20"]
[" ","90.01.20","Selvstændigt udøvende scenekunstnere","Teater, musik og kunst",0.3,null,"90.20.20",null,"91.02.00","91.21.00","91.02.00"]
[" ","90.02.00","Hjælpeaktiviteter i forbindelse med scenekunst","Teater, musik og kunst",0.3,null,"90.39.20",null,"91.03.00","91.22.00","91.03.00"]
[" ","90.03.00","Kunstnerisk skaben","Teater, musik og kunst",0.3,null,"90.12.00",null,"91.04.00","91.41.00","91.04.00"]
[" ","90.04.00","Drift af teater- og koncertsale, kulturhuse mv.","Teater, musik og kunst",0.3,null,"90.31.00",null,"92.00.00","92.00.00","92.00.00"]
[" ","91.01.10","Biblioteker ","Biblioteker, museer mv.",0.3,null,"91.11.00",null,"93.11.00","93.11.00","93.11.00"]
[" ","91.01.20","Arkiver","Biblioteker, museer mv.",0.3,null,{"$f":"IFERROR(INDEX($I$2:$K$737,MATCH(B707,$K$2:$K$737,0),2),B707)","v":"91.12.00"},null,"93.12.00","93.12.00","93.12.00"]
[" ","91.02.00","Museer","Biblioteker, museer mv.",0.3,null,"91.21.00",null,"93.13.00","93.13.00","93.13.00"]
[" ","91.03.00","Historiske monumenter og bygninger og lignende attraktioner","Biblioteker, museer mv.",0.3,null,"91.22.00",null,"93.19.00","93.19.00","93.19.00"]
[" ","91.04.00","Botaniske og zoologiske haver samt naturreservater","Biblioteker, museer mv.",0.3,null,"91.41.00",null,"93.21.00","93.21.00","93.21.00"]
[" ","92.00.00","Lotteri- og anden spillevirksomhed","Lotteri og andet spil",0.3,null,"92.00.00",null,"93.29.10","93.29.10","93.29.10"]
[" ","93.11.00","Drift af sportsanlæg","Sport",0.3,null,"93.11.00",null,"93.29.90","93.29.90","93.29.90"]
[" ","93.12.00","Sportsklubber","Sport",0.3,null,"93.12.00",null,"94.11.00","94.11.00","94.11.00"]
[" ","93.13.00","Fitnesscentre","Sport",0.3,null,"93.13.00",null,"94.12.00","94.12.00","94.12.00"]
[" ","93.19.00","Andre sportsaktiviteter","Sport",0.3,null,"93.19.00",null,"94.20.00","94.20.00","94.20.00"]
[" ","93.21.00","Forlystelsesparker o.l.","Forlystelsesparker og andre fritidsaktiviteter",0.3,null,"93.21.00",null,"94.91.00","94.91.00","94.91.00"]
[" ","93.29.10","Lystbådehavne","Forlystelsesparker og andre fritidsaktiviteter",0.3,null,"93.29.10",null,"94.92.00","94.92.00","94.92.00"]
[" ","93.29.90","Andre forlystelser og fritidsaktiviteter","Forlystelsesparker og andre fritidsaktiviteter",0.3,null,"93.29.90",null,"94.99.00","94.99.00","94.99.00"]
[" ","94.11.00","Erhvervs- og arbejdsgiverorganisationer","Organisationer og foreninger",0.3,null,"94.11.00",null,"95.11.00","95.10.00","95.11.00"]
[" ","94.12.00","Faglige sammenslutninger","Organisationer og foreninger",0.3,null,"94.12.00",null,"95.12.00","95.10.00","95.12.00"]
[" ","94.20.00","Fagforeninger","Organisationer og foreninger",0.3,null,"94.20.00",null,"95.21.00","95.21.00","95.21.00"]
[" ","94.91.00","Religiøse institutioner og foreninger","Organisationer og foreninger",0.3,null,"94.91.00",null,"95.22.00","95.22.00","95.22.00"]
[" ","94.92.00","Politiske partier","Organisationer og foreninger",0.3,null,"94.92.00",null,"95.23.00","95.23.00","95.23.00"]
[" ","94.99.00","Andre organisationer og foreninger i.a.n.","Organisationer og foreninger",0.3,null,"94.99.00",null,"95.24.00","95.24.00","95.24.00"]
[" ","95.11.00","Reparation af computere og ydre enheder","Reparation af husholdningsudstyr",0.4,null,"95.10.00",null,"95.25.00","95.25.00","95.25.00"]
[" ","95.12.00","Reparation af kommunikationsudstyr","Reparation af husholdningsudstyr",0.4,null,"95.10.00",null,"95.29.00","95.29.00","95.29.00"]
[" ","95.21.00","Reparation af forbrugerelektronik","Reparation af husholdningsudstyr",0.4,null,"95.21.00",null,"96.01.10","96.10.10","96.01.10"]
[" ","95.22.00","Reparation af husholdningsapparater og redskaber til hus og have","Reparation af husholdningsudstyr",0.4,null,"95.22.00",null,"96.01.20","96.10.20","96.01.20"]
[" ","95.23.00","Reparation af skotøj og lædervarer","Reparation af husholdningsudstyr",0.4,null,"95.23.00",null,"96.02.10","96.21.00","96.02.10"]
[" ","95.24.00","Reparation af møbler og boligudstyr","Reparation af husholdningsudstyr",0.4,null,"95.24.00",null,"96.02.20","96.22.00","96.02.20"]
[" ","95.25.00","Reparation af ure, smykker og guld- og sølvvarer","Reparation af husholdningsudstyr",0.4,null,"95.25.00",null,"96.03.00","96.30.00","96.03.00"]
[" ","95.29.00","Reparation af andre varer til personligt brug og husholdningsbrug","Reparation af husholdningsudstyr",0.4,null,"95.29.00",null,"96.04.00","96.23.00","96.04.00"]
[" ","96.01.10","Erhvervs- og institutionsvaskerier","Frisører, vaskerier og andre serviceydelser",0.4,null,"96.10.10",null,"96.09.00","96.99.00","96.09.00"]
[" ","96.01.20","Renserier, selvbetjeningsvaskerier mv.","Frisører, vaskerier og andre serviceydelser",0.4,null,"96.10.20",null,"97.00.00","97.00.00","97.00.00"]
[" ","96.02.10","Frisørsaloner","Frisører, vaskerier og andre serviceydelser",0.4,null,"96.21.00",null,"98.10.00","98.10.00","98.10.00"]
[" ","96.02.20","Skønheds- og hudpleje","Frisører, vaskerier og andre serviceydelser",0.4,null,"96.22.00",null,"98.20.00","98.20.00","98.20.00"]
[" ","96.03.00","Bedemænd og begravelsesvæsen","Frisører, vaskerier og andre serviceydelser",0.4,null,"96.30.00",null,"99.00.00","99.00.20","99.00.00"]
[" ","96.04.00","Aktiviteter vedrørende fysisk velvære","Frisører, vaskerier og andre serviceydelser",0.4,null,"96.23.00"]
[" ","96.09.00","Andre personlige serviceydelser i.a.n.","Frisører, vaskerier og andre serviceydelser",0.4,null,"96.99.00"]
[" ","97.00.00","Husholdninger med ansat medhjælp","Private husholdninger med ansat medhjælp ",0.6,null,"97.00.00"]
[" ","98.10.00","Private husholdningers produktion af varer til eget brug, i.a.n.","Private husholdninger med ansat medhjælp ",0.6,null,"98.10.00"]
[" ","98.20.00","Private husholdningers produktion af tjenesteydelser til eget brug, i.a.n.","Private husholdninger med ansat medhjælp ",0.6,null,"98.20.00"]
[" ","99.00.00","Ekstraterritoriale organisationer og organer","Internationale organisationer og ambassader ",0,null,"99.00.20"]
[" ","99.99.99","Uoplyst","Uoplyst aktivitet",0,null,"99.99.99"]